Workbook

Sheet Input
T1: Version 4.6.0 20/08/2025
L2: Specialist Servicing Calculator
B7: Application Reference: | E7: e.g 54231 | J7: Applicant Name(s): | R7: Assessor Name: | S7: Internal Use
B9: Loan Details: | L9: 19
B10: Instructions: Additional Loan Splits will appear as each row is completed. When Investment Loan Type is selected, negative gearing benefits will automatically be applied.
B11: Security Value: | C11: eg. $900,000 | H11: Type of Product: | I11: Optional | J11: LVR <= 80%, OO, P&I | N11: Product Rate: | P11: =IF(SUM(N16:N20)>0,MAX(N16:N20),P12) -> 0.056
B12: LVR: | D12: =IF(SUM(D16:D20)=0,"",R143) ->  | N12: Assessment Rate: | P12: =IF(SUM(N16:N20)>0,MAX(Console!F3,MAX(N16:N20)+IFERROR(VLOOKUP(Input!D14,Console!$A$3:$D$6,3,FALSE),0.02)),MAX(Console!F3,IFERROR(VLOOKUP(Input!D14,Console!$A$3:$D$6,3,FALSE),0))) -> 0.056
B13: Borrowing Entity:
B14: Loan Type: | D14: All Loan Types | F14: =IFERROR(VLOOKUP(Input!D14,Console!$A$3:$E$5,5,FALSE),"") -> For Aggregate Lending on all loan purposes and products
D15: Loan Amount | F15: Full Term | H15: Investment/ Owner Occupied | J15: P&I/ Interest Only | L15: IO Term | N15: Interest Rate | P15: Monthly Repayments | R15: =CONCATENATE("Monthly P&I Repayments @ ",TEXT(P12,"0.00%")) -> Monthly P&I Repayments @ 5.60%
B16: 1 | C16: $50k-$2m | P16: =IFERROR(IF(J16="IO",D16*IF(N16>0,N16,$P$11)/12,-PMT(IF(N16>0,N16,$P$11)/12,F16*12,D16,0,0)),0) -> 0 | R16: =IFERROR(IF(F16<1,0,-PMT(IF(N16="",$P$12,MAX(N16+IFERROR(VLOOKUP(Input!D14,Console!$A$3:$D$6,3,FALSE),0.2),Console!$F$3))/12,IF(J16="IO",(F16-L16)*12,F16*12),D16,0,0)),0) -> 0 | U16: =IFERROR(-PMT(IF(N16>0,N16,$P$11)/12,IF(J16="IO",(F16-L16)*12,F16*12),D16,0,0),0) -> 0 | W16: =IFERROR(IF(J16="IO",D16*IF(N16="",$P$12,MAX(N16+Console!$C$3,Console!$F$3))/12,-PMT(IF(N16="",$P$12,MAX(N16+Console!$C$3,Console!$F$3))/12,F16*12,D16,0,0)),0) -> 0
B17: 2 | C17: eg. $700,000 | P17: =IFERROR(IF(J17="IO",D17*IF(N17>0,N17,$P$11)/12,-PMT(IF(N17>0,N17,$P$11)/12,F17*12,D17,0,0)),0) -> 0 | R17: =IFERROR(IF(F17<1,0,-PMT(IF(N17="",$P$12,MAX(N17+IFERROR(VLOOKUP(Input!D14,Console!$A$3:$D$6,3,FALSE),0.2),Console!$F$3))/12,IF(J17="IO",(F17-L17)*12,F17*12),D17,0,0)),0) -> 0 | U17: =IFERROR(-PMT(IF(N17>0,N17,$P$11)/12,IF(J17="IO",(F17-L17)*12,F17*12),D17,0,0),0) -> 0 | W17: =IFERROR(IF(J17="IO",D17*IF(N17="",$P$12,MAX(N17+Console!$C$3,Console!$F$3))/12,-PMT(IF(N17="",$P$12,MAX(N17+Console!$C$3,Console!$F$3))/12,F17*12,D17,0,0)),0) -> 0
B18: 3 | P18: =IFERROR(IF(J18="IO",D18*IF(N18>0,N18,$P$11)/12,-PMT(IF(N18>0,N18,$P$11)/12,F18*12,D18,0,0)),0) -> 0 | R18: =IFERROR(IF(F18<1,0,-PMT(IF(N18="",$P$12,MAX(N18+IFERROR(VLOOKUP(Input!D14,Console!$A$3:$D$6,3,FALSE),0.2),Console!$F$3))/12,IF(J18="IO",(F18-L18)*12,F18*12),D18,0,0)),0) -> 0 | U18: =IFERROR(-PMT(IF(N18>0,N18,$P$11)/12,IF(J18="IO",(F18-L18)*12,F18*12),D18,0,0),0) -> 0 | W18: =IFERROR(IF(J18="IO",D18*IF(N18="",$P$12,MAX(N18+Console!$C$3,Console!$F$3))/12,-PMT(IF(N18="",$P$12,MAX(N18+Console!$C$3,Console!$F$3))/12,F18*12,D18,0,0)),0) -> 0
B19: 4 | P19: =IFERROR(IF(J19="IO",D19*IF(N19>0,N19,$P$11)/12,-PMT(IF(N19>0,N19,$P$11)/12,F19*12,D19,0,0)),0) -> 0 | R19: =IFERROR(IF(F19<1,0,-PMT(IF(N19="",$P$12,MAX(N19+IFERROR(VLOOKUP(Input!D14,Console!$A$3:$D$6,3,FALSE),0.2),Console!$F$3))/12,IF(J19="IO",(F19-L19)*12,F19*12),D19,0,0)),0) -> 0 | U19: =IFERROR(-PMT(IF(N19>0,N19,$P$11)/12,IF(J19="IO",(F19-L19)*12,F19*12),D19,0,0),0) -> 0 | W19: =IFERROR(IF(J19="IO",D19*IF(N19="",$P$12,MAX(N19+Console!$C$3,Console!$F$3))/12,-PMT(IF(N19="",$P$12,MAX(N19+Console!$C$3,Console!$F$3))/12,F19*12,D19,0,0)),0) -> 0
B20: 5 | P20: =IFERROR(IF(J20="IO",D20*IF(N20>0,N20,$P$11)/12,-PMT(IF(N20>0,N20,$P$11)/12,F20*12,D20,0,0)),0) -> 0 | R20: =IFERROR(IF(F20<1,0,-PMT(IF(N20="",$P$12,MAX(N20+Console!$C$3,Console!$F$3))/12,IF(J20="IO",(F20-L20)*12,F20*12),D20,0,0)),0) -> 0 | U20: =IFERROR(-PMT(IF(N20>0,N20,$P$11)/12,IF(J20="IO",(F20-L20)*12,F20*12),D20,0,0),0) -> 0 | W20: =IFERROR(IF(J20="IO",D20*IF(N20="",$P$12,MAX(N20+Console!$C$3,Console!$F$3))/12,-PMT(IF(N20="",$P$12,MAX(N20+Console!$C$3,Console!$F$3))/12,F20*12,D20,0,0)),0) -> 0
B21: Total | D21: =SUM(D16:D20) -> 0 | F21: =MAX(F16:F20) -> 0 | L21: =MAX(L16:L20) -> 0 | P21: =SUM(P16:P20) -> 0 | R21: =IFERROR(IF(F21<1,0,-PMT(IF(N21="",$P$12,MAX(N21+Console!$C$3,Console!$F$3))/12,IF(J21="IO",(F21-L21)*12,F21*12),D21,0,0)),0) -> 0
R22: =SUM(U16:U20) -> 0 | T22: =SUM(R16:R20) -> 0
F23: 5
B24: Income Details: | F24: 5 | N24: 6 | P24: 7 | R24: 8 | T24: 9 | V24: 10
B25: Ensure Household is selected for each Applicant To have more than 5 applicants press the Add Applicant button, to remove one of the additional applicants, press the Remove Applicant Button To enter in Business Incomes click Add Business Income
D26: Applicant 1 | E26: a | F26: Applicant 2 | H26: Applicant 3 | J26: Applicant 4 | L26: Applicant 5 | N26: Applicant 6 | P26: Applicant 7 | R26: Applicant 8 | T26: Applicant 9 | V26: Applicant 10 | X26: Applicant 11 | Y26: Applicant 12 | Z26: Applicant 13 | AA26: Applicant 14 | AB26: Applicant 15 | AC26: Applicant 16 | AD26: Applicant 17 | AE26: Applicant 18 | AF26: Applicant 19 | AG26: Applicant 20
B27: Household
D28: Gross PAYG
B29: Gross PAYG
B30: Contract PAYG
B31: Extra 1
B32: Extra 2
B33: Extra 3
B34: Extra 4
B35: Eligible Income | D35: =SUM(Formulas!E5:E10) -> 0 | F35: =SUM(Formulas!F5:F10) -> 0 | H35: =SUM(Formulas!G5:G10) -> 0 | J35: =SUM(Formulas!H5:H10) -> 0 | L35: =SUM(Formulas!I5:I10) -> 0 | N35: =SUM(Formulas!J5:J10) -> 0 | P35: =SUM(Formulas!K5:K10) -> 0 | R35: =SUM(Formulas!L5:L10) -> 0 | T35: =SUM(Formulas!M5:M10) -> 0 | V35: =SUM(Formulas!N5:N10) -> 0 | X35: =SUM(Formulas!O5:O10) -> 0 | Y35: =SUM(Formulas!P5:P10) -> 0 | Z35: =SUM(Formulas!Q5:Q10) -> 0 | AA35: =SUM(Formulas!R5:R10) -> 0 | AB35: =SUM(Formulas!S5:S10) -> 0 | AC35: =SUM(Formulas!T5:T10) -> 0 | AD35: =SUM(Formulas!U5:U10) -> 0 | AE35: =SUM(Formulas!V5:V10) -> 0 | AF35: =SUM(Formulas!W5:W10) -> 0 | AG35: =SUM(Formulas!X5:X10) -> 0
D36: Other Gross Income
B37: Overtime
B38: Commission
B39: Investment
B40: Foreign Income
B41: Extra 1
B42: Extra 2
B43: Extra 3
B44: Extra 4
B45: Eligible Income | D45: =SUM(Formulas!E13:E20) -> 0 | F45: =SUM(Formulas!F13:F20) -> 0 | H45: =SUM(Formulas!G13:G20) -> 0 | J45: =SUM(Formulas!H13:H20) -> 0 | L45: =SUM(Formulas!I13:I20) -> 0 | N45: =SUM(Formulas!J13:J20) -> 0 | P45: =SUM(Formulas!K13:K20) -> 0 | R45: =SUM(Formulas!L13:L20) -> 0 | T45: =SUM(Formulas!M13:M20) -> 0 | V45: =SUM(Formulas!N13:N20) -> 0 | X45: =SUM(Formulas!O13:O20) -> 0 | Y45: =SUM(Formulas!P13:P20) -> 0 | Z45: =SUM(Formulas!Q13:Q20) -> 0 | AA45: =SUM(Formulas!R13:R20) -> 0 | AB45: =SUM(Formulas!S13:S20) -> 0 | AC45: =SUM(Formulas!T13:T20) -> 0 | AD45: =SUM(Formulas!U13:U20) -> 0 | AE45: =SUM(Formulas!V13:V20) -> 0 | AF45: =SUM(Formulas!W13:W20) -> 0 | AG45: =SUM(Formulas!X13:X20) -> 0
D46: Rental Income
B47: Residential
B48: Commercial
B49: Foreign
B50: Residential - Cat 3
B51: Extra 2
B52: Extra 3
B53: Extra 4
B54: Eligible Income | D54: =SUM(Formulas!E23:E29) -> 0 | F54: =SUM(Formulas!F23:F29) -> 0 | H54: =SUM(Formulas!G23:G29) -> 0 | J54: =SUM(Formulas!H23:H29) -> 0 | L54: =SUM(Formulas!I23:I29) -> 0 | N54: =SUM(Formulas!J23:J29) -> 0 | P54: =SUM(Formulas!K23:K29) -> 0 | R54: =SUM(Formulas!L23:L29) -> 0 | T54: =SUM(Formulas!M23:M29) -> 0 | V54: =SUM(Formulas!N23:N29) -> 0 | X54: =SUM(Formulas!O23:O29) -> 0 | Y54: =SUM(Formulas!P23:P29) -> 0 | Z54: =SUM(Formulas!Q23:Q29) -> 0 | AA54: =SUM(Formulas!R23:R29) -> 0 | AB54: =SUM(Formulas!S23:S29) -> 0 | AC54: =SUM(Formulas!T23:T29) -> 0 | AD54: =SUM(Formulas!U23:U29) -> 0 | AE54: =SUM(Formulas!V23:V29) -> 0 | AF54: =SUM(Formulas!W23:W29) -> 0 | AG54: =SUM(Formulas!X23:X29) -> 0
D55: Non-Taxable Income
B56: Centrelink
B57: Child Support
B58: Other
B59: Extra 2
B60: Extra 3
B61: Extra 4
B62: Eligible Income | D62: =SUM(Formulas!E32:E37) -> 0 | F62: =SUM(Formulas!F32:F37) -> 0 | H62: =SUM(Formulas!G32:G37) -> 0 | J62: =SUM(Formulas!H32:H37) -> 0 | L62: =SUM(Formulas!I32:I37) -> 0 | N62: =SUM(Formulas!J32:J37) -> 0 | P62: =SUM(Formulas!K32:K37) -> 0 | R62: =SUM(Formulas!L32:L37) -> 0 | T62: =SUM(Formulas!M32:M37) -> 0 | V62: =SUM(Formulas!N32:N37) -> 0 | X62: =SUM(Formulas!O32:O37) -> 0 | Y62: =SUM(Formulas!P32:P37) -> 0 | Z62: =SUM(Formulas!Q32:Q37) -> 0 | AA62: =SUM(Formulas!R32:R37) -> 0 | AB62: =SUM(Formulas!S32:S37) -> 0 | AC62: =SUM(Formulas!T32:T37) -> 0 | AD62: =SUM(Formulas!U32:U37) -> 0 | AE62: =SUM(Formulas!V32:V37) -> 0 | AF62: =SUM(Formulas!W32:W37) -> 0 | AG62: =SUM(Formulas!X32:X37) -> 0
D63: Business Income
B64: Taxable | D64: ='Income Calculators'!J25 -> 0 | F64: ='Income Calculators'!L25 -> 0 | H64: ='Income Calculators'!N25 -> 0 | J64: ='Income Calculators'!P25 -> 0 | L64: ='Income Calculators'!R25 -> 0
B65: Non-Taxable | D65: ='Income Calculators'!J33 -> 0 | F65: ='Income Calculators'!L33 -> 0 | H65: ='Income Calculators'!N33 -> 0 | J65: ='Income Calculators'!P33 -> 0 | L65: ='Income Calculators'!R33 -> 0
B66: Business Salary: | D66: 0 | F66: 0 | H66: 0 | J66: 0 | L66: 0
B67: Extra 1
B68: Extra 2
B69: Extra 3
B70: Extra 4
B71: Eligible Income | D71: =SUM(Formulas!E41:E46) -> 0 | F71: =SUM(Formulas!F41:F46) -> 0 | H71: =SUM(Formulas!G41:G46) -> 0 | J71: =SUM(Formulas!H41:H46) -> 0 | L71: =SUM(Formulas!I41:I46) -> 0 | N71: =SUM(Formulas!J41:J46) -> 0 | P71: =SUM(Formulas!K41:K46) -> 0 | R71: =SUM(Formulas!L41:L46) -> 0 | T71: =SUM(Formulas!M41:M46) -> 0 | V71: =SUM(Formulas!N41:N46) -> 0 | X71: =SUM(Formulas!O41:O46) -> 0 | Y71: =SUM(Formulas!P41:P46) -> 0 | Z71: =SUM(Formulas!Q41:Q46) -> 0 | AA71: =SUM(Formulas!R41:R46) -> 0 | AB71: =SUM(Formulas!S41:S46) -> 0 | AC71: =SUM(Formulas!T41:T46) -> 0 | AD71: =SUM(Formulas!U41:U46) -> 0 | AE71: =SUM(Formulas!V41:V46) -> 0 | AF71: =SUM(Formulas!W41:W46) -> 0 | AG71: =SUM(Formulas!X41:X46) -> 0
B73: Total Income | D73: =HLOOKUP(D26,Formulas!$E$48:$X$62,2,FALSE) -> 0 | E73: =HLOOKUP(E26,Formulas!$E$48:$X$62,2,FALSE) ->  | F73: =HLOOKUP(F26,Formulas!$E$48:$X$62,2,FALSE) -> 0 | G73: =HLOOKUP(G26,Formulas!$E$48:$X$62,2,FALSE) ->  | H73: =HLOOKUP(H26,Formulas!$E$48:$X$62,2,FALSE) -> 0 | I73: =HLOOKUP(I26,Formulas!$E$48:$X$62,2,FALSE) ->  | J73: =HLOOKUP(J26,Formulas!$E$48:$X$62,2,FALSE) -> 0 | K73: =HLOOKUP(K26,Formulas!$E$48:$X$62,2,FALSE) ->  | L73: =HLOOKUP(L26,Formulas!$E$48:$X$62,2,FALSE) -> 0 | M73: =HLOOKUP(M26,Formulas!$E$48:$X$62,2,FALSE) ->  | N73: =HLOOKUP(N26,Formulas!$E$48:$X$62,2,FALSE) -> 0 | O73: =HLOOKUP(O26,Formulas!$E$48:$X$62,2,FALSE) ->  | P73: =HLOOKUP(P26,Formulas!$E$48:$X$62,2,FALSE) -> 0 | Q73: =HLOOKUP(Q26,Formulas!$E$48:$X$62,2,FALSE) ->  | R73: =HLOOKUP(R26,Formulas!$E$48:$X$62,2,FALSE) -> 0 | S73: =HLOOKUP(S26,Formulas!$E$48:$X$62,2,FALSE) ->  | T73: =HLOOKUP(T26,Formulas!$E$48:$X$62,2,FALSE) -> 0 | U73: =HLOOKUP(U26,Formulas!$E$48:$X$62,2,FALSE) ->  | V73: =HLOOKUP(V26,Formulas!$E$48:$X$62,2,FALSE) -> 0 | W73: =HLOOKUP(W26,Formulas!$E$48:$X$62,2,FALSE) ->  | X73: =HLOOKUP(X26,Formulas!$E$48:$X$62,2,FALSE) -> 0 | Y73: =HLOOKUP(Y26,Formulas!$E$48:$X$62,2,FALSE) -> 0 | Z73: =HLOOKUP(Z26,Formulas!$E$48:$X$62,2,FALSE) -> 0 | AA73: =HLOOKUP(AA26,Formulas!$E$48:$X$62,2,FALSE) -> 0 | AB73: =HLOOKUP(AB26,Formulas!$E$48:$X$62,2,FALSE) -> 0 | AC73: =HLOOKUP(AC26,Formulas!$E$48:$X$62,2,FALSE) -> 0 | AD73: =HLOOKUP(AD26,Formulas!$E$48:$X$62,2,FALSE) -> 0 | AE73: =HLOOKUP(AE26,Formulas!$E$48:$X$62,2,FALSE) -> 0 | AF73: =HLOOKUP(AF26,Formulas!$E$48:$X$62,2,FALSE) -> 0 | AG73: =HLOOKUP(AG26,Formulas!$E$48:$X$62,2,FALSE) -> 0
B74: Total Eligible Income | D74: =HLOOKUP(D26,Formulas!$E$48:$X$62,3,FALSE) -> 0 | E74: =HLOOKUP(E26,Formulas!$E$48:$X$62,3,FALSE) ->  | F74: =HLOOKUP(F26,Formulas!$E$48:$X$62,3,FALSE) -> 0 | G74: =HLOOKUP(G26,Formulas!$E$48:$X$62,3,FALSE) ->  | H74: =HLOOKUP(H26,Formulas!$E$48:$X$62,3,FALSE) -> 0 | I74: =HLOOKUP(I26,Formulas!$E$48:$X$62,3,FALSE) ->  | J74: =HLOOKUP(J26,Formulas!$E$48:$X$62,3,FALSE) -> 0 | K74: =HLOOKUP(K26,Formulas!$E$48:$X$62,3,FALSE) ->  | L74: =HLOOKUP(L26,Formulas!$E$48:$X$62,3,FALSE) -> 0 | M74: =HLOOKUP(M26,Formulas!$E$48:$X$62,3,FALSE) ->  | N74: =HLOOKUP(N26,Formulas!$E$48:$X$62,3,FALSE) -> 0 | O74: =HLOOKUP(O26,Formulas!$E$48:$X$62,3,FALSE) ->  | P74: =HLOOKUP(P26,Formulas!$E$48:$X$62,3,FALSE) -> 0 | Q74: =HLOOKUP(Q26,Formulas!$E$48:$X$62,3,FALSE) ->  | R74: =HLOOKUP(R26,Formulas!$E$48:$X$62,3,FALSE) -> 0 | S74: =HLOOKUP(S26,Formulas!$E$48:$X$62,3,FALSE) ->  | T74: =HLOOKUP(T26,Formulas!$E$48:$X$62,3,FALSE) -> 0 | U74: =HLOOKUP(U26,Formulas!$E$48:$X$62,3,FALSE) ->  | V74: =HLOOKUP(V26,Formulas!$E$48:$X$62,3,FALSE) -> 0 | W74: =HLOOKUP(W26,Formulas!$E$48:$X$62,3,FALSE) ->  | X74: =HLOOKUP(X26,Formulas!$E$48:$X$62,3,FALSE) -> 0 | Y74: =HLOOKUP(Y26,Formulas!$E$48:$X$62,3,FALSE) -> 0 | Z74: =HLOOKUP(Z26,Formulas!$E$48:$X$62,3,FALSE) -> 0 | AA74: =HLOOKUP(AA26,Formulas!$E$48:$X$62,3,FALSE) -> 0 | AB74: =HLOOKUP(AB26,Formulas!$E$48:$X$62,3,FALSE) -> 0 | AC74: =HLOOKUP(AC26,Formulas!$E$48:$X$62,3,FALSE) -> 0 | AD74: =HLOOKUP(AD26,Formulas!$E$48:$X$62,3,FALSE) -> 0 | AE74: =HLOOKUP(AE26,Formulas!$E$48:$X$62,3,FALSE) -> 0 | AF74: =HLOOKUP(AF26,Formulas!$E$48:$X$62,3,FALSE) -> 0 | AG74: =HLOOKUP(AG26,Formulas!$E$48:$X$62,3,FALSE) -> 0
B75: Total Taxable Income | D75: =HLOOKUP(D26,Formulas!$E$48:$X$62,4,FALSE) -> 0 | E75: =HLOOKUP(E26,Formulas!$E$48:$X$62,4,FALSE) ->  | F75: =HLOOKUP(F26,Formulas!$E$48:$X$62,4,FALSE) -> 0 | G75: =HLOOKUP(G26,Formulas!$E$48:$X$62,4,FALSE) ->  | H75: =HLOOKUP(H26,Formulas!$E$48:$X$62,4,FALSE) -> 0 | I75: =HLOOKUP(I26,Formulas!$E$48:$X$62,4,FALSE) ->  | J75: =HLOOKUP(J26,Formulas!$E$48:$X$62,4,FALSE) -> 0 | K75: =HLOOKUP(K26,Formulas!$E$48:$X$62,4,FALSE) ->  | L75: =HLOOKUP(L26,Formulas!$E$48:$X$62,4,FALSE) -> 0 | M75: =HLOOKUP(M26,Formulas!$E$48:$X$62,4,FALSE) ->  | N75: =HLOOKUP(N26,Formulas!$E$48:$X$62,4,FALSE) -> 0 | O75: =HLOOKUP(O26,Formulas!$E$48:$X$62,4,FALSE) ->  | P75: =HLOOKUP(P26,Formulas!$E$48:$X$62,4,FALSE) -> 0 | Q75: =HLOOKUP(Q26,Formulas!$E$48:$X$62,4,FALSE) ->  | R75: =HLOOKUP(R26,Formulas!$E$48:$X$62,4,FALSE) -> 0 | S75: =HLOOKUP(S26,Formulas!$E$48:$X$62,4,FALSE) ->  | T75: =HLOOKUP(T26,Formulas!$E$48:$X$62,4,FALSE) -> 0 | U75: =HLOOKUP(U26,Formulas!$E$48:$X$62,4,FALSE) ->  | V75: =HLOOKUP(V26,Formulas!$E$48:$X$62,4,FALSE) -> 0 | W75: =HLOOKUP(W26,Formulas!$E$48:$X$62,4,FALSE) ->  | X75: =HLOOKUP(X26,Formulas!$E$48:$X$62,4,FALSE) -> 0 | Y75: =HLOOKUP(Y26,Formulas!$E$48:$X$62,4,FALSE) -> 0 | Z75: =HLOOKUP(Z26,Formulas!$E$48:$X$62,4,FALSE) -> 0 | AA75: =HLOOKUP(AA26,Formulas!$E$48:$X$62,4,FALSE) -> 0 | AB75: =HLOOKUP(AB26,Formulas!$E$48:$X$62,4,FALSE) -> 0 | AC75: =HLOOKUP(AC26,Formulas!$E$48:$X$62,4,FALSE) -> 0 | AD75: =HLOOKUP(AD26,Formulas!$E$48:$X$62,4,FALSE) -> 0 | AE75: =HLOOKUP(AE26,Formulas!$E$48:$X$62,4,FALSE) -> 0 | AF75: =HLOOKUP(AF26,Formulas!$E$48:$X$62,4,FALSE) -> 0 | AG75: =HLOOKUP(AG26,Formulas!$E$48:$X$62,4,FALSE) -> 0
B76: Total Net Income | D76: =HLOOKUP(D26,Formulas!$E$48:$X$62,12,FALSE) -> 0 | E76: =HLOOKUP(E26,Formulas!$E$48:$X$62,12,FALSE) ->  | F76: =HLOOKUP(F26,Formulas!$E$48:$X$62,12,FALSE) -> 0 | G76: =HLOOKUP(G26,Formulas!$E$48:$X$62,12,FALSE) ->  | H76: =HLOOKUP(H26,Formulas!$E$48:$X$62,12,FALSE) -> 0 | I76: =HLOOKUP(I26,Formulas!$E$48:$X$62,12,FALSE) ->  | J76: =HLOOKUP(J26,Formulas!$E$48:$X$62,12,FALSE) -> 0 | K76: =HLOOKUP(K26,Formulas!$E$48:$X$62,12,FALSE) ->  | L76: =HLOOKUP(L26,Formulas!$E$48:$X$62,12,FALSE) -> 0 | M76: =HLOOKUP(M26,Formulas!$E$48:$X$62,12,FALSE) ->  | N76: =HLOOKUP(N26,Formulas!$E$48:$X$62,12,FALSE) -> 0 | O76: =HLOOKUP(O26,Formulas!$E$48:$X$62,12,FALSE) ->  | P76: =HLOOKUP(P26,Formulas!$E$48:$X$62,12,FALSE) -> 0 | Q76: =HLOOKUP(Q26,Formulas!$E$48:$X$62,12,FALSE) ->  | R76: =HLOOKUP(R26,Formulas!$E$48:$X$62,12,FALSE) -> 0 | S76: =HLOOKUP(S26,Formulas!$E$48:$X$62,12,FALSE) ->  | T76: =HLOOKUP(T26,Formulas!$E$48:$X$62,12,FALSE) -> 0 | U76: =HLOOKUP(U26,Formulas!$E$48:$X$62,12,FALSE) ->  | V76: =HLOOKUP(V26,Formulas!$E$48:$X$62,12,FALSE) -> 0 | W76: =HLOOKUP(W26,Formulas!$E$48:$X$62,12,FALSE) ->  | X76: =HLOOKUP(X26,Formulas!$E$48:$X$62,12,FALSE) -> 0 | Y76: =HLOOKUP(Y26,Formulas!$E$48:$X$62,12,FALSE) -> 0 | Z76: =HLOOKUP(Z26,Formulas!$E$48:$X$62,12,FALSE) -> 0 | AA76: =HLOOKUP(AA26,Formulas!$E$48:$X$62,12,FALSE) -> 0 | AB76: =HLOOKUP(AB26,Formulas!$E$48:$X$62,12,FALSE) -> 0 | AC76: =HLOOKUP(AC26,Formulas!$E$48:$X$62,12,FALSE) -> 0 | AD76: =HLOOKUP(AD26,Formulas!$E$48:$X$62,12,FALSE) -> 0 | AE76: =HLOOKUP(AE26,Formulas!$E$48:$X$62,12,FALSE) -> 0 | AF76: =HLOOKUP(AF26,Formulas!$E$48:$X$62,12,FALSE) -> 0 | AG76: =HLOOKUP(AG26,Formulas!$E$48:$X$62,12,FALSE) -> 0
B78: Total Income | D78: =SUM(Formulas!E59:X59) -> 0
F80: 5
B81: Expense Details: | F81: 2 | H81: =IF(H82<=MAX($F$81),H82,0) -> 2 | I81: =IF(I82<=$F$81,I82,0) -> 2 | J81: 0 | K81: 0 | L81: 0 | M81: 0 | N81: 0
D82: Household: | F82: 1 | H82: 2 | I82: 2 | J82: 3 | K82: 3 | L82: 4 | M82: 4 | N82: 5
D83: Number Adults: | E83: eg. 2
D84: Number Children: | E84: eg. 1
D85: HEMs | F85: =IF(AND(F83="",F84=""),0,IFERROR(VLOOKUP(CONCATENATE(F83,IF(F84="",0,IF(F84>3,3,F84))),HEM!$D$3:$S$12,HLOOKUP(Input!F82,Formulas!$H$82:$L$86,5,FALSE),FALSE),0))*52/12 -> 0 | H85: =IF(AND(H83="",H84=""),0,IFERROR(VLOOKUP(CONCATENATE(H83,IF(H84="",0,IF(H84>3,3,H84))),HEM!$D$3:$S$12,HLOOKUP(Input!H82,Formulas!$H$82:$L$86,5,FALSE),FALSE),0))*52/12 -> 0 | J85: =IF(AND(J83="",J84=""),0,IFERROR(VLOOKUP(CONCATENATE(J83,IF(J84="",0,IF(J84>3,3,J84))),HEM!$D$3:$S$12,HLOOKUP(Input!J82,Formulas!$H$82:$L$86,5,FALSE),FALSE),0))*52/12 -> 0 | L85: =IF(AND(L83="",L84=""),0,IFERROR(VLOOKUP(CONCATENATE(L83,IF(L84="",0,IF(L84>3,3,L84))),HEM!$D$3:$S$12,HLOOKUP(Input!L82,Formulas!$H$82:$L$86,5,FALSE),FALSE),0))*52/12 -> 0 | N85: =IF(AND(N83="",N84=""),0,IFERROR(VLOOKUP(CONCATENATE(N83,IF(N84="",0,IF(N84>3,3,N84))),HEM!$D$3:$S$12,HLOOKUP(Input!N82,Formulas!$H$82:$L$86,5,FALSE),FALSE),0))*52/12 -> 0
B87: Monthly Expenses: | F87: 1 | H87: 2 | J87: 3 | L87: 4 | N87: 5
D88: Childcare | E88: eg. $500 | P88: Daycare, afterschool care, nannies
D89: Clothing & Personal Expenses | P89: Clothing, footwear, buy now/ pay later, cosmetics, hairdressing etc
D90: Education | P90: School fees, books, levies, uniforms
D91: Groceries | P91: Typical Supermarket - Food & Toiletries
D92: Insurance | P92: Home/ Contents/ Landlord/ Vehicle/ Health/ Life/ Income Protection / Other
D93: Investment Property Expenses | P93: Rates, Body Corp/ Strata & Land Tax/ Utilities/ Maintenance
D94: OO Property Expenses | P94: Rates, Body Corp/ Strata & Land Tax/ Utilities/ Maintenance
D95: Medical & Health | P95: Doctor, Dental, Optical, Massage, Chiro, Pharmaceutical etc
D96: Recreation & Entertainment | P96: Eating out, Alcohol, Tobacco, Gambling. Social, Holidays, Sport
D97: Phone/ Internet/ Subscriptions | P97: Phone/ Internet/ Pay TV/ Netflix, Spotify etc
D98: Transportation expenses | P98: Registration/ Petrol & Maintenance/ Tolls/ Taxi/ Parking/ Public Transport
D99: Other | P99: Birthdays, Union Subscriptions, Gifts etc
D100: Total: | F100: =SUM(F88:F99) -> 0 | H100: =SUM(H88:H99) -> 0 | J100: =SUM(J88:J99) -> 0 | L100: =SUM(L88:L99) -> 0 | N100: =SUM(N88:N99) -> 0
D102: Total All Households: | F102: =SUM(Formulas!H90:L90) -> 0
J104: 109
B105: Liability and Special Expense Details: | J105: 110
B106: Instructions: 1. Liability Type and Applicant fields required. 2. For multiple appliants on the same debt, either assign the full debt to one applicant, or reduce the Limit/ Balance/ Monthly Payment to the applicants share of repayments. 3. When splitting Investment Mortgages - the Negative Gearing benefit will be given to each applicant selected. 4. If a Monthly Payment is entered, the assessment will use this amount. If this is amount is not known, please enter in the other details and a figure will be calculated. 5. Where an applicant has multiple Credit Cards, you can either enter in each credit card in a seperatel row, or add in one credit card liability where the limit is the total of all their credit cards. 6. Debts being consolidated are not mandatory.
D107: Liability Type: | F107: Applicant: | H107: Limit: | J107: Balance: | L107: Monthly Payment: | N107: Consolidating: | P107: Payment used in assessment:
B108: 1 | C108: eg. Credit Card | E108: eg. Applicant 1 | F108: Applicant 1 | G108: eg. $5,000 | I108: eg. $2,400 | K108: eg. $250 | M108: eg. Yes/ No | P108: =Formulas!M101/12 -> 0 | R108: =IF(OR(D108="HECS / HELP ",D108="Child Maintenance ",D108="Rental Expense "),"",IF(AND(MAX(H108:L108)>0,F108="",D108="Investment Mortgage"),"<-- Please Select an Applicant",IF(AND(L108>0,MAX(H108:J108)=0),"<-- Please enter a balance or limit",""))) -> 
B109: 2 | C109: eg. OO Mortgage | P109: =Formulas!M102/12 -> 0 | R109: =IF(OR(D109="HECS / HELP ",D109="Child Maintenance ",D109="Rental Expense "),"",IF(AND(MAX(H109:L109)>0,F109="",D109="Investment Mortgage"),"<-- Please Select an Applicant",IF(AND(L109>0,MAX(H109:J109)=0),"<-- Please enter a balance or limit",""))) -> 
B110: 3 | P110: =Formulas!M103/12 -> 0
B111: 4 | P111: =Formulas!M104/12 -> 0
B112: 5 | P112: =Formulas!M105/12 -> 0
B113: 6 | P113: =Formulas!M106/12 -> 0
B114: 7 | P114: =Formulas!M107/12 -> 0
B115: 8 | P115: =Formulas!M108/12 -> 0
B116: 9 | P116: =Formulas!M109/12 -> 0
B117: 10 | P117: =Formulas!M110/12 -> 0
B118: 11 | P118: =Formulas!M111/12 -> 0
B119: 12 | P119: =Formulas!M112/12 -> 0
B120: 13 | P120: =Formulas!M113/12 -> 0
B121: 14 | P121: =Formulas!M114/12 -> 0
B122: 15 | P122: =Formulas!M115/12 -> 0
B123: 16 | P123: =Formulas!M116/12 -> 0
B124: 17 | P124: =Formulas!M117/12 -> 0
B125: 18 | P125: =Formulas!M118/12 -> 0
B126: 19 | P126: =Formulas!M119/12 -> 0
B127: 20 | P127: =Formulas!M120/12 -> 0
B128: 21 | P128: =Formulas!M121/12 -> 0
B129: 22 | P129: =Formulas!M122/12 -> 0
B130: 23 | P130: =Formulas!M123/12 -> 0
B131: 24 | P131: =Formulas!M124/12 -> 0
B132: 25 | P132: =Formulas!M125/12 -> 0
D135: Total Repayments: | F135: =SUM(Formulas!M101:M125) -> 0
B139: Results:
N140: Surplus Income after loan repayments: | P140: Annually | R140: Monthly
F141: Total Income: | H141: =SUM(Formulas!E49:X49) -> 0 | N141: @ Assessed Rate: | P141: =R141*12 -> 0 | R141: =H149/12-T22 -> 0
F142: Net Income: | H142: =D78 -> 0 | N142: @ Product Rate: | P142: =IFERROR(H149-MAX(R22,P21)*12,0) -> 0 | R142: =P142/12 -> 0
F143: Total Allowable Income: | H143: =SUM(Formulas!E50:X50) -> 0 | N143: =IF(R143>=1,"***WARNING: LVR > 100%***","") ->  | P143: LVR | R143: =IFERROR(D21/D11,0) -> 0
F144: HEM Expenses | H144: =SUM(Formulas!H87:L87) -> 0 | P144: DSR | R144: =IFERROR(T22*12/H141,0) -> 0
F145: Customer Declared Expenses | H145: =SUM(Formulas!H88:L88) -> 0 | N145: =IF(R145="-","",IF(R145>=600,"***WARNING: DTI > 6x***","")) ->  | P145: DTI | R145: =IFERROR((Formulas!N126+Input!D21)/H141,"-") -> -
N146: =IF(R146="-","",IF(R146>=500,"***WARNING: LTI > 5x***","")) ->  | P146: LTI | R146: =IFERROR(D21/H141,"-") -> -
F147: Total Liability Repayments | H147: =F135 -> 0 | N147: =IF(P141=0,"",IF(P141<0,"***WARNING: NSR<1 and Annual Surplus <$500***",IF(P141<500,"***WARNING: Monthly Surplus <$500***",""))) ->  | P147: NSR | R147: =IFERROR(CONCATENATE(TEXT(IFERROR((D78-F102)/(F135+T22*12),""),IF((D78-F102)/(F135+T22*12)>=10,"# 00.00","# 0.00"))," : 1"),"-") -> -
F149: Net Disposable Income before new loan: | H149: =H142-F102-H147 -> 0 | P149: =IF(P141>=Console!F9,"PASS",IF(R145="-","FAIL",IF(R145>=6.5,"***REFER BDM***","FAIL"))) -> FAIL
F151: Max Borrowing Amount*: | H151: =PV(P12/12,F21*12,-H149/12,0,0) -> 0
F152: =IF(F21="","",CONCATENATE("*Based on the specified loan term above of ",F21," years and at the assessment rate of ",P12*100,"%")) -> *Based on the specified loan term above of 0 years and at the assessment rate of 5.6%
B155: Comments:

Sheet Income Calculators
B2: YTD Gross Income Calculator
B3: Results to go into Income Table on the Input sheet as Type Salary:
D4: YTD Gross Income: | E4: eg. $78,546.23 | H4: FY Year | I4: eg. FY20 | N4: Date of last payslip: | O4: eg. 1/Nov/2019
D6: Annual Gross Income: | F6: =IFERROR((365.25/(P4-VLOOKUP(J4,Console!$BM$3:$BN$5,2,FALSE)))*F4,"") -> 
B9: Self Employed Income Calculator
B10: Applicant: | I10: eg. Applicant 1 | J10: Applicant 1 | K10: eg. Applicant 2 | L10: Applicant 2 | M10: eg. Applicant 3 | N10: Applicant 3 | P10: Applicant 4 | R10: Applicant 5
B11: Applicant Household: | I11: eg. 1 | K11: eg. 1 | M11: eg. 2
B12: Business Type: | J12: Sole Trader
J13: =IF(J12="Company",1,0) -> 0 | K13: =IF(K12="Company",1,0) -> 0 | L13: 0 | M13: 0 | N13: 0 | O13: 0 | P13: 0 | Q13: 0 | R13: 0 | T13: =SUM(J13:R13) -> 0
B14: Taxable Income - Sole Proprietor or Partnership | J14: =IF(OR(J12="Partnership",J12="Sole Trader"),1,0) -> 1 | K14: =IF(OR(K12="Partnership",K12="Sole Trader"),1,0) -> 0 | L14: 0 | M14: 0 | N14: 0 | O14: 0 | P14: 0 | Q14: 0 | R14: 0 | T14: =SUM(J14:R14) -> 1
B15: Sole Trader/ Partner/ Directors Salary
B16: Net Profit
B17: Other Income
B19: Taxable Income - Company
B20: Company Profit
B21: Abnormal Expenses
B22: Abnormal Income
B23: Other Income
B25: Total Taxable Income This has been applied to the applicants Taxable Income | J25: =IF(J12="",0,(J20+J21-J22+J23)+(J15+J16+J17)) -> 0 | L25: =IF(L12="",0,(L20+L21-L22+L23)+(L15+L16+L17)) -> 0 | N25: =IF(N12="",0,(N20+N21-N22+N23)+(N15+N16+N17)) -> 0 | P25: =IF(P12="",0,(P20+P21-P22+P23)+(P15+P16+P17)) -> 0 | R25: =IF(R12="",0,(R20+R21-R22+R23)+(R15+R16+R17)) -> 0
B26: Company Profit after tax | J26: =IF(J12="",0,IF((AND(J12="Company", J25>0)),(J15+J16+J17)+(J20+J21-J22+J23)*(1-Console!$AJ$3),J25)) -> 0 | L26: =IF(L12="",0,IF((AND(L12="Company", L25>0)),(L15+L16+L17)+(L20+L21-L22+L23)*(1-Console!$AJ$3),L25)) -> 0 | N26: =IF(N12="",0,IF((AND(N12="Company", N25>0)),(N15+N16+N17)+(N20+N21-N22+N23)*(1-Console!$AJ$3),N25)) -> 0 | P26: =IF(P12="",0,IF((AND(P12="Company", P25>0)),(P15+P16+P17)+(P20+P21-P22+P23)*(1-Console!$AJ$3),P25)) -> 0 | R26: =IF(R12="",0,IF((AND(R12="Company", R25>0)),(R15+R16+R17)+(R20+R21-R22+R23)*(1-Console!$AJ$3),R25)) -> 0
B28: Plus Addbacks / Non-Taxable Income
B29: Motor Vehicle Expenses
B30: Depreciation
B31: Other Self-Employed Addbacks
B33: Total Non-Taxable Income This has been applied to the applicants Non-Taxed Income | J33: =IF(J12="",0,SUM(J29:J31)) -> 0 | L33: =IF(L12="",0,SUM(L29:L31)) -> 0 | N33: =IF(N12="",0,SUM(N29:N31)) -> 0 | P33: =IF(P12="",0,SUM(P29:P31)) -> 0 | R33: =IF(R12="",0,SUM(R29:R31)) -> 0

Sheet Loan Feature Input (hidden)
C3: Loan Field | E3: Input | I3: DLA Authority | J3: DLA | K3: DLA Approver | L3: DLA – Item 1 | O3: DLA – Item 2 Exception
C4: Documentation | D4: eg. Full Doc | L4: SC output @ AAA level
C5: Employment | D5: eg. PAYE/Full Time | L5: 0 - 25% | M5: > 25 - 35% | N5: > 35% | R5: 0.25 | S5: 0.35 | T5: 9999.99
C6: Months Business in Operation (for self-employed) | D6: eg. 0 | I6: Highest | J6: DLA 1 | K6: General Manager (GM) | L6: <=A$3.0M | M6: <=A$3.0M | N6: <=$A$3.0M | O6: Major | Q6: DLA 1 | R6: 3000000 | S6: 3000000 | T6: 3000000
C7: First Time Buyer | D7: eg. No | J7: DLA 2 | K7: Head of Lending (HOL) | L7: <=A$2.0M | M7: <=A$1.5M | N7: <=$A$1.0M | O7: Moderate | Q7: DLA 2 | R7: 2000000 | S7: 1500000 | T7: 1000000
C8: Loan Purpose | D8: eg. Purchase New | F8: Not Used | J8: DLA 3 | K8: Senior Credit Analyst (SCA) | L8: <=A$1.5M | M8: <=A$1.0M | N8: <=A$500K | O8: Minor - DLA 3 | Q8: DLA 3 | R8: 1500000 | S8: 1000000 | T8: 500000
C9: High Density Security | D9: eg. High Density | J9: DLA 4 | K9: Credit Analyst (CA) | L9: <=A$1.0M | M9: <=A$500K | N9: 0 | O9: Minor - DLA 4 | Q9: DLA 4 | R9: 1000000 | S9: 500000 | T9: 0
C10: Post Code | D10: eg. 2000 | I10: Lowest | J10: DLA 5 | K10: Credit Analyst (CA) | L10: <=A$500K | M10: <=A$400K | N10: 0 | O10: Not applicable | Q10: DLA 5 | R10: 500000 | S10: 400000 | T10: 0
C11: Credit History Events | D11: eg. 1
C12: Date of last credit event (blank if not applicable) | D12: eg. 20/01/2021
C13: DLA Exception Criteria | D13: eg. Minor | Q13: Loan Amt | R13: =IF(E16<R5,IF(E39<=R10,Q10,IF(E39<=R9,Q9,IF(E39<=R8,Q8,IF(E39<=R7,Q7,IF(E39<=R6,Q6,"Above $3m and Policy Limit"))))),IF(E16<S5,IF(E39<=S10,Q10,IF(E39<=S9,Q9,IF(E39<=S8,Q8,IF(E39<=S7,Q7,IF(E39<=S6,Q6,"Above $3m and Policy Limit"))))),IF(E16<T5,IF(E39<=T10,Q10,IF(E39<=T9,Q9,IF(E39<=T8,Q8,IF(E39<=T7,Q7,IF(E39<=T6,Q6,"Above $3m and Policy Limit"))))),"Error"))) ->  | S13: =_xlfn.NUMBERVALUE(RIGHT(R13,1)) -> 
Q14: Exception | R14: =VLOOKUP(E13,$O$6:$Q$10,3,FALSE) ->  | S14: =IFERROR(_xlfn.NUMBERVALUE(RIGHT(R14,1)),5) -> 5
Q15: DLA Level | R15: =MIN(S13:S14) -> 
C16: Subordination Result: | E16: ='Subordinate Calculator'!P46 -> 
C17: DLA Level | E17: =CONCATENATE("DLA ",R15) -> 
C20: Rating Scenario | E20: ='Subordinate Calculator'!P41 -> AAA
C21: Probability of Default: | E21: ='Subordinate Calculator'!P42 -> 
C22: MVD | E22: ='Subordinate Calculator'!P43 -> 0
C23: Loss Severity: | E23: ='Subordinate Calculator'!P45 -> 5001
C24: $ Loss | E24: ='Subordinate Calculator'!P44 -> -5001
C35: Sources Documentation | D35: eg. 2 | E35: 2
C36: Loan Type | D36: eg. Sub-prime | E36: Sub-prime
C37: Tax Returns | D37: eg. No | E37: =IF(E4="Full Doc","Yes","No") -> No
C38: Property Occupancy | D38: eg. Investment | E38: =IF(OR(Input!H16="Inv",Input!H17="Inv",Input!H18="Inv",Input!H19="Inv",Input!H20="Inv"),"Investment","Owner Occupied") -> Owner Occupied
C39: Original Loan Balance | D39: eg. 1000000 | E39: =E74 -> 0
C40: Facility limit | D40: eg. -1 | E40: =E39 -> 0
C41: Original LTV | D41: eg. 0 | E41: =E75 -> 
C42: Repayment Method | D42: eg. Interest Only | E42: =IF(OR(Input!J16="IO",Input!J17="IO",Input!J18="IO",Input!J19="IO",Input!J20="IO"),"Interest Only","Principal and Interest") -> Principal and Interest | F42: Not Used
C43: Product | D43: eg. | E43: =E42 -> Principal and Interest | F43: Not Used
C44: Fixed Term Remaining in Years | D44: eg. -1 | E44: 0 | F44: Not Used
C45: Location | D45: eg. NSW Metro | E45: =CONCATENATE(VLOOKUP(E10,'Subordinate Calculator'!$Y$113:$AA$173,2,TRUE)," - ",VLOOKUP(E10,'Subordinate Calculator'!$Y$113:$AA$173,3,TRUE)) -> Exclude - Exclude
C46: Total Valuation | D46: eg. 1428571.42857143 | E46: =Input!D11 -> 0 | F46: Not Used
C47: Settlement Date | D47: eg. 43220 | E47: =TODAY() -> 2025-09-12 | F47: Not Used
C48: Maturity Date | D48: eg. 54178 | E48: =E47+Input!F21*365 -> 2025-09-12 | F48: Not Used
C49: IO Period Remaining in Years | D49: eg. 3 | E49: =MAX(Input!L16:L20) -> 0
C50: Number of Days in Arrears | D50: eg. 0 | E50: 0
C51: Scheduled Loan Balance | D51: eg. 1000000 | E51: =E39 -> 0
C52: Country of Loan Origination | D52: eg. Australia | E52: Australia | F52: Not Used
C53: Lenders Mortgage Insurance | D53: eg. N/A | E53: No | F53: ***Need to clarify, input says days, but in reference table uses months and in calculation
C54: Savings Verified | D54: eg. No | E54: Yes | F54: Not Used
C55: Valuation Type (Full Valuation) | D55: eg. N/A | E55: Yes | F55: Not Used
C56: Pool Date | D56: eg. 43982 | E56: =E47 -> 2025-09-12 | F56: Not Used
B57: =OFFSET(B57,-1,)+1 -> 1 | C57: State | D57: eg. NSW | E57: =VLOOKUP(E10,'Subordinate Calculator'!$Y$113:$AA$173,2,TRUE) -> Exclude
B58: =OFFSET(B58,-1,)+1 -> 2 | C58: Metro; Non metro; Inner city | D58: eg. Metro | E58: =VLOOKUP(E10,'Subordinate Calculator'!$Y$113:$AA$173,3,TRUE) -> Exclude
B59: =OFFSET(B59,-1,)+1 -> 3 | C59: Scheduled LVR | D59: eg. 0.7 | E59: =E41 -> 
B60: =OFFSET(B60,-1,)+1 -> 4 | C60: Times Arrears | D60: eg. 0 | E60: Up to 1 | F60: Not Used
B61: =OFFSET(B61,-1,)+1 -> 5 | C61: Seasoning | D61: eg. 25 | E61: 0
C62: Amortising Period Post IO in Years | D62: eg. 27 | E62: =Input!F21-MAX(Input!L16:L20) -> 0
C63: Interest Rate (%) | D63: eg. 0.0969 | E63: =Input!P11 -> 0.056
C64: Discount Loan | D64: eg. No | E64: No
C65: Further Advances | D65: eg. No | E65: Yes
C66: Further Redraw | D66: eg. No | E66: Yes | F66: Not Used
C67: DSCR | D67: eg. -1 | E67: =Input!R147 -> -
C68: Application Reference | D68: eg. 1 | E68: =Input!F7 -> 0
C69: Issuer | D69: eg. tester | E69: BCHL
C70: Interest Type | D70: eg. Variable | E70: Variable | F70: Not Used
C71: Line Of Credit | D71: eg. No | E71: No | F71: Not Used
C72: Borrower Group ID | D72: eg. 1 | E72: Tranche 1 | F72: Not Used
C73: Borrower Residency | D73: eg. Australian | E73: Australian | F73: Not Used
C74: Current Loan Balance | D74: eg. 1000000 | E74: =Input!D21 -> 0 | F74: Not Used
C75: Current LTV | D75: eg. 0.7 | E75: =Input!D12 ->  | F75: Not Used
F78: Not Used

Sheet Results Page (hidden)
B2: Results | E2: =NOW() -> 2025-09-12T13:36:37.040
B4: Loan Summary
B6: Applicant Name(s): | C6: =Input!L7 -> 0 | E6: Underwriter: | F6: =Input!T7 -> 0
B7: Application Reference: | C7: =Input!F7 -> 0 | E7: Borrowing Entity: | F7: =Input!D13 -> 0
B9: Region: | C9: ='Subordinate Calculator'!E59 -> Exclude | E9: Probability of Default: | F9: ='Subordinate Calculator'!P42 -> 
B10: LVR: | C10: ='Loan Feature Input'!E75 ->  | E10: Loss Severity: | F10: ='Subordinate Calculator'!P45 -> 5001
B11: NSR: | C11: =Input!R147 -> - | E11: Subordination Result: | F11: ='Subordinate Calculator'!P46 -> 
B13: DLA Level
B15: DLA Exception | C15: ='Loan Feature Input'!E13 -> 0
B16: DLA Level | C16: ='Loan Feature Input'!R13 -> 
B19: Application Details
B21: State: | C21: ='Loan Feature Input'!E57 -> Exclude | E21: No Dependents: | F21: =SUM(Input!F84:N84) -> 0
B22: Principal: | C22: =Input!D21 -> 0 | E22: Months Since Default: | F22: =IF('Loan Feature Input'!E12 = "", "N/A", (TODAY()-'Loan Feature Input'!E12)/(365/12)) -> N/A
B23: Total Security: | C23: =Input!D11 -> 0 | E23: Credit Event History: | F23: ='Loan Feature Input'!E11 -> 0
B24: Loan Term: | C24: =Input!F21 -> 0 | E24: Gross Annual Income: | F24: =Input!H141 -> 0
B25: Purpose: | C25: ='Loan Feature Input'!E8 -> 0 | E25: Net Annual Income: | F25: =Input!D78 -> 0
B26: Repayment Method: | C26: ='Loan Feature Input'!E42 -> Principal and Interest | E26: Employment Status: | F26: ='Loan Feature Input'!E5 -> 0
B27: First Time Buyer: | C27: ='Loan Feature Input'!E7 -> 0 | E27: Income Type: | F27: ='Loan Feature Input'!E4 -> 0
B29: Serviceability
B31: Annual Gross Income: | C31: =Input!H141 -> 0 | E31: LVR | F31: =Input!R143 -> 0
B32: Annual Net Income: | C32: =Input!D78 -> 0 | E32: DSR: | F32: =Input!R144 -> 0
B33: Net Available Income: | C33: =Input!H142 -> 0 | E33: DTI: | F33: =Input!R145 -> -
B34: Total HEM: | C34: =Input!H144 -> 0 | E34: LTI | F34: =Input!R146 -> -
B35: Declared Living Expenses: | C35: =Input!H145 -> 0 | E35: NSR | F35: =Input!R147 -> -
B36: Total Liability Repayments: | C36: =Input!H149 -> 0 | E36: Monthly Repayment: | F36: =Input!P21 -> 0
B37: Loan Amount: | C37: =Input!D21 -> 0 | E37: Surplus (per annum): | F37: =Input!P142 -> 0
B38: Assessment Rate: | C38: =Input!P12 -> 0.056 | E38: Annual Payments, Stressed: | F38: =Input!R21 -> 0
B39: Term: | C39: =Input!F21 -> 0 | E39: Annual Surplus, Stressed: | F39: =Input!P141 -> 0
F46: Page 1
B49: Results | E49: =NOW() -> 2025-09-12T13:36:37.040
B52: Input Multipliers | E52: Loss Severity
C53: Multiple | F53: Multiple
B54: LVR Distribution | C54: ='Subordinate Calculator'!P10 -> 4.505199967 | E54: Property Value | F54: ='Subordinate Calculator'!P32 -> 1
B55: Loan Purpose | C55: ='Subordinate Calculator'!P31 -> 0 | E55: Location Inner City High Density | F55: ='Subordinate Calculator'!P33 -> 1
B56: Credit History / Credit Events | C56: ='Subordinate Calculator'!P26 -> 1 | E56: Loan Purpose - Construction | F56: ='Subordinate Calculator'!P34 -> 0
B57: Borrower Employment | C57: ='Subordinate Calculator'!P29 ->  | E57: Total Muliplier Collateral | F57: ='Subordinate Calculator'!P39 -> 0
B58: IO Period | C58: ='Subordinate Calculator'!P14 -> 1 | E58: Foreclosure Period | F58: ='Subordinate Calculator'!P35 -> 0
B59: Loan Term Post IO | C59: ='Subordinate Calculator'!P15 -> 1 | E59: Fixed Expense | F59: ='Subordinate Calculator'!P36 -> 5000
B60: Loan Term (P&I) | C60: ='Subordinate Calculator'!P16 -> 0.4 | E60: Variable Expense | F60: ='Subordinate Calculator'!P37 -> 0.05
B61: Documentation | C61: ='Subordinate Calculator'!P18 -> 1
B62: First Time Buyer | C62: ='Subordinate Calculator'!P20 ->  | E62: Foreclosure Frequency | F62: ='Subordinate Calculator'!P42 -> 
B63: Investor/Owner Occ | C63: ='Subordinate Calculator'!P21 -> 1 | E63: MVD | F63: ='Subordinate Calculator'!P43 -> 0
B64: Inner City and High Density | C64: ='Subordinate Calculator'!P22 -> 1 | E64: $ Loss | F64: ='Subordinate Calculator'!P44 -> -5001
B65: Total Multiplier Transaction | C65: ='Subordinate Calculator'!P38 ->  | E65: % Loss Severity | F65: ='Subordinate Calculator'!P45 -> 5001
E66: Credit Support | F66: ='Subordinate Calculator'!P46 -> 
B70: Current Liabilities
B72: Liability Type | C72: Liability Credit Limit | E72: Repayments: | F72: Discharge
B73: =IF(Input!D108=0,"",Input!D108) ->  | C73: =IF(Input!H108=0,"",Input!H108) ->  | E73: =IF(Input!P108=0,"",Input!P108) ->  | F73: =IF(Input!N108="","",Input!N108) -> 
B74: =IF(Input!D109=0,"",Input!D109) ->  | C74: =IF(Input!H109=0,"",Input!H109) ->  | E74: =IF(Input!P109=0,"",Input!P109) ->  | F74: =IF(Input!N109="","",Input!N109) -> 
B75: =IF(Input!D110=0,"",Input!D110) ->  | C75: =IF(Input!H110=0,"",Input!H110) ->  | E75: =IF(Input!P110=0,"",Input!P110) ->  | F75: =IF(Input!N110="","",Input!N110) -> 
B76: =IF(Input!D111=0,"",Input!D111) ->  | C76: =IF(Input!H111=0,"",Input!H111) ->  | E76: =IF(Input!P111=0,"",Input!P111) ->  | F76: =IF(Input!N111="","",Input!N111) -> 
B77: =IF(Input!D112=0,"",Input!D112) ->  | C77: =IF(Input!H112=0,"",Input!H112) ->  | E77: =IF(Input!P112=0,"",Input!P112) ->  | F77: =IF(Input!N112="","",Input!N112) -> 
B78: =IF(Input!D113=0,"",Input!D113) ->  | C78: =IF(Input!H113=0,"",Input!H113) ->  | E78: =IF(Input!P113=0,"",Input!P113) ->  | F78: =IF(Input!N113="","",Input!N113) -> 
B79: =IF(Input!D114=0,"",Input!D114) ->  | C79: =IF(Input!H114=0,"",Input!H114) ->  | E79: =IF(Input!P114=0,"",Input!P114) ->  | F79: =IF(Input!N114="","",Input!N114) -> 
B80: =IF(Input!D115=0,"",Input!D115) ->  | C80: =IF(Input!H115=0,"",Input!H115) ->  | E80: =IF(Input!P115=0,"",Input!P115) ->  | F80: =IF(Input!N115="","",Input!N115) -> 
B81: =IF(Input!D116=0,"",Input!D116) ->  | C81: =IF(Input!H116=0,"",Input!H116) ->  | E81: =IF(Input!P116=0,"",Input!P116) ->  | F81: =IF(Input!N116="","",Input!N116) -> 
B82: =IF(Input!D117=0,"",Input!D117) ->  | C82: =IF(Input!H117=0,"",Input!H117) ->  | E82: =IF(Input!P117=0,"",Input!P117) ->  | F82: =IF(Input!N117="","",Input!N117) -> 
B83: =IF(Input!D118=0,"",Input!D118) ->  | C83: =IF(Input!H118=0,"",Input!H118) ->  | E83: =IF(Input!P118=0,"",Input!P118) ->  | F83: =IF(Input!N118="","",Input!N118) -> 
B84: =IF(Input!D119=0,"",Input!D119) ->  | C84: =IF(Input!H119=0,"",Input!H119) ->  | E84: =IF(Input!P119=0,"",Input!P119) ->  | F84: =IF(Input!N119="","",Input!N119) -> 
B85: =IF(Input!D120=0,"",Input!D120) ->  | C85: =IF(Input!H120=0,"",Input!H120) ->  | E85: =IF(Input!P120=0,"",Input!P120) ->  | F85: =IF(Input!N120="","",Input!N120) -> 
B86: =IF(Input!D121=0,"",Input!D121) ->  | C86: =IF(Input!H121=0,"",Input!H121) ->  | E86: =IF(Input!P121=0,"",Input!P121) ->  | F86: =IF(Input!N121="","",Input!N121) -> 
B87: =IF(Input!D122=0,"",Input!D122) ->  | C87: =IF(Input!H122=0,"",Input!H122) ->  | E87: =IF(Input!P122=0,"",Input!P122) ->  | F87: =IF(Input!N122="","",Input!N122) -> 
B88: =IF(Input!D123=0,"",Input!D123) ->  | C88: =IF(Input!H123=0,"",Input!H123) ->  | E88: =IF(Input!P123=0,"",Input!P123) ->  | F88: =IF(Input!N123="","",Input!N123) -> 
B89: =IF(Input!D124=0,"",Input!D124) ->  | C89: =IF(Input!H124=0,"",Input!H124) ->  | E89: =IF(Input!P124=0,"",Input!P124) ->  | F89: =IF(Input!N124="","",Input!N124) -> 
B90: =IF(Input!D125=0,"",Input!D125) ->  | C90: =IF(Input!H125=0,"",Input!H125) ->  | E90: =IF(Input!P125=0,"",Input!P125) ->  | F90: =IF(Input!N125="","",Input!N125) -> 
B91: =IF(Input!D126=0,"",Input!D126) ->  | C91: =IF(Input!H126=0,"",Input!H126) ->  | E91: =IF(Input!P126=0,"",Input!P126) ->  | F91: =IF(Input!N126="","",Input!N126) -> 
B92: =IF(Input!D127=0,"",Input!D127) ->  | C92: =IF(Input!H127=0,"",Input!H127) ->  | E92: =IF(Input!P127=0,"",Input!P127) ->  | F92: =IF(Input!N127="","",Input!N127) -> 
B93: =IF(Input!D128=0,"",Input!D128) ->  | C93: =IF(Input!H128=0,"",Input!H128) ->  | E93: =IF(Input!P128=0,"",Input!P128) ->  | F93: =IF(Input!N128="","",Input!N128) -> 
F95: Page 2

Sheet Loan Works Drop (hidden)
A1: # | B1: Loan Field | C1: Specific Loan Input
A2: 1 | B2: Loan ID | C2: 1
A3: =OFFSET(A3,-1,)+1 -> 2 | B3: Issuer | C3: tester
A4: 3 | B4: Loan Type | C4: Sub-prime
A5: 4 | B5: Borrower Group ID | C5: 1
A6: 5 | B6: Borrower Residency | C6: Australian
A7: 6 | B7: Current Loan Balance | C7: 1000000
A8: 7 | B8: Current LTV | C8: 0.7
A9: 8 | B9: Documentation | C9: Full Doc
A10: 9 | B10: Interest Type | C10: Variable
A11: 10 | B11: Line Of Credit | C11: No
A12: 11 | B12: Property Occupancy | C12: Investment
A13: 12 | B13: Original Loan Balance | C13: 1000000
A14: 13 | B14: Facility limit | C14: -1
A15: 14 | B15: Original LTV | C15: 0
A16: 15 | B16: Repayment Method | C16: Interest Only
A17: 16 | B17: Product
A18: 17 | B18: Post Code | C18: 2000
A19: 18 | B19: Location | C19: NSW Metro
A20: 19 | B20: Total Valuation | C20: 1428571.429
A21: 20 | B21: Settlement Date | C21: 2018-04-30
A22: 21 | B22: Maturity Date | C22: 2048-04-30
A23: 22 | B23: Fixed Term Remaining in Years | C23: -1
A24: 23 | B24: IO Period Remaining in Years | C24: 3
A25: 24 | B25: Number of Days in Arrears | C25: 0
A26: 25 | B26: Scheduled Loan Balance | C26: 1000000
A27: 26 | B27: Employment | C27: PAYE/Full Time
A28: 27 | B28: Country of Loan Origination | C28: Australia
A29: 28 | B29: First Time Buyer | C29: No
A30: 29 | B30: Lenders Mortgage Insurance | C30: N/A
A31: 30 | B31: Loan Purpose | C31: Purchase New
A32: 31 | B32: Credit History | C32: 1
A33: 32 | B33: Type of Residence | C33: High Density
A34: 33 | B34: Scheduled LVR | C34: 0.7
A35: 34 | B35: Years Business in Operation (for self-employed) | C35: 0
A36: 35 | B36: Seasoning | C36: =INT(YEARFRAC(C21,C49,3)*12) -> 25
A37: 36 | B37: Amortising Period Post IO in Years | C37: 27
A38: 37 | B38: Interest Rate (%) | C38: 0.0969
A39: 38 | B39: Discount Loan | C39: No
A40: 39 | B40: Further Advances | C40: No
A41: =OFFSET(A41,-1,)+1 -> 40 | B41: Further Redraw | C41: No
A42: 41 | B42: DSCR | C42: -1
A43: 42 | B43: Sources Documentation | C43: 2
A44: 43 | B44: Times Arrears | C44: 0
A45: 44 | B45: Credit History Years Ago | C45: 0.498630137
A46: 45 | B46: Tax Returns | C46: No
A47: 46 | B47: Savings Verified | C47: No
A48: 47 | B48: Valuation Type | C48: N/A
A49: 48 | B49: Pool Date | C49: 2020-05-31
A50: 49 | B50: State | C50: NSW
A51: 50 | B51: Metro; Non metro; Inner city | C51: Metro

Sheet Calculations (hidden)
A2: *Calculate annualised income | G2: Gross Incomes | H2: Net Income | L2: Gross Income by Household | R2: Net Incomes by household
A3: Applicant Number | B3: Applicant | C3: Household | D3: Income | E3: Type | F3: Frequency | G3: Annualised | H3: Annualised | I3: Negative Gearing scaling | J3: Negative Gearing Attribution | L3: 1 | M3: 2 | N3: 3 | O3: 4 | P3: 5 | R3: 1 | S3: 2 | T3: 3 | U3: 4 | V3: 5
A4: 1 | B4: =Input!#REF! ->  | C4: =Input!#REF! ->  | D4: =Input!#REF! ->  | E4: =Input!#REF! ->  | F4: =Input!#REF! ->  | G4: =IF(B4=0,0,IFERROR(IF(OR(E4=$L$7,E4=$L$8,E4=$L$9,E4=$L$10,E4=$L$11,E4=$L$12),0,VLOOKUP(E4,Console!$T$3:$U$18,2,FALSE)*VLOOKUP(F4,Console!$X$3:$Y$9,2,FALSE)),0)*D4) ->  | H4: =IFERROR(IF(OR(E4=$L$7,E4=$L$8,E4=$L$9,E4=$L$10,E4=$L$11,E4=$L$12),VLOOKUP(E4,Console!$T$3:$U$18,2,FALSE)*VLOOKUP(F4,Console!$X$3:$Y$9,2,FALSE),0),0)*D4 ->  | I4: =(G4/20000)*G4 ->  | J4: =IFERROR(I4/SUM($I$4:$I$23),0) -> 0 | L4: =SUMIF($C$4:$C$23,R3,$G$4:$H$23)-IF(Console!$BQ$9=1,0,SUMIF(Calculations!$B$64:$B$68,Calculations!L3,Calculations!$G$64:$G$68)) -> 0 | M4: =SUMIF($C$4:$C$23,S3,$G$4:$H$23)-IF(Console!$BQ$9=1,0,SUMIF(Calculations!$B$64:$B$68,Calculations!M3,Calculations!$G$64:$G$68)) -> 0 | N4: =SUMIF($C$4:$C$23,T3,$G$4:$H$23)-IF(Console!$BQ$9=1,0,SUMIF(Calculations!$B$64:$B$68,Calculations!N3,Calculations!$G$64:$G$68)) -> 0 | O4: =SUMIF($C$4:$C$23,U3,$G$4:$H$23)-IF(Console!$BQ$9=1,0,SUMIF(Calculations!$B$64:$B$68,Calculations!O3,Calculations!$G$64:$G$68)) -> 0 | P4: =SUMIF($C$4:$C$23,V3,$G$4:$H$23)-IF(Console!$BQ$9=1,0,SUMIF(Calculations!$B$64:$B$68,Calculations!P3,Calculations!$G$64:$G$68)) -> 0 | R4: =SUMIF($C$4:$C$23,R3,$H$4:$H$23) -> 0 | S4: =SUMIF($C$4:$C$23,S3,$H$4:$H$23) -> 0 | T4: =SUMIF($C$4:$C$23,T3,$H$4:$H$23) -> 0 | U4: =SUMIF($C$4:$C$23,U3,$H$4:$H$23) -> 0 | V4: =SUMIF($C$4:$C$23,V3,$H$4:$H$23) -> 0
A5: 2 | B5: =Input!#REF! ->  | C5: =Input!#REF! ->  | D5: =Input!#REF! ->  | E5: =Input!#REF! ->  | F5: =Input!#REF! ->  | G5: =IF(B5=0,0,IFERROR(IF(OR(E5=$L$7,E5=$L$8,E5=$L$9,E5=$L$10,E5=$L$11,E5=$L$12),0,VLOOKUP(E5,Console!$T$3:$U$18,2,FALSE)*VLOOKUP(F5,Console!$X$3:$Y$9,2,FALSE)),0)*D5) ->  | H5: =IFERROR(IF(OR(E5=$L$7,E5=$L$8,E5=$L$9,E5=$L$10,E5=$L$11,E5=$L$12),VLOOKUP(E5,Console!$T$3:$U$18,2,FALSE)*VLOOKUP(F5,Console!$X$3:$Y$9,2,FALSE),0),0)*D5 ->  | I5: =(G5/20000)*G5 ->  | J5: =IFERROR(I5/SUM($I$4:$I$23),0) -> 0 | K5: HEM | L5: =HLOOKUP(L4+R4,HEM!$F$1:$S$2,2,TRUE) -> 3 | M5: =HLOOKUP(M4+S4,HEM!$F$1:$S$2,2,TRUE) -> 3 | N5: =HLOOKUP(N4+T4,HEM!$F$1:$S$2,2,TRUE) -> 3 | O5: =HLOOKUP(O4+U4,HEM!$F$1:$S$2,2,TRUE) -> 3 | P5: =HLOOKUP(P4+V4,HEM!$F$1:$S$2,2,TRUE) -> 3
A6: 3 | B6: =Input!#REF! ->  | C6: =Input!#REF! ->  | D6: =Input!#REF! ->  | E6: =Input!#REF! ->  | F6: =Input!#REF! ->  | G6: =IF(B6=0,0,IFERROR(IF(OR(E6=$L$7,E6=$L$8,E6=$L$9,E6=$L$10,E6=$L$11,E6=$L$12),0,VLOOKUP(E6,Console!$T$3:$U$18,2,FALSE)*VLOOKUP(F6,Console!$X$3:$Y$9,2,FALSE)),0)*D6) ->  | H6: =IFERROR(IF(OR(E6=$L$7,E6=$L$8,E6=$L$9,E6=$L$10,E6=$L$11,E6=$L$12),VLOOKUP(E6,Console!$T$3:$U$18,2,FALSE)*VLOOKUP(F6,Console!$X$3:$Y$9,2,FALSE),0),0)*D6 ->  | J6: 0 | L6: List of Net Income Salary Types
A7: 4 | B7: =Input!#REF! ->  | C7: =Input!#REF! ->  | D7: =Input!#REF! ->  | E7: =Input!#REF! ->  | F7: =Input!#REF! ->  | G7: =IF(B7=0,0,IFERROR(IF(OR(E7=$L$7,E7=$L$8,E7=$L$9,E7=$L$10,E7=$L$11,E7=$L$12),0,VLOOKUP(E7,Console!$T$3:$U$18,2,FALSE)*VLOOKUP(F7,Console!$X$3:$Y$9,2,FALSE)),0)*D7) ->  | H7: =IFERROR(IF(OR(E7=$L$7,E7=$L$8,E7=$L$9,E7=$L$10,E7=$L$11,E7=$L$12),VLOOKUP(E7,Console!$T$3:$U$18,2,FALSE)*VLOOKUP(F7,Console!$X$3:$Y$9,2,FALSE),0),0)*D7 ->  | J7: 0 | L7: Net Salary | R7: Total Interest for the Loan at assessment rate:
A8: 5 | B8: =Input!#REF! ->  | C8: =Input!#REF! ->  | D8: =Input!#REF! ->  | E8: =Input!#REF! ->  | F8: =Input!#REF! ->  | G8: =IF(B8=0,0,IFERROR(IF(OR(E8=$L$7,E8=$L$8,E8=$L$9,E8=$L$10,E8=$L$11,E8=$L$12),0,VLOOKUP(E8,Console!$T$3:$U$18,2,FALSE)*VLOOKUP(F8,Console!$X$3:$Y$9,2,FALSE)),0)*D8) ->  | H8: =IFERROR(IF(OR(E8=$L$7,E8=$L$8,E8=$L$9,E8=$L$10,E8=$L$11,E8=$L$12),VLOOKUP(E8,Console!$T$3:$U$18,2,FALSE)*VLOOKUP(F8,Console!$X$3:$Y$9,2,FALSE),0),0)*D8 ->  | J8: 0 | L8: Centrelink | Q8: P&I | R8: Balance | S8: Interest | T8: Pmt | U8: Final Balance
A9: 6 | B9: =Input!#REF! ->  | C9: =Input!#REF! ->  | D9: =Input!#REF! ->  | E9: =Input!#REF! ->  | F9: =Input!#REF! ->  | G9: =IF(B9=0,0,IFERROR(IF(OR(E9=$L$7,E9=$L$8,E9=$L$9,E9=$L$10,E9=$L$11,E9=$L$12),0,VLOOKUP(E9,Console!$T$3:$U$18,2,FALSE)*VLOOKUP(F9,Console!$X$3:$Y$9,2,FALSE)),0)*D9) ->  | H9: =IFERROR(IF(OR(E9=$L$7,E9=$L$8,E9=$L$9,E9=$L$10,E9=$L$11,E9=$L$12),VLOOKUP(E9,Console!$T$3:$U$18,2,FALSE)*VLOOKUP(F9,Console!$X$3:$Y$9,2,FALSE),0),0)*D9 ->  | J9: 0 | L9: Child Support | Q9: 1 | R9: =SUMIF(Input!H16:H20,"Inv Property",Input!D16:D20) -> 0 | S9: =R9*Input!P12/12 -> 0 | T9: =IF(R9=0,0,-PMT(Input!$P$12/12,Input!$F$21*12,$R$9,0,0)) -> 0 | U9: =R9+S9-T9 -> 0
A10: 7 | B10: =Input!#REF! ->  | C10: =Input!#REF! ->  | D10: =Input!#REF! ->  | E10: =Input!#REF! ->  | F10: =Input!#REF! ->  | G10: =IF(B10=0,0,IFERROR(IF(OR(E10=$L$7,E10=$L$8,E10=$L$9,E10=$L$10,E10=$L$11,E10=$L$12),0,VLOOKUP(E10,Console!$T$3:$U$18,2,FALSE)*VLOOKUP(F10,Console!$X$3:$Y$9,2,FALSE)),0)*D10) ->  | H10: =IFERROR(IF(OR(E10=$L$7,E10=$L$8,E10=$L$9,E10=$L$10,E10=$L$11,E10=$L$12),VLOOKUP(E10,Console!$T$3:$U$18,2,FALSE)*VLOOKUP(F10,Console!$X$3:$Y$9,2,FALSE),0),0)*D10 ->  | J10: 0 | L10: =IF(Console!BQ3=2,Console!$T$13,"NA") -> NA | Q10: 2 | R10: =U9 -> 0 | S10: =R10*Input!$P$12/12 -> 0 | T10: =IF(R10=0,0,-PMT(Input!$P$12/12,Input!$F$21*12,$R$9,0,0)) -> 0 | U10: =R10+S10-T10 -> 0
A11: 8 | B11: =Input!#REF! ->  | C11: =Input!#REF! ->  | D11: =Input!#REF! ->  | E11: =Input!#REF! ->  | F11: =Input!#REF! ->  | G11: =IF(B11=0,0,IFERROR(IF(OR(E11=$L$7,E11=$L$8,E11=$L$9,E11=$L$10,E11=$L$11,E11=$L$12),0,VLOOKUP(E11,Console!$T$3:$U$18,2,FALSE)*VLOOKUP(F11,Console!$X$3:$Y$9,2,FALSE)),0)*D11) ->  | H11: =IFERROR(IF(OR(E11=$L$7,E11=$L$8,E11=$L$9,E11=$L$10,E11=$L$11,E11=$L$12),VLOOKUP(E11,Console!$T$3:$U$18,2,FALSE)*VLOOKUP(F11,Console!$X$3:$Y$9,2,FALSE),0),0)*D11 ->  | J11: 0 | L11: =IF(Console!BQ3=2,Console!$T$14,"NA") -> NA | Q11: 3 | R11: =U10 -> 0 | S11: =R11*Input!$P$12/12 -> 0 | T11: =IF(R11=0,0,-PMT(Input!$P$12/12,Input!$F$21*12,$R$9,0,0)) -> 0 | U11: =R11+S11-T11 -> 0
A12: 9 | B12: =Input!#REF! ->  | C12: =Input!#REF! ->  | D12: =Input!#REF! ->  | E12: =Input!#REF! ->  | F12: =Input!#REF! ->  | G12: =IF(B12=0,0,IFERROR(IF(OR(E12=$L$7,E12=$L$8,E12=$L$9,E12=$L$10,E12=$L$11,E12=$L$12),0,VLOOKUP(E12,Console!$T$3:$U$18,2,FALSE)*VLOOKUP(F12,Console!$X$3:$Y$9,2,FALSE)),0)*D12) ->  | H12: =IFERROR(IF(OR(E12=$L$7,E12=$L$8,E12=$L$9,E12=$L$10,E12=$L$11,E12=$L$12),VLOOKUP(E12,Console!$T$3:$U$18,2,FALSE)*VLOOKUP(F12,Console!$X$3:$Y$9,2,FALSE),0),0)*D12 ->  | J12: 0 | L12: =IF(Console!BQ3=2,Console!$T$18,"NA") -> NA | Q12: 4 | R12: 0 | S12: =R12*Input!$P$12/12 -> 0 | T12: =IF(R12=0,0,-PMT(Input!$P$12/12,Input!$F$21*12,$R$9,0,0)) -> 0 | U12: 0
A13: 10 | B13: =Input!#REF! ->  | C13: =Input!#REF! ->  | D13: =Input!#REF! ->  | E13: =Input!#REF! ->  | F13: =Input!#REF! ->  | G13: =IF(B13=0,0,IFERROR(IF(OR(E13=$L$7,E13=$L$8,E13=$L$9,E13=$L$10,E13=$L$11,E13=$L$12),0,VLOOKUP(E13,Console!$T$3:$U$18,2,FALSE)*VLOOKUP(F13,Console!$X$3:$Y$9,2,FALSE)),0)*D13) ->  | H13: =IFERROR(IF(OR(E13=$L$7,E13=$L$8,E13=$L$9,E13=$L$10,E13=$L$11,E13=$L$12),VLOOKUP(E13,Console!$T$3:$U$18,2,FALSE)*VLOOKUP(F13,Console!$X$3:$Y$9,2,FALSE),0),0)*D13 ->  | J13: 0 | Q13: 5 | R13: 0 | S13: =R13*Input!$P$12/12 -> 0 | T13: =IF(R13=0,0,-PMT(Input!$P$12/12,Input!$F$21*12,$R$9,0,0)) -> 0 | U13: 0
A14: 11 | B14: =Input!#REF! ->  | C14: =Input!#REF! ->  | D14: =Input!#REF! ->  | E14: =Input!#REF! ->  | F14: =Input!#REF! ->  | G14: =IF(B14=0,0,IFERROR(IF(OR(E14=$L$7,E14=$L$8,E14=$L$9,E14=$L$10,E14=$L$11,E14=$L$12),0,VLOOKUP(E14,Console!$T$3:$U$18,2,FALSE)*VLOOKUP(F14,Console!$X$3:$Y$9,2,FALSE)),0)*D14) ->  | H14: =IFERROR(IF(OR(E14=$L$7,E14=$L$8,E14=$L$9,E14=$L$10,E14=$L$11,E14=$L$12),VLOOKUP(E14,Console!$T$3:$U$18,2,FALSE)*VLOOKUP(F14,Console!$X$3:$Y$9,2,FALSE),0),0)*D14 ->  | J14: 0 | Q14: 6 | R14: 0 | S14: =R14*Input!$P$12/12 -> 0 | T14: =IF(R14=0,0,-PMT(Input!$P$12/12,Input!$F$21*12,$R$9,0,0)) -> 0 | U14: 0
A15: 12 | B15: =Input!#REF! ->  | C15: =Input!#REF! ->  | D15: =Input!#REF! ->  | E15: =Input!#REF! ->  | F15: =Input!#REF! ->  | G15: =IF(B15=0,0,IFERROR(IF(OR(E15=$L$7,E15=$L$8,E15=$L$9,E15=$L$10,E15=$L$11,E15=$L$12),0,VLOOKUP(E15,Console!$T$3:$U$18,2,FALSE)*VLOOKUP(F15,Console!$X$3:$Y$9,2,FALSE)),0)*D15) ->  | H15: =IFERROR(IF(OR(E15=$L$7,E15=$L$8,E15=$L$9,E15=$L$10,E15=$L$11,E15=$L$12),VLOOKUP(E15,Console!$T$3:$U$18,2,FALSE)*VLOOKUP(F15,Console!$X$3:$Y$9,2,FALSE),0),0)*D15 ->  | J15: 0 | Q15: 7 | R15: 0 | S15: =R15*Input!$P$12/12 -> 0 | T15: =IF(R15=0,0,-PMT(Input!$P$12/12,Input!$F$21*12,$R$9,0,0)) -> 0 | U15: 0
A16: 13 | B16: =Input!#REF! ->  | C16: =Input!#REF! ->  | D16: =Input!#REF! ->  | E16: =Input!#REF! ->  | F16: =Input!#REF! ->  | G16: =IF(B16=0,0,IFERROR(IF(OR(E16=$L$7,E16=$L$8,E16=$L$9,E16=$L$10,E16=$L$11,E16=$L$12),0,VLOOKUP(E16,Console!$T$3:$U$18,2,FALSE)*VLOOKUP(F16,Console!$X$3:$Y$9,2,FALSE)),0)*D16) ->  | H16: =IFERROR(IF(OR(E16=$L$7,E16=$L$8,E16=$L$9,E16=$L$10,E16=$L$11,E16=$L$12),VLOOKUP(E16,Console!$T$3:$U$18,2,FALSE)*VLOOKUP(F16,Console!$X$3:$Y$9,2,FALSE),0),0)*D16 ->  | J16: 0 | Q16: 8 | R16: 0 | S16: =R16*Input!$P$12/12 -> 0 | T16: =IF(R16=0,0,-PMT(Input!$P$12/12,Input!$F$21*12,$R$9,0,0)) -> 0 | U16: 0
A17: 14 | B17: =Input!#REF! ->  | C17: =Input!#REF! ->  | D17: =Input!#REF! ->  | E17: =Input!#REF! ->  | F17: =Input!#REF! ->  | G17: =IF(B17=0,0,IFERROR(IF(OR(E17=$L$7,E17=$L$8,E17=$L$9,E17=$L$10,E17=$L$11,E17=$L$12),0,VLOOKUP(E17,Console!$T$3:$U$18,2,FALSE)*VLOOKUP(F17,Console!$X$3:$Y$9,2,FALSE)),0)*D17) ->  | H17: =IFERROR(IF(OR(E17=$L$7,E17=$L$8,E17=$L$9,E17=$L$10,E17=$L$11,E17=$L$12),VLOOKUP(E17,Console!$T$3:$U$18,2,FALSE)*VLOOKUP(F17,Console!$X$3:$Y$9,2,FALSE),0),0)*D17 ->  | J17: 0 | Q17: 9 | R17: 0 | S17: =R17*Input!$P$12/12 -> 0 | T17: =IF(R17=0,0,-PMT(Input!$P$12/12,Input!$F$21*12,$R$9,0,0)) -> 0 | U17: 0
A18: 15 | B18: =Input!#REF! ->  | C18: =Input!#REF! ->  | D18: =Input!#REF! ->  | E18: =Input!#REF! ->  | F18: =Input!#REF! ->  | G18: =IF(B18=0,0,IFERROR(IF(OR(E18=$L$7,E18=$L$8,E18=$L$9,E18=$L$10,E18=$L$11,E18=$L$12),0,VLOOKUP(E18,Console!$T$3:$U$18,2,FALSE)*VLOOKUP(F18,Console!$X$3:$Y$9,2,FALSE)),0)*D18) ->  | H18: =IFERROR(IF(OR(E18=$L$7,E18=$L$8,E18=$L$9,E18=$L$10,E18=$L$11,E18=$L$12),VLOOKUP(E18,Console!$T$3:$U$18,2,FALSE)*VLOOKUP(F18,Console!$X$3:$Y$9,2,FALSE),0),0)*D18 ->  | J18: 0 | Q18: 10 | R18: 0 | S18: =R18*Input!$P$12/12 -> 0 | T18: =IF(R18=0,0,-PMT(Input!$P$12/12,Input!$F$21*12,$R$9,0,0)) -> 0 | U18: 0
A19: 16 | B19: =Input!#REF! ->  | C19: =Input!#REF! ->  | D19: =Input!#REF! ->  | E19: =Input!#REF! ->  | F19: =Input!#REF! ->  | G19: ='Income Calculators'!J26 -> 0 | H19: ='Income Calculators'!J33 -> 0 | I19: 0 | J19: 0 | Q19: 11 | R19: 0 | S19: =R19*Input!$P$12/12 -> 0 | T19: =IF(R19=0,0,-PMT(Input!$P$12/12,Input!$F$21*12,$R$9,0,0)) -> 0 | U19: 0
A20: 17 | B20: =Input!#REF! ->  | C20: =Input!#REF! ->  | D20: =Input!#REF! ->  | E20: =Input!#REF! ->  | F20: =Input!#REF! ->  | G20: ='Income Calculators'!L26 -> 0 | H20: ='Income Calculators'!L33 -> 0 | I20: 0 | J20: 0 | Q20: 12 | R20: 0 | S20: =R20*Input!$P$12/12 -> 0 | T20: =IF(R20=0,0,-PMT(Input!$P$12/12,Input!$F$21*12,$R$9,0,0)) -> 0 | U20: 0
A21: 18 | B21: =Input!#REF! ->  | C21: =Input!#REF! ->  | D21: =Input!#REF! ->  | E21: =Input!#REF! ->  | F21: =Input!#REF! ->  | G21: ='Income Calculators'!N26 -> 0 | H21: ='Income Calculators'!N33 -> 0 | I21: 0 | J21: 0 | Q21: Total Interest Year 1 | S21: =IF(Console!BQ3=1,SUM(S9:S20),0) -> 0
A22: 19 | B22: =Input!#REF! ->  | C22: =Input!#REF! ->  | D22: =Input!#REF! ->  | E22: =Input!#REF! ->  | F22: =Input!#REF! ->  | G22: ='Income Calculators'!P26 -> 0 | H22: ='Income Calculators'!P33 -> 0 | I22: 0 | J22: 0
A23: 20 | B23: =Input!#REF! ->  | C23: =Input!#REF! ->  | D23: =Input!#REF! ->  | E23: =Input!#REF! ->  | F23: =Input!#REF! ->  | G23: ='Income Calculators'!R26 -> 0 | H23: ='Income Calculators'!R33 -> 0 | I23: 0 | J23: 0
G24: =SUM(G4:H23) -> 
C25: 1 | D25: 2 | E25: 3 | F25: 4 | G25: 5 | H25: 6 | I25: 7 | J25: 8 | K25: 9 | L25: 10 | M25: 11 | N25: 12 | O25: 13 | P25: 14 | Q25: 15 | R25: 16 | S25: 17 | T25: 18 | U25: 19 | V25: 20
A26: Household | C26: =VLOOKUP(C27,$B$4:$C$23,2,FALSE) -> 
A27: *Transpose the Incomes | C27: =B4 ->  | D27: =B5 ->  | E27: =B6 ->  | F27: =B7 ->  | G27: =B8 ->  | H27: =B9 ->  | I27: =B10 ->  | J27: =B11 ->  | K27: =B12 ->  | L27: =B13 ->  | M27: =B14 ->  | N27: =B15 ->  | O27: =B16 ->  | P27: =B17 ->  | Q27: =B18 ->  | R27: =B19 ->  | S27: =B20 ->  | T27: =B21 ->  | U27: =B22 ->  | V27: =B23 -> 
A28: 1 | B28: =B4 ->  | C28: =IF($B28=C$27,$G4,0) ->  | D28: =IF($B28=D$27,$G4,0) -> 
A29: 2 | B29: =B5 ->  | D29: =IF($B29=D$27,$G5,0) -> 
A30: 3 | D30: =IF($B30=D$27,$G6,0) -> 
A31: 4 | D31: =IF($B31=D$27,$G7,0) -> 
A32: 5 | D32: =IF($B32=D$27,$G8,0) -> 
A33: 6 | D33: =IF($B33=D$27,$G9,0) -> 
A34: 7 | D34: =IF($B34=D$27,$G10,0) -> 
A35: 8 | D35: =IF($B35=D$27,$G11,0) -> 
A36: 9 | D36: =IF($B36=D$27,$G12,0) -> 
A37: 10 | D37: =IF($B37=D$27,$G13,0) -> 
A38: 11 | D38: =IF($B38=D$27,$G14,0) -> 
A39: 12 | D39: =IF($B39=D$27,$G15,0) -> 
A40: 13 | D40: =IF($B40=D$27,$G16,0) -> 
A41: 14 | D41: =IF($B41=D$27,$G17,0) -> 
A42: 15 | D42: =IF($B42=D$27,$G18,0) -> 
A43: 16 | D43: =IF($B43=D$27,$G19,0) -> 
A44: 17 | D44: =IF($B44=D$27,$G20,0) -> 
A45: 18 | D45: =IF($B45=D$27,$G21,0) -> 
A46: 19 | D46: =IF($B46=D$27,$G22,0) -> 
A47: 20 | D47: =IF($B47=D$27,$G23,0) ->  | W47: Total Gross Income
A48: *Row dedups incomes | C48: =SUM(C28:C47) ->  | D48: =IF(D27=C27,0,SUM(D28:D47)) ->  | E48: =IF(OR(E27=D27,E27=C27),0,SUM(E28:E47)) ->  | F48: =IF(OR(F27=E27,F27=D27,F27=C27),0,SUM(F28:F47)) ->  | G48: =IF(OR(G27=F27,G27=E27,G27=D27,G27=C27),0,SUM(G28:G47)) ->  | H48: =IF(OR(H27=G27,H27=F27,H27=E27,H27=D27,H27=C27),0,SUM(H28:H47)) ->  | I48: =IF(OR(I27=H27,I27=G27,I27=F27,I27=E27,I27=D27,I27=C27),0,SUM(I28:I47)) ->  | J48: =IF(OR(J27=I27,J27=H27,J27=G27,J27=F27,J27=E27,J27=D27,J27=C27),0,SUM(J28:J47)) ->  | K48: =IF(OR(K27=J27,K27=I27,K27=H27,K27=G27,K27=F27,K27=E27,K27=D27,K27=C27),0,SUM(K28:K47)) ->  | L48: =IF(OR(L27=K27,L27=J27,L27=I27,L27=H27,L27=G27,L27=F27,L27=E27,L27=D27,L27=C27),0,SUM(L28:L47)) ->  | M48: =IF(OR(M27=L27,M27=K27,M27=J27,M27=I27,M27=H27,M27=G27,M27=F27,M27=E27,M27=D27,M27=C27),0,SUM(M28:M47)) ->  | N48: =IF(OR(N27=M27,N27=L27,N27=K27,N27=J27,N27=I27,N27=H27,N27=G27,N27=F27,N27=E27,N27=D27,N27=C27),0,SUM(N28:N47)) ->  | O48: =IF(OR(O27=N27,O27=M27,O27=L27,O27=K27,O27=J27,O27=I27,O27=H27,O27=G27,O27=F27,O27=E27,O27=D27,O27=C27),0,SUM(O28:O47)) ->  | P48: =IF(OR(P27=O27,P27=N27,P27=M27,P27=L27,P27=K27,P27=J27,P27=I27,P27=H27,P27=G27,P27=F27,P27=E27,P27=D27,P27=C27),0,SUM(P28:P47)) ->  | Q48: =IF(OR(Q27=P27,Q27=O27,Q27=N27,Q27=M27,Q27=L27,Q27=K27,Q27=J27,Q27=I27,Q27=H27,Q27=G27,Q27=F27,Q27=E27,Q27=D27,Q27=C27),0,SUM(Q28:Q47)) ->  | R48: =IF(OR(R27=Q27,R27=P27,R27=O27,R27=N27,R27=M27,R27=L27,R27=K27,R27=J27,R27=I27,R27=H27,R27=G27,R27=F27,R27=E27,R27=D27,R27=C27),0,SUM(R28:R47)) ->  | S48: =IF(OR(S27=R27,S27=Q27,S27=P27,S27=O27,S27=N27,S27=M27,S27=L27,S27=K27,S27=J27,S27=I27,S27=H27,S27=G27,S27=F27,S27=E27,S27=D27,S27=C27),0,SUM(S28:S47)) ->  | T48: =IF(OR(T27=S27,T27=R27,T27=Q27,T27=P27,T27=O27,T27=N27,T27=M27,T27=L27,T27=K27,T27=J27,T27=I27,T27=H27,T27=G27,T27=F27,T27=E27,T27=D27,T27=C27),0,SUM(T28:T47)) ->  | U48: =IF(OR(U27=T27,U27=S27,U27=R27,U27=Q27,U27=P27,U27=O27,U27=N27,U27=M27,U27=L27,U27=K27,U27=J27,U27=I27,U27=H27,U27=G27,U27=F27,U27=E27,U27=D27,U27=C27),0,SUM(U28:U47)) ->  | V48: =IF(OR(V27=U27,V27=T27,V27=S27,V27=R27,V27=Q27,V27=P27,V27=O27,V27=N27,V27=M27,V27=L27,V27=K27,V27=J27,V27=I27,V27=H27,V27=G27,V27=F27,V27=E27,V27=D27,V27=C27),0,SUM(V28:V47)) ->  | W48: =SUM(C48:V48)+SUM(R4:V4) -> 
A49: *Reduced for negative gearing | C49: =IF(SUMIF($B$4:$B$23,Calculations!C$27,$J$4:$J$23)*$S$21<0,0,SUMIF($B$4:$B$23,Calculations!C$27,$J$4:$J$23)*$S$21)+IFERROR(VLOOKUP(C27,$C$103:$H$122,6,FALSE),0) -> 0 | D49: =IF(SUMIF($B$4:$B$23,Calculations!D$27,$J$4:$J$23)*$S$21<0,0,SUMIF($B$4:$B$23,Calculations!D$27,$J$4:$J$23)*$S$21)+IFERROR(VLOOKUP(D27,$C$103:$H$122,6,FALSE),0) -> 0 | E49: =IF(SUMIF($B$4:$B$23,Calculations!E$27,$J$4:$J$23)*$S$21<0,0,SUMIF($B$4:$B$23,Calculations!E$27,$J$4:$J$23)*$S$21)+IFERROR(VLOOKUP(E27,$C$103:$H$122,6,FALSE),0) -> 0 | F49: =IF(SUMIF($B$4:$B$23,Calculations!F$27,$J$4:$J$23)*$S$21<0,0,SUMIF($B$4:$B$23,Calculations!F$27,$J$4:$J$23)*$S$21)+IFERROR(VLOOKUP(F27,$C$103:$H$122,6,FALSE),0) -> 0 | G49: =IF(SUMIF($B$4:$B$23,Calculations!G$27,$J$4:$J$23)*$S$21<0,0,SUMIF($B$4:$B$23,Calculations!G$27,$J$4:$J$23)*$S$21)+IFERROR(VLOOKUP(G27,$C$103:$H$122,6,FALSE),0) -> 0 | H49: =IF(SUMIF($B$4:$B$23,Calculations!H$27,$J$4:$J$23)*$S$21<0,0,SUMIF($B$4:$B$23,Calculations!H$27,$J$4:$J$23)*$S$21)+IFERROR(VLOOKUP(H27,$C$103:$H$122,6,FALSE),0) -> 0 | I49: =IF(SUMIF($B$4:$B$23,Calculations!I$27,$J$4:$J$23)*$S$21<0,0,SUMIF($B$4:$B$23,Calculations!I$27,$J$4:$J$23)*$S$21)+IFERROR(VLOOKUP(I27,$C$103:$H$122,6,FALSE),0) -> 0 | J49: =IF(SUMIF($B$4:$B$23,Calculations!J$27,$J$4:$J$23)*$S$21<0,0,SUMIF($B$4:$B$23,Calculations!J$27,$J$4:$J$23)*$S$21)+IFERROR(VLOOKUP(J27,$C$103:$H$122,6,FALSE),0) -> 0 | K49: =IF(SUMIF($B$4:$B$23,Calculations!K$27,$J$4:$J$23)*$S$21<0,0,SUMIF($B$4:$B$23,Calculations!K$27,$J$4:$J$23)*$S$21)+IFERROR(VLOOKUP(K27,$C$103:$H$122,6,FALSE),0) -> 0 | L49: =IF(SUMIF($B$4:$B$23,Calculations!L$27,$J$4:$J$23)*$S$21<0,0,SUMIF($B$4:$B$23,Calculations!L$27,$J$4:$J$23)*$S$21)+IFERROR(VLOOKUP(L27,$C$103:$H$122,6,FALSE),0) -> 0 | M49: =IF(SUMIF($B$4:$B$23,Calculations!M$27,$J$4:$J$23)*$S$21<0,0,SUMIF($B$4:$B$23,Calculations!M$27,$J$4:$J$23)*$S$21)+IFERROR(VLOOKUP(M27,$C$103:$H$122,6,FALSE),0) -> 0 | N49: =IF(SUMIF($B$4:$B$23,Calculations!N$27,$J$4:$J$23)*$S$21<0,0,SUMIF($B$4:$B$23,Calculations!N$27,$J$4:$J$23)*$S$21)+IFERROR(VLOOKUP(N27,$C$103:$H$122,6,FALSE),0) -> 0 | O49: =IF(SUMIF($B$4:$B$23,Calculations!O$27,$J$4:$J$23)*$S$21<0,0,SUMIF($B$4:$B$23,Calculations!O$27,$J$4:$J$23)*$S$21)+IFERROR(VLOOKUP(O27,$C$103:$H$122,6,FALSE),0) -> 0 | P49: =IF(SUMIF($B$4:$B$23,Calculations!P$27,$J$4:$J$23)*$S$21<0,0,SUMIF($B$4:$B$23,Calculations!P$27,$J$4:$J$23)*$S$21)+IFERROR(VLOOKUP(P27,$C$103:$H$122,6,FALSE),0) -> 0 | Q49: =IF(SUMIF($B$4:$B$23,Calculations!Q$27,$J$4:$J$23)*$S$21<0,0,SUMIF($B$4:$B$23,Calculations!Q$27,$J$4:$J$23)*$S$21)+IFERROR(VLOOKUP(Q27,$C$103:$H$122,6,FALSE),0) -> 0 | R49: =IF(SUMIF($B$4:$B$23,Calculations!R$27,$J$4:$J$23)*$S$21<0,0,SUMIF($B$4:$B$23,Calculations!R$27,$J$4:$J$23)*$S$21)+IFERROR(VLOOKUP(R27,$C$103:$H$122,6,FALSE),0) -> 0 | S49: =IF(SUMIF($B$4:$B$23,Calculations!S$27,$J$4:$J$23)*$S$21<0,0,SUMIF($B$4:$B$23,Calculations!S$27,$J$4:$J$23)*$S$21)+IFERROR(VLOOKUP(S27,$C$103:$H$122,6,FALSE),0) -> 0 | T49: =IF(SUMIF($B$4:$B$23,Calculations!T$27,$J$4:$J$23)*$S$21<0,0,SUMIF($B$4:$B$23,Calculations!T$27,$J$4:$J$23)*$S$21)+IFERROR(VLOOKUP(T27,$C$103:$H$122,6,FALSE),0) -> 0 | U49: =IF(SUMIF($B$4:$B$23,Calculations!U$27,$J$4:$J$23)*$S$21<0,0,SUMIF($B$4:$B$23,Calculations!U$27,$J$4:$J$23)*$S$21)+IFERROR(VLOOKUP(U27,$C$103:$H$122,6,FALSE),0) -> 0 | V49: =IF(SUMIF($B$4:$B$23,Calculations!V$27,$J$4:$J$23)*$S$21<0,0,SUMIF($B$4:$B$23,Calculations!V$27,$J$4:$J$23)*$S$21)+IFERROR(VLOOKUP(V27,$C$103:$H$122,6,FALSE),0) -> 0
A50: *row calculates tax | C50: =IF(C48-C49<=Console!$AD$3,0,IF(Calculations!C48-C49<=Console!$AD$4,Console!$AE$4+Console!$AF$4*(Calculations!C48-C49-Console!$AC$4),IF(Calculations!C48-C49<=Console!$AD$5,Console!$AE$5+Console!$AF$5*(Calculations!C48-C49-Console!$AC$5),IF(Calculations!C48-C49<=Console!$AD$6,Console!$AE$6+Console!$AF$6*(Calculations!C48-C49-Console!$AC$6),Console!$AE$7+Console!$AF$7*(Calculations!C48-C49-Console!$AC$7))))) ->  | D50: =IF(D48-D49<=Console!$AD$3,0,IF(Calculations!D48-D49<=Console!$AD$4,Console!$AE$4+Console!$AF$4*(Calculations!D48-D49-Console!$AC$4),IF(Calculations!D48-D49<=Console!$AD$5,Console!$AE$5+Console!$AF$5*(Calculations!D48-D49-Console!$AC$5),IF(Calculations!D48-D49<=Console!$AD$6,Console!$AE$6+Console!$AF$6*(Calculations!D48-D49-Console!$AC$6),Console!$AE$7+Console!$AF$7*(Calculations!D48-D49-Console!$AC$7))))) ->  | E50: =IF(E48-E49<=Console!$AD$3,0,IF(Calculations!E48-E49<=Console!$AD$4,Console!$AE$4+Console!$AF$4*(Calculations!E48-E49-Console!$AC$4),IF(Calculations!E48-E49<=Console!$AD$5,Console!$AE$5+Console!$AF$5*(Calculations!E48-E49-Console!$AC$5),IF(Calculations!E48-E49<=Console!$AD$6,Console!$AE$6+Console!$AF$6*(Calculations!E48-E49-Console!$AC$6),Console!$AE$7+Console!$AF$7*(Calculations!E48-E49-Console!$AC$7))))) ->  | F50: =IF(F48-F49<=Console!$AD$3,0,IF(Calculations!F48-F49<=Console!$AD$4,Console!$AE$4+Console!$AF$4*(Calculations!F48-F49-Console!$AC$4),IF(Calculations!F48-F49<=Console!$AD$5,Console!$AE$5+Console!$AF$5*(Calculations!F48-F49-Console!$AC$5),IF(Calculations!F48-F49<=Console!$AD$6,Console!$AE$6+Console!$AF$6*(Calculations!F48-F49-Console!$AC$6),Console!$AE$7+Console!$AF$7*(Calculations!F48-F49-Console!$AC$7))))) ->  | G50: =IF(G48-G49<=Console!$AD$3,0,IF(Calculations!G48-G49<=Console!$AD$4,Console!$AE$4+Console!$AF$4*(Calculations!G48-G49-Console!$AC$4),IF(Calculations!G48-G49<=Console!$AD$5,Console!$AE$5+Console!$AF$5*(Calculations!G48-G49-Console!$AC$5),IF(Calculations!G48-G49<=Console!$AD$6,Console!$AE$6+Console!$AF$6*(Calculations!G48-G49-Console!$AC$6),Console!$AE$7+Console!$AF$7*(Calculations!G48-G49-Console!$AC$7))))) ->  | H50: =IF(H48-H49<=Console!$AD$3,0,IF(Calculations!H48-H49<=Console!$AD$4,Console!$AE$4+Console!$AF$4*(Calculations!H48-H49-Console!$AC$4),IF(Calculations!H48-H49<=Console!$AD$5,Console!$AE$5+Console!$AF$5*(Calculations!H48-H49-Console!$AC$5),IF(Calculations!H48-H49<=Console!$AD$6,Console!$AE$6+Console!$AF$6*(Calculations!H48-H49-Console!$AC$6),Console!$AE$7+Console!$AF$7*(Calculations!H48-H49-Console!$AC$7))))) ->  | I50: =IF(I48-I49<=Console!$AD$3,0,IF(Calculations!I48-I49<=Console!$AD$4,Console!$AE$4+Console!$AF$4*(Calculations!I48-I49-Console!$AC$4),IF(Calculations!I48-I49<=Console!$AD$5,Console!$AE$5+Console!$AF$5*(Calculations!I48-I49-Console!$AC$5),IF(Calculations!I48-I49<=Console!$AD$6,Console!$AE$6+Console!$AF$6*(Calculations!I48-I49-Console!$AC$6),Console!$AE$7+Console!$AF$7*(Calculations!I48-I49-Console!$AC$7))))) ->  | J50: =IF(J48-J49<=Console!$AD$3,0,IF(Calculations!J48-J49<=Console!$AD$4,Console!$AE$4+Console!$AF$4*(Calculations!J48-J49-Console!$AC$4),IF(Calculations!J48-J49<=Console!$AD$5,Console!$AE$5+Console!$AF$5*(Calculations!J48-J49-Console!$AC$5),IF(Calculations!J48-J49<=Console!$AD$6,Console!$AE$6+Console!$AF$6*(Calculations!J48-J49-Console!$AC$6),Console!$AE$7+Console!$AF$7*(Calculations!J48-J49-Console!$AC$7))))) ->  | K50: =IF(K48-K49<=Console!$AD$3,0,IF(Calculations!K48-K49<=Console!$AD$4,Console!$AE$4+Console!$AF$4*(Calculations!K48-K49-Console!$AC$4),IF(Calculations!K48-K49<=Console!$AD$5,Console!$AE$5+Console!$AF$5*(Calculations!K48-K49-Console!$AC$5),IF(Calculations!K48-K49<=Console!$AD$6,Console!$AE$6+Console!$AF$6*(Calculations!K48-K49-Console!$AC$6),Console!$AE$7+Console!$AF$7*(Calculations!K48-K49-Console!$AC$7))))) ->  | L50: =IF(L48-L49<=Console!$AD$3,0,IF(Calculations!L48-L49<=Console!$AD$4,Console!$AE$4+Console!$AF$4*(Calculations!L48-L49-Console!$AC$4),IF(Calculations!L48-L49<=Console!$AD$5,Console!$AE$5+Console!$AF$5*(Calculations!L48-L49-Console!$AC$5),IF(Calculations!L48-L49<=Console!$AD$6,Console!$AE$6+Console!$AF$6*(Calculations!L48-L49-Console!$AC$6),Console!$AE$7+Console!$AF$7*(Calculations!L48-L49-Console!$AC$7))))) ->  | M50: =IF(M48-M49<=Console!$AD$3,0,IF(Calculations!M48-M49<=Console!$AD$4,Console!$AE$4+Console!$AF$4*(Calculations!M48-M49-Console!$AC$4),IF(Calculations!M48-M49<=Console!$AD$5,Console!$AE$5+Console!$AF$5*(Calculations!M48-M49-Console!$AC$5),IF(Calculations!M48-M49<=Console!$AD$6,Console!$AE$6+Console!$AF$6*(Calculations!M48-M49-Console!$AC$6),Console!$AE$7+Console!$AF$7*(Calculations!M48-M49-Console!$AC$7))))) ->  | N50: =IF(N48-N49<=Console!$AD$3,0,IF(Calculations!N48-N49<=Console!$AD$4,Console!$AE$4+Console!$AF$4*(Calculations!N48-N49-Console!$AC$4),IF(Calculations!N48-N49<=Console!$AD$5,Console!$AE$5+Console!$AF$5*(Calculations!N48-N49-Console!$AC$5),IF(Calculations!N48-N49<=Console!$AD$6,Console!$AE$6+Console!$AF$6*(Calculations!N48-N49-Console!$AC$6),Console!$AE$7+Console!$AF$7*(Calculations!N48-N49-Console!$AC$7))))) ->  | O50: =IF(O48-O49<=Console!$AD$3,0,IF(Calculations!O48-O49<=Console!$AD$4,Console!$AE$4+Console!$AF$4*(Calculations!O48-O49-Console!$AC$4),IF(Calculations!O48-O49<=Console!$AD$5,Console!$AE$5+Console!$AF$5*(Calculations!O48-O49-Console!$AC$5),IF(Calculations!O48-O49<=Console!$AD$6,Console!$AE$6+Console!$AF$6*(Calculations!O48-O49-Console!$AC$6),Console!$AE$7+Console!$AF$7*(Calculations!O48-O49-Console!$AC$7))))) ->  | P50: =IF(P48-P49<=Console!$AD$3,0,IF(Calculations!P48-P49<=Console!$AD$4,Console!$AE$4+Console!$AF$4*(Calculations!P48-P49-Console!$AC$4),IF(Calculations!P48-P49<=Console!$AD$5,Console!$AE$5+Console!$AF$5*(Calculations!P48-P49-Console!$AC$5),IF(Calculations!P48-P49<=Console!$AD$6,Console!$AE$6+Console!$AF$6*(Calculations!P48-P49-Console!$AC$6),Console!$AE$7+Console!$AF$7*(Calculations!P48-P49-Console!$AC$7))))) ->  | Q50: =IF(Q48-Q49<=Console!$AD$3,0,IF(Calculations!Q48-Q49<=Console!$AD$4,Console!$AE$4+Console!$AF$4*(Calculations!Q48-Q49-Console!$AC$4),IF(Calculations!Q48-Q49<=Console!$AD$5,Console!$AE$5+Console!$AF$5*(Calculations!Q48-Q49-Console!$AC$5),IF(Calculations!Q48-Q49<=Console!$AD$6,Console!$AE$6+Console!$AF$6*(Calculations!Q48-Q49-Console!$AC$6),Console!$AE$7+Console!$AF$7*(Calculations!Q48-Q49-Console!$AC$7))))) ->  | R50: =IF(R48-R49<=Console!$AD$3,0,IF(Calculations!R48-R49<=Console!$AD$4,Console!$AE$4+Console!$AF$4*(Calculations!R48-R49-Console!$AC$4),IF(Calculations!R48-R49<=Console!$AD$5,Console!$AE$5+Console!$AF$5*(Calculations!R48-R49-Console!$AC$5),IF(Calculations!R48-R49<=Console!$AD$6,Console!$AE$6+Console!$AF$6*(Calculations!R48-R49-Console!$AC$6),Console!$AE$7+Console!$AF$7*(Calculations!R48-R49-Console!$AC$7))))) ->  | S50: =IF(S48-S49<=Console!$AD$3,0,IF(Calculations!S48-S49<=Console!$AD$4,Console!$AE$4+Console!$AF$4*(Calculations!S48-S49-Console!$AC$4),IF(Calculations!S48-S49<=Console!$AD$5,Console!$AE$5+Console!$AF$5*(Calculations!S48-S49-Console!$AC$5),IF(Calculations!S48-S49<=Console!$AD$6,Console!$AE$6+Console!$AF$6*(Calculations!S48-S49-Console!$AC$6),Console!$AE$7+Console!$AF$7*(Calculations!S48-S49-Console!$AC$7))))) ->  | T50: =IF(T48-T49<=Console!$AD$3,0,IF(Calculations!T48-T49<=Console!$AD$4,Console!$AE$4+Console!$AF$4*(Calculations!T48-T49-Console!$AC$4),IF(Calculations!T48-T49<=Console!$AD$5,Console!$AE$5+Console!$AF$5*(Calculations!T48-T49-Console!$AC$5),IF(Calculations!T48-T49<=Console!$AD$6,Console!$AE$6+Console!$AF$6*(Calculations!T48-T49-Console!$AC$6),Console!$AE$7+Console!$AF$7*(Calculations!T48-T49-Console!$AC$7))))) ->  | U50: =IF(U48-U49<=Console!$AD$3,0,IF(Calculations!U48-U49<=Console!$AD$4,Console!$AE$4+Console!$AF$4*(Calculations!U48-U49-Console!$AC$4),IF(Calculations!U48-U49<=Console!$AD$5,Console!$AE$5+Console!$AF$5*(Calculations!U48-U49-Console!$AC$5),IF(Calculations!U48-U49<=Console!$AD$6,Console!$AE$6+Console!$AF$6*(Calculations!U48-U49-Console!$AC$6),Console!$AE$7+Console!$AF$7*(Calculations!U48-U49-Console!$AC$7))))) ->  | V50: =IF(V48-V49<=Console!$AD$3,0,IF(Calculations!V48-V49<=Console!$AD$4,Console!$AE$4+Console!$AF$4*(Calculations!V48-V49-Console!$AC$4),IF(Calculations!V48-V49<=Console!$AD$5,Console!$AE$5+Console!$AF$5*(Calculations!V48-V49-Console!$AC$5),IF(Calculations!V48-V49<=Console!$AD$6,Console!$AE$6+Console!$AF$6*(Calculations!V48-V49-Console!$AC$6),Console!$AE$7+Console!$AF$7*(Calculations!V48-V49-Console!$AC$7))))) -> 
A51: *medicare levy | C51: =Console!$AH$3*Calculations!C48 ->  | D51: =Console!$AH$3*Calculations!D48 ->  | E51: =Console!$AH$3*Calculations!E48 ->  | F51: =Console!$AH$3*Calculations!F48 ->  | G51: =Console!$AH$3*Calculations!G48 ->  | H51: =Console!$AH$3*Calculations!H48 ->  | I51: =Console!$AH$3*Calculations!I48 ->  | J51: =Console!$AH$3*Calculations!J48 ->  | K51: =Console!$AH$3*Calculations!K48 ->  | L51: =Console!$AH$3*Calculations!L48 ->  | M51: =Console!$AH$3*Calculations!M48 ->  | N51: =Console!$AH$3*Calculations!N48 ->  | O51: =Console!$AH$3*Calculations!O48 ->  | P51: =Console!$AH$3*Calculations!P48 ->  | Q51: =Console!$AH$3*Calculations!Q48 ->  | R51: =Console!$AH$3*Calculations!R48 ->  | S51: =Console!$AH$3*Calculations!S48 ->  | T51: =Console!$AH$3*Calculations!T48 ->  | U51: =Console!$AH$3*Calculations!U48 ->  | V51: =Console!$AH$3*Calculations!V48 -> 
A52: Net Salary | C52: =C48-C50-C51 -> 
A53: Negative Gearing Once Off | C53: =IF(C48>0,C49,0) ->  | D53: =IF(D48>0,D49,0) -> 
A56: Household | C56: 1 | D56: 2 | E56: 3 | F56: 4 | G56: 5 | H56: 6 | I56: 7 | J56: 8 | K56: 9 | L56: 10 | M56: 11 | N56: 12 | O56: 13 | P56: 14 | Q56: 15 | R56: 16 | S56: 17 | T56: 18 | U56: 19 | V56: 20 | W56: *total income by household
B57: 1 | C57: =IFERROR(HLOOKUP($B57,C$26:C$52,27,FALSE),0) -> 0 | D57: 0 | E57: 0 | F57: 0 | G57: 0 | H57: 0 | I57: 0 | J57: 0 | K57: 0 | L57: 0 | M57: =IFERROR(HLOOKUP($B57,M$26:M$52,27,FALSE),0) -> 0 | N57: 0 | O57: 0 | P57: 0 | Q57: 0 | R57: 0 | S57: 0 | T57: 0 | U57: 0 | V57: 0 | W57: =SUM(C57:V57)+R4 -> 0
B58: 2 | C58: 0 | D58: 0 | E58: 0 | F58: 0 | G58: 0 | H58: 0 | I58: 0 | J58: 0 | K58: 0 | L58: 0 | M58: 0 | N58: 0 | O58: 0 | P58: 0 | Q58: 0 | R58: 0 | S58: 0 | T58: 0 | U58: 0 | V58: 0 | W58: =SUM(C58:V58)+S4 -> 0
B59: 3 | C59: 0 | D59: 0 | E59: 0 | F59: 0 | G59: 0 | H59: 0 | I59: 0 | J59: 0 | K59: 0 | L59: 0 | M59: 0 | N59: 0 | O59: 0 | P59: 0 | Q59: 0 | R59: 0 | S59: 0 | T59: 0 | U59: 0 | V59: 0 | W59: =SUM(C59:V59)+T4 -> 0
B60: 4 | C60: 0 | D60: 0 | E60: 0 | F60: 0 | G60: 0 | H60: 0 | I60: 0 | J60: 0 | K60: 0 | L60: 0 | M60: 0 | N60: 0 | O60: 0 | P60: 0 | Q60: 0 | R60: 0 | S60: 0 | T60: 0 | U60: 0 | V60: 0 | W60: =SUM(C60:V60)+U4 -> 0
B61: 5 | C61: 0 | D61: 0 | E61: 0 | F61: 0 | G61: 0 | H61: 0 | I61: 0 | J61: 0 | K61: 0 | L61: 0 | M61: 0 | N61: 0 | O61: 0 | P61: 0 | Q61: 0 | R61: 0 | S61: 0 | T61: 0 | U61: 0 | V61: 0 | W61: =SUM(C61:V61)+V4 -> 0
A63: Expenses by Household | C63: HEMS | D63: Declared | E63: Used | G63: Interest Deduction by Household
A64: HEM | B64: 1 | C64: =Input!F85*(1+Console!$AO$3)*12 -> 0 | D64: =SUM(Input!$F$88:$F$99)*12 -> 0 | E64: =MAX(D64,C64) -> 0 | G64: =SUMIF($C$26:$V$26,B64,$C$53:$V$53) -> 0
B65: 2 | C65: =Input!H85*(1+Console!$AO$3)*12 -> 0 | D65: =SUM(Input!$H$88:$H$99)*12 -> 0 | E65: =MAX(D65,C65) -> 0 | G65: =SUMIF($C$26:$V$26,B65,$C$53:$V$53) -> 0
B66: 3 | C66: =Input!J85*(1+Console!$AO$3)*12 -> 0 | D66: =SUM(Input!$J$88:$J$99)*12 -> 0 | E66: =MAX(D66,C66) -> 0 | G66: 0
B67: 4 | C67: =Input!L85*(1+Console!$AO$3)*12 -> 0 | D67: =SUM(Input!$L$88:$L$99)*12 -> 0 | E67: =MAX(D67,C67) -> 0 | G67: 0
B68: 5 | C68: =Input!N85*(1+Console!$AO$3)*12 -> 0 | D68: =SUM(Input!$N$88:$N$99)*12 -> 0 | E68: =MAX(D68,C68) -> 0 | G68: 0
C70: Type | D70: applicant | E70: Limit | F70: balance | G70: MMP | H70: Rental Expense | I70: POC | J70: HECS / HELP | K70: Hec Ref | L70: Calc Pmt | M70: Max Pmt | N70: Limits | O70: Max Bal and Limit | P70: Reversed Limit
A71: Liabilities | B71: 1 | C71: =Input!D108 -> 0 | D71: =Input!F108 -> Applicant 1 | E71: =Input!H108 -> 0 | F71: =_xlfn.SWITCH(TRUE, Input!D108="Credit Card / Overdraft",0, Input!D108="Rental Expense ",0, Input!D108="Child Maintenance ",0, Input!D108="Buy Now Pay Later",0, Input!J108) -> 0 | G71: =Input!L108 -> 0 | H71: =IF(C71=$H$70,Console!$AV$9*12,0) -> 0 | I71: =Input!N108 -> 0 | J71: =IF(C71=$J$70,HLOOKUP(D71,$C$27:$V$52,22,FALSE)-HLOOKUP(D71,$C$27:$V$52,23,FALSE),0) -> 0 | K71: =VLOOKUP(J71,Console!$BA$4:$BB$23,2,TRUE) -> 0 | L71: =IFERROR(VLOOKUP(C71,Console!$AT$4:$AV$13,3,FALSE)*MAX(E71:F71)*VLOOKUP(C71,Console!$AT$4:$AV$13,2,FALSE),0)*12 -> 0 | M71: =IFERROR(IF(I71="Yes",0,IF(Console!$AQ$3=Console!$AQ$15,MAX(L71,G71*12,K71*J71,H71),IF(G71>0,G71*12,MAX(L71,G71*12,K71*J71,H71)))),0) -> 0 | N71: =IF(I71="Yes",0,E71) -> 0 | O71: =MAX(E71,F71,P71) -> 0 | P71: =G71/(Console!$AV$5*Console!$AU$5) -> 0
B72: 2 | C72: =Input!D109 -> 0 | D72: =Input!F109 -> 0 | E72: =Input!H109 -> 0 | F72: =_xlfn.SWITCH(TRUE, Input!D109="Credit Card / Overdraft",0, Input!D109="Rental Expense ",0, Input!D109="Child Maintenance ",0, Input!D109="Buy Now Pay Later",0, Input!J109) -> 0 | G72: =Input!L109 -> 0 | H72: =IF(C72=$H$70,Console!$AV$9*12,0) -> 0 | I72: =Input!N109 -> 0 | J72: =IF(C72=$J$70,HLOOKUP(D72,$C$27:$V$52,22,FALSE)-HLOOKUP(D72,$C$27:$V$52,23,FALSE),0) -> 0 | K72: =VLOOKUP(J72,Console!$BA$4:$BB$23,2,TRUE) -> 0 | L72: =IFERROR(VLOOKUP(C72,Console!$AT$4:$AV$13,3,FALSE)*MAX(E72:F72)*VLOOKUP(C72,Console!$AT$4:$AV$13,2,FALSE),0)*12 -> 0 | M72: =IFERROR(IF(I72="Yes",0,IF(Console!$AQ$3=Console!$AQ$15,MAX(L72,G72*12,K72*J72,H72),IF(G72>0,G72*12,MAX(L72,G72*12,K72*J72,H72)))),0) -> 0 | N72: =IF(I72="Yes",0,E72) -> 0 | O72: =MAX(E72,F72,P72) -> 0 | P72: =G72/(Console!$AV$5*Console!$AU$5) -> 0
B73: 3 | C73: =Input!D110 -> 0 | D73: =Input!F110 -> 0 | E73: =Input!H110 -> 0 | F73: =_xlfn.SWITCH(TRUE, Input!D110="Credit Card / Overdraft",0, Input!D110="Rental Expense ",0, Input!D110="Child Maintenance ",0, Input!D110="Buy Now Pay Later",0, Input!J110) -> 0 | G73: =Input!L110 -> 0 | H73: =IF(C73=$H$70,Console!$AV$9*12,0) -> 0 | I73: =Input!N110 -> 0 | J73: 0 | K73: =VLOOKUP(J73,Console!$BA$4:$BB$23,2,TRUE) -> 0 | L73: =IFERROR(VLOOKUP(C73,Console!$AT$4:$AV$13,3,FALSE)*MAX(E73:F73)*VLOOKUP(C73,Console!$AT$4:$AV$13,2,FALSE),0)*12 -> 0 | M73: =IFERROR(IF(I73="Yes",0,IF(Console!$AQ$3=Console!$AQ$15,MAX(L73,G73*12,K73*J73,H73),IF(G73>0,G73*12,MAX(L73,G73*12,K73*J73,H73)))),0) -> 0 | N73: 0 | O73: 0 | P73: =G73/(Console!$AV$5*Console!$AU$5) -> 0
B74: 4 | C74: =Input!D111 -> 0 | D74: =Input!F111 -> 0 | E74: =Input!H111 -> 0 | F74: =_xlfn.SWITCH(TRUE, Input!D111="Credit Card / Overdraft",0, Input!D111="Rental Expense ",0, Input!D111="Child Maintenance ",0, Input!D111="Buy Now Pay Later",0, Input!J111) -> 0 | G74: =Input!L111 -> 0 | H74: =IF(C74=$H$70,Console!$AV$9*12,0) -> 0 | I74: =Input!N111 -> 0 | J74: 0 | K74: =VLOOKUP(J74,Console!$BA$4:$BB$23,2,TRUE) -> 0 | L74: =IFERROR(VLOOKUP(C74,Console!$AT$4:$AV$13,3,FALSE)*MAX(E74:F74)*VLOOKUP(C74,Console!$AT$4:$AV$13,2,FALSE),0)*12 -> 0 | M74: =IFERROR(IF(I74="Yes",0,IF(Console!$AQ$3=Console!$AQ$15,MAX(L74,G74*12,K74*J74,H74),IF(G74>0,G74*12,MAX(L74,G74*12,K74*J74,H74)))),0) -> 0 | N74: 0 | O74: 0 | P74: =G74/(Console!$AV$5*Console!$AU$5) -> 0
B75: 5 | C75: =Input!D112 -> 0 | D75: =Input!F112 -> 0 | E75: =Input!H112 -> 0 | F75: =_xlfn.SWITCH(TRUE, Input!D112="Credit Card / Overdraft",0, Input!D112="Rental Expense ",0, Input!D112="Child Maintenance ",0, Input!D112="Buy Now Pay Later",0, Input!J112) -> 0 | G75: =Input!L112 -> 0 | H75: =IF(C75=$H$70,Console!$AV$9*12,0) -> 0 | I75: =Input!N112 -> 0 | J75: 0 | K75: =VLOOKUP(J75,Console!$BA$4:$BB$23,2,TRUE) -> 0 | L75: =IFERROR(VLOOKUP(C75,Console!$AT$4:$AV$13,3,FALSE)*MAX(E75:F75)*VLOOKUP(C75,Console!$AT$4:$AV$13,2,FALSE),0)*12 -> 0 | M75: =IFERROR(IF(I75="Yes",0,IF(Console!$AQ$3=Console!$AQ$15,MAX(L75,G75*12,K75*J75,H75),IF(G75>0,G75*12,MAX(L75,G75*12,K75*J75,H75)))),0) -> 0 | N75: 0 | O75: 0 | P75: =G75/(Console!$AV$5*Console!$AU$5) -> 0
B76: 6 | C76: =Input!D113 -> 0 | D76: =Input!F113 -> 0 | E76: =Input!H113 -> 0 | F76: =_xlfn.SWITCH(TRUE, Input!D113="Credit Card / Overdraft",0, Input!D113="Rental Expense ",0, Input!D113="Child Maintenance ",0, Input!D113="Buy Now Pay Later",0, Input!J113) -> 0 | G76: =Input!L113 -> 0 | H76: =IF(C76=$H$70,Console!$AV$9*12,0) -> 0 | I76: =Input!N113 -> 0 | J76: 0 | K76: =VLOOKUP(J76,Console!$BA$4:$BB$23,2,TRUE) -> 0 | L76: =IFERROR(VLOOKUP(C76,Console!$AT$4:$AV$13,3,FALSE)*MAX(E76:F76)*VLOOKUP(C76,Console!$AT$4:$AV$13,2,FALSE),0)*12 -> 0 | M76: =IFERROR(IF(I76="Yes",0,IF(Console!$AQ$3=Console!$AQ$15,MAX(L76,G76*12,K76*J76,H76),IF(G76>0,G76*12,MAX(L76,G76*12,K76*J76,H76)))),0) -> 0 | N76: 0 | O76: 0 | P76: =G76/(Console!$AV$5*Console!$AU$5) -> 0
B77: 7 | C77: =Input!D114 -> 0 | D77: =Input!F114 -> 0 | E77: =Input!H114 -> 0 | F77: =_xlfn.SWITCH(TRUE, Input!D114="Credit Card / Overdraft",0, Input!D114="Rental Expense ",0, Input!D114="Child Maintenance ",0, Input!D114="Buy Now Pay Later",0, Input!J114) -> 0 | G77: =Input!L114 -> 0 | H77: =IF(C77=$H$70,Console!$AV$9*12,0) -> 0 | I77: =Input!N114 -> 0 | J77: 0 | K77: =VLOOKUP(J77,Console!$BA$4:$BB$23,2,TRUE) -> 0 | L77: =IFERROR(VLOOKUP(C77,Console!$AT$4:$AV$13,3,FALSE)*MAX(E77:F77)*VLOOKUP(C77,Console!$AT$4:$AV$13,2,FALSE),0)*12 -> 0 | M77: =IFERROR(IF(I77="Yes",0,IF(Console!$AQ$3=Console!$AQ$15,MAX(L77,G77*12,K77*J77,H77),IF(G77>0,G77*12,MAX(L77,G77*12,K77*J77,H77)))),0) -> 0 | N77: 0 | O77: 0 | P77: =G77/(Console!$AV$5*Console!$AU$5) -> 0
B78: 8 | C78: =Input!D115 -> 0 | D78: =Input!F115 -> 0 | E78: =Input!H115 -> 0 | F78: =_xlfn.SWITCH(TRUE, Input!D115="Credit Card / Overdraft",0, Input!D115="Rental Expense ",0, Input!D115="Child Maintenance ",0, Input!D115="Buy Now Pay Later",0, Input!J115) -> 0 | G78: =Input!L115 -> 0 | H78: =IF(C78=$H$70,Console!$AV$9*12,0) -> 0 | I78: =Input!N115 -> 0 | J78: 0 | K78: =VLOOKUP(J78,Console!$BA$4:$BB$23,2,TRUE) -> 0 | L78: =IFERROR(VLOOKUP(C78,Console!$AT$4:$AV$13,3,FALSE)*MAX(E78:F78)*VLOOKUP(C78,Console!$AT$4:$AV$13,2,FALSE),0)*12 -> 0 | M78: =IFERROR(IF(I78="Yes",0,IF(Console!$AQ$3=Console!$AQ$15,MAX(L78,G78*12,K78*J78,H78),IF(G78>0,G78*12,MAX(L78,G78*12,K78*J78,H78)))),0) -> 0 | N78: 0 | O78: 0 | P78: =G78/(Console!$AV$5*Console!$AU$5) -> 0
B79: 9 | C79: =Input!D116 -> 0 | D79: =Input!F116 -> 0 | E79: =Input!H116 -> 0 | F79: =_xlfn.SWITCH(TRUE, Input!D116="Credit Card / Overdraft",0, Input!D116="Rental Expense ",0, Input!D116="Child Maintenance ",0, Input!D116="Buy Now Pay Later",0, Input!J116) -> 0 | G79: =Input!L116 -> 0 | H79: =IF(C79=$H$70,Console!$AV$9*12,0) -> 0 | I79: =Input!N116 -> 0 | J79: 0 | K79: =VLOOKUP(J79,Console!$BA$4:$BB$23,2,TRUE) -> 0 | L79: =IFERROR(VLOOKUP(C79,Console!$AT$4:$AV$13,3,FALSE)*MAX(E79:F79)*VLOOKUP(C79,Console!$AT$4:$AV$13,2,FALSE),0)*12 -> 0 | M79: =IFERROR(IF(I79="Yes",0,IF(Console!$AQ$3=Console!$AQ$15,MAX(L79,G79*12,K79*J79,H79),IF(G79>0,G79*12,MAX(L79,G79*12,K79*J79,H79)))),0) -> 0 | N79: 0 | O79: 0 | P79: =G79/(Console!$AV$5*Console!$AU$5) -> 0
B80: 10 | C80: =Input!D117 -> 0 | D80: =Input!F117 -> 0 | E80: =Input!H117 -> 0 | F80: =_xlfn.SWITCH(TRUE, Input!D117="Credit Card / Overdraft",0, Input!D117="Rental Expense ",0, Input!D117="Child Maintenance ",0, Input!D117="Buy Now Pay Later",0, Input!J117) -> 0 | G80: =Input!L117 -> 0 | H80: =IF(C80=$H$70,Console!$AV$9*12,0) -> 0 | I80: =Input!N117 -> 0 | J80: 0 | K80: =VLOOKUP(J80,Console!$BA$4:$BB$23,2,TRUE) -> 0 | L80: =IFERROR(VLOOKUP(C80,Console!$AT$4:$AV$13,3,FALSE)*MAX(E80:F80)*VLOOKUP(C80,Console!$AT$4:$AV$13,2,FALSE),0)*12 -> 0 | M80: =IFERROR(IF(I80="Yes",0,IF(Console!$AQ$3=Console!$AQ$15,MAX(L80,G80*12,K80*J80,H80),IF(G80>0,G80*12,MAX(L80,G80*12,K80*J80,H80)))),0) -> 0 | N80: 0 | O80: 0 | P80: =G80/(Console!$AV$5*Console!$AU$5) -> 0
B81: 11 | C81: =Input!D118 -> 0 | D81: =Input!F118 -> 0 | E81: =Input!H118 -> 0 | F81: =_xlfn.SWITCH(TRUE, Input!D118="Credit Card / Overdraft",0, Input!D118="Rental Expense ",0, Input!D118="Child Maintenance ",0, Input!D118="Buy Now Pay Later",0, Input!J118) -> 0 | G81: =Input!L118 -> 0 | H81: =IF(C81=$H$70,Console!$AV$9*12,0) -> 0 | I81: =Input!N118 -> 0 | J81: 0 | K81: =VLOOKUP(J81,Console!$BA$4:$BB$23,2,TRUE) -> 0 | L81: =IFERROR(VLOOKUP(C81,Console!$AT$4:$AV$13,3,FALSE)*MAX(E81:F81)*VLOOKUP(C81,Console!$AT$4:$AV$13,2,FALSE),0)*12 -> 0 | M81: =IFERROR(IF(I81="Yes",0,IF(Console!$AQ$3=Console!$AQ$15,MAX(L81,G81*12,K81*J81,H81),IF(G81>0,G81*12,MAX(L81,G81*12,K81*J81,H81)))),0) -> 0 | N81: 0 | O81: 0 | P81: =G81/(Console!$AV$5*Console!$AU$5) -> 0
B82: 12 | C82: =Input!D119 -> 0 | D82: =Input!F119 -> 0 | E82: =Input!H119 -> 0 | F82: =_xlfn.SWITCH(TRUE, Input!D119="Credit Card / Overdraft",0, Input!D119="Rental Expense ",0, Input!D119="Child Maintenance ",0, Input!D119="Buy Now Pay Later",0, Input!J119) -> 0 | G82: =Input!L119 -> 0 | H82: =IF(C82=$H$70,Console!$AV$9*12,0) -> 0 | I82: =Input!N119 -> 0 | J82: 0 | K82: =VLOOKUP(J82,Console!$BA$4:$BB$23,2,TRUE) -> 0 | L82: =IFERROR(VLOOKUP(C82,Console!$AT$4:$AV$13,3,FALSE)*MAX(E82:F82)*VLOOKUP(C82,Console!$AT$4:$AV$13,2,FALSE),0)*12 -> 0 | M82: =IFERROR(IF(I82="Yes",0,IF(Console!$AQ$3=Console!$AQ$15,MAX(L82,G82*12,K82*J82,H82),IF(G82>0,G82*12,MAX(L82,G82*12,K82*J82,H82)))),0) -> 0 | N82: 0 | O82: 0 | P82: =G82/(Console!$AV$5*Console!$AU$5) -> 0
B83: 13 | C83: =Input!D120 -> 0 | D83: =Input!F120 -> 0 | E83: =Input!H120 -> 0 | F83: =_xlfn.SWITCH(TRUE, Input!D120="Credit Card / Overdraft",0, Input!D120="Rental Expense ",0, Input!D120="Child Maintenance ",0, Input!D120="Buy Now Pay Later",0, Input!J120) -> 0 | G83: =Input!L120 -> 0 | H83: =IF(C83=$H$70,Console!$AV$9*12,0) -> 0 | I83: =Input!N120 -> 0 | J83: 0 | K83: =VLOOKUP(J83,Console!$BA$4:$BB$23,2,TRUE) -> 0 | L83: =IFERROR(VLOOKUP(C83,Console!$AT$4:$AV$13,3,FALSE)*MAX(E83:F83)*VLOOKUP(C83,Console!$AT$4:$AV$13,2,FALSE),0)*12 -> 0 | M83: =IFERROR(IF(I83="Yes",0,IF(Console!$AQ$3=Console!$AQ$15,MAX(L83,G83*12,K83*J83,H83),IF(G83>0,G83*12,MAX(L83,G83*12,K83*J83,H83)))),0) -> 0 | N83: 0 | O83: 0 | P83: =G83/(Console!$AV$5*Console!$AU$5) -> 0
B84: 14 | C84: =Input!D121 -> 0 | D84: =Input!F121 -> 0 | E84: =Input!H121 -> 0 | F84: =_xlfn.SWITCH(TRUE, Input!D121="Credit Card / Overdraft",0, Input!D121="Rental Expense ",0, Input!D121="Child Maintenance ",0, Input!D121="Buy Now Pay Later",0, Input!J121) -> 0 | G84: =Input!L121 -> 0 | H84: =IF(C84=$H$70,Console!$AV$9*12,0) -> 0 | I84: =Input!N121 -> 0 | J84: 0 | K84: =VLOOKUP(J84,Console!$BA$4:$BB$23,2,TRUE) -> 0 | L84: =IFERROR(VLOOKUP(C84,Console!$AT$4:$AV$13,3,FALSE)*MAX(E84:F84)*VLOOKUP(C84,Console!$AT$4:$AV$13,2,FALSE),0)*12 -> 0 | M84: =IFERROR(IF(I84="Yes",0,IF(Console!$AQ$3=Console!$AQ$15,MAX(L84,G84*12,K84*J84,H84),IF(G84>0,G84*12,MAX(L84,G84*12,K84*J84,H84)))),0) -> 0 | N84: 0 | O84: 0 | P84: =G84/(Console!$AV$5*Console!$AU$5) -> 0
B85: 15 | C85: =Input!D122 -> 0 | D85: =Input!F122 -> 0 | E85: =Input!H122 -> 0 | F85: =_xlfn.SWITCH(TRUE, Input!D122="Credit Card / Overdraft",0, Input!D122="Rental Expense ",0, Input!D122="Child Maintenance ",0, Input!D122="Buy Now Pay Later",0, Input!J122) -> 0 | G85: =Input!L122 -> 0 | H85: =IF(C85=$H$70,Console!$AV$9*12,0) -> 0 | I85: =Input!N122 -> 0 | J85: 0 | K85: =VLOOKUP(J85,Console!$BA$4:$BB$23,2,TRUE) -> 0 | L85: =IFERROR(VLOOKUP(C85,Console!$AT$4:$AV$13,3,FALSE)*MAX(E85:F85)*VLOOKUP(C85,Console!$AT$4:$AV$13,2,FALSE),0)*12 -> 0 | M85: =IFERROR(IF(I85="Yes",0,IF(Console!$AQ$3=Console!$AQ$15,MAX(L85,G85*12,K85*J85,H85),IF(G85>0,G85*12,MAX(L85,G85*12,K85*J85,H85)))),0) -> 0 | N85: 0 | O85: 0 | P85: =G85/(Console!$AV$5*Console!$AU$5) -> 0
B86: 16 | C86: =Input!D123 -> 0 | D86: =Input!F123 -> 0 | E86: =Input!H123 -> 0 | F86: =_xlfn.SWITCH(TRUE, Input!D123="Credit Card / Overdraft",0, Input!D123="Rental Expense ",0, Input!D123="Child Maintenance ",0, Input!D123="Buy Now Pay Later",0, Input!J123) -> 0 | G86: =Input!L123 -> 0 | H86: =IF(C86=$H$70,Console!$AV$9*12,0) -> 0 | I86: =Input!N123 -> 0 | J86: 0 | K86: =VLOOKUP(J86,Console!$BA$4:$BB$23,2,TRUE) -> 0 | L86: =IFERROR(VLOOKUP(C86,Console!$AT$4:$AV$13,3,FALSE)*MAX(E86:F86)*VLOOKUP(C86,Console!$AT$4:$AV$13,2,FALSE),0)*12 -> 0 | M86: =IFERROR(IF(I86="Yes",0,IF(Console!$AQ$3=Console!$AQ$15,MAX(L86,G86*12,K86*J86,H86),IF(G86>0,G86*12,MAX(L86,G86*12,K86*J86,H86)))),0) -> 0 | N86: 0 | O86: 0 | P86: =G86/(Console!$AV$5*Console!$AU$5) -> 0
B87: 17 | C87: =Input!D124 -> 0 | D87: =Input!F124 -> 0 | E87: =Input!H124 -> 0 | F87: =_xlfn.SWITCH(TRUE, Input!D124="Credit Card / Overdraft",0, Input!D124="Rental Expense ",0, Input!D124="Child Maintenance ",0, Input!D124="Buy Now Pay Later",0, Input!J124) -> 0 | G87: =Input!L124 -> 0 | H87: =IF(C87=$H$70,Console!$AV$9*12,0) -> 0 | I87: =Input!N124 -> 0 | J87: 0 | K87: =VLOOKUP(J87,Console!$BA$4:$BB$23,2,TRUE) -> 0 | L87: =IFERROR(VLOOKUP(C87,Console!$AT$4:$AV$13,3,FALSE)*MAX(E87:F87)*VLOOKUP(C87,Console!$AT$4:$AV$13,2,FALSE),0)*12 -> 0 | M87: =IFERROR(IF(I87="Yes",0,IF(Console!$AQ$3=Console!$AQ$15,MAX(L87,G87*12,K87*J87,H87),IF(G87>0,G87*12,MAX(L87,G87*12,K87*J87,H87)))),0) -> 0 | N87: 0 | O87: 0 | P87: =G87/(Console!$AV$5*Console!$AU$5) -> 0
B88: 18 | C88: =Input!D125 -> 0 | D88: =Input!F125 -> 0 | E88: =Input!H125 -> 0 | F88: =_xlfn.SWITCH(TRUE, Input!D125="Credit Card / Overdraft",0, Input!D125="Rental Expense ",0, Input!D125="Child Maintenance ",0, Input!D125="Buy Now Pay Later",0, Input!J125) -> 0 | G88: =Input!L125 -> 0 | H88: =IF(C88=$H$70,Console!$AV$9*12,0) -> 0 | I88: =Input!N125 -> 0 | J88: 0 | K88: =VLOOKUP(J88,Console!$BA$4:$BB$23,2,TRUE) -> 0 | L88: =IFERROR(VLOOKUP(C88,Console!$AT$4:$AV$13,3,FALSE)*MAX(E88:F88)*VLOOKUP(C88,Console!$AT$4:$AV$13,2,FALSE),0)*12 -> 0 | M88: =IFERROR(IF(I88="Yes",0,IF(Console!$AQ$3=Console!$AQ$15,MAX(L88,G88*12,K88*J88,H88),IF(G88>0,G88*12,MAX(L88,G88*12,K88*J88,H88)))),0) -> 0 | N88: 0 | O88: 0 | P88: =G88/(Console!$AV$5*Console!$AU$5) -> 0
B89: 19 | C89: =Input!D126 -> 0 | D89: =Input!F126 -> 0 | E89: =Input!H126 -> 0 | F89: =_xlfn.SWITCH(TRUE, Input!D126="Credit Card / Overdraft",0, Input!D126="Rental Expense ",0, Input!D126="Child Maintenance ",0, Input!D126="Buy Now Pay Later",0, Input!J126) -> 0 | G89: =Input!L126 -> 0 | H89: =IF(C89=$H$70,Console!$AV$9*12,0) -> 0 | I89: =Input!N126 -> 0 | J89: 0 | K89: =VLOOKUP(J89,Console!$BA$4:$BB$23,2,TRUE) -> 0 | L89: =IFERROR(VLOOKUP(C89,Console!$AT$4:$AV$13,3,FALSE)*MAX(E89:F89)*VLOOKUP(C89,Console!$AT$4:$AV$13,2,FALSE),0)*12 -> 0 | M89: =IFERROR(IF(I89="Yes",0,IF(Console!$AQ$3=Console!$AQ$15,MAX(L89,G89*12,K89*J89,H89),IF(G89>0,G89*12,MAX(L89,G89*12,K89*J89,H89)))),0) -> 0 | N89: 0 | O89: 0 | P89: =G89/(Console!$AV$5*Console!$AU$5) -> 0
B90: 20 | C90: =Input!D127 -> 0 | D90: =Input!F127 -> 0 | E90: =Input!H127 -> 0 | F90: =_xlfn.SWITCH(TRUE, Input!D127="Credit Card / Overdraft",0, Input!D127="Rental Expense ",0, Input!D127="Child Maintenance ",0, Input!D127="Buy Now Pay Later",0, Input!J127) -> 0 | G90: =Input!L127 -> 0 | H90: =IF(C90=$H$70,Console!$AV$9*12,0) -> 0 | I90: =Input!N127 -> 0 | J90: 0 | K90: =VLOOKUP(J90,Console!$BA$4:$BB$23,2,TRUE) -> 0 | L90: =IFERROR(VLOOKUP(C90,Console!$AT$4:$AV$13,3,FALSE)*MAX(E90:F90)*VLOOKUP(C90,Console!$AT$4:$AV$13,2,FALSE),0)*12 -> 0 | M90: =IFERROR(IF(I90="Yes",0,IF(Console!$AQ$3=Console!$AQ$15,MAX(L90,G90*12,K90*J90,H90),IF(G90>0,G90*12,MAX(L90,G90*12,K90*J90,H90)))),0) -> 0 | N90: 0 | O90: 0 | P90: =G90/(Console!$AV$5*Console!$AU$5) -> 0
B91: 21 | C91: =Input!D128 -> 0 | D91: =Input!F128 -> 0 | E91: =Input!H128 -> 0 | F91: =_xlfn.SWITCH(TRUE, Input!D128="Credit Card / Overdraft",0, Input!D128="Rental Expense ",0, Input!D128="Child Maintenance ",0, Input!D128="Buy Now Pay Later",0, Input!J128) -> 0 | G91: =Input!L128 -> 0 | H91: =IF(C91=$H$70,Console!$AV$9*12,0) -> 0 | I91: =Input!N128 -> 0 | J91: 0 | K91: =VLOOKUP(J91,Console!$BA$4:$BB$23,2,TRUE) -> 0 | L91: =IFERROR(VLOOKUP(C91,Console!$AT$4:$AV$13,3,FALSE)*MAX(E91:F91)*VLOOKUP(C91,Console!$AT$4:$AV$13,2,FALSE),0)*12 -> 0 | M91: =IFERROR(IF(I91="Yes",0,IF(Console!$AQ$3=Console!$AQ$15,MAX(L91,G91*12,K91*J91,H91),IF(G91>0,G91*12,MAX(L91,G91*12,K91*J91,H91)))),0) -> 0 | N91: 0 | O91: 0 | P91: =G91/(Console!$AV$5*Console!$AU$5) -> 0
B92: 22 | C92: =Input!D129 -> 0 | D92: =Input!F129 -> 0 | E92: =Input!H129 -> 0 | F92: =_xlfn.SWITCH(TRUE, Input!D129="Credit Card / Overdraft",0, Input!D129="Rental Expense ",0, Input!D129="Child Maintenance ",0, Input!D129="Buy Now Pay Later",0, Input!J129) -> 0 | G92: =Input!L129 -> 0 | H92: =IF(C92=$H$70,Console!$AV$9*12,0) -> 0 | I92: =Input!N129 -> 0 | J92: 0 | K92: =VLOOKUP(J92,Console!$BA$4:$BB$23,2,TRUE) -> 0 | L92: =IFERROR(VLOOKUP(C92,Console!$AT$4:$AV$13,3,FALSE)*MAX(E92:F92)*VLOOKUP(C92,Console!$AT$4:$AV$13,2,FALSE),0)*12 -> 0 | M92: =IFERROR(IF(I92="Yes",0,IF(Console!$AQ$3=Console!$AQ$15,MAX(L92,G92*12,K92*J92,H92),IF(G92>0,G92*12,MAX(L92,G92*12,K92*J92,H92)))),0) -> 0 | N92: 0 | O92: 0 | P92: =G92/(Console!$AV$5*Console!$AU$5) -> 0
B93: 23 | C93: =Input!D130 -> 0 | D93: =Input!F130 -> 0 | E93: =Input!H130 -> 0 | F93: =_xlfn.SWITCH(TRUE, Input!D130="Credit Card / Overdraft",0, Input!D130="Rental Expense ",0, Input!D130="Child Maintenance ",0, Input!D130="Buy Now Pay Later",0, Input!J130) -> 0 | G93: =Input!L130 -> 0 | H93: =IF(C93=$H$70,Console!$AV$9*12,0) -> 0 | I93: =Input!N130 -> 0 | J93: 0 | K93: =VLOOKUP(J93,Console!$BA$4:$BB$23,2,TRUE) -> 0 | L93: =IFERROR(VLOOKUP(C93,Console!$AT$4:$AV$13,3,FALSE)*MAX(E93:F93)*VLOOKUP(C93,Console!$AT$4:$AV$13,2,FALSE),0)*12 -> 0 | M93: =IFERROR(IF(I93="Yes",0,IF(Console!$AQ$3=Console!$AQ$15,MAX(L93,G93*12,K93*J93,H93),IF(G93>0,G93*12,MAX(L93,G93*12,K93*J93,H93)))),0) -> 0 | N93: 0 | O93: 0 | P93: =G93/(Console!$AV$5*Console!$AU$5) -> 0
B94: 24 | C94: =Input!D131 -> 0 | D94: =Input!F131 -> 0 | E94: =Input!H131 -> 0 | F94: =_xlfn.SWITCH(TRUE, Input!D131="Credit Card / Overdraft",0, Input!D131="Rental Expense ",0, Input!D131="Child Maintenance ",0, Input!D131="Buy Now Pay Later",0, Input!J131) -> 0 | G94: =Input!L131 -> 0 | H94: =IF(C94=$H$70,Console!$AV$9*12,0) -> 0 | I94: =Input!N131 -> 0 | J94: 0 | K94: =VLOOKUP(J94,Console!$BA$4:$BB$23,2,TRUE) -> 0 | L94: =IFERROR(VLOOKUP(C94,Console!$AT$4:$AV$13,3,FALSE)*MAX(E94:F94)*VLOOKUP(C94,Console!$AT$4:$AV$13,2,FALSE),0)*12 -> 0 | M94: =IFERROR(IF(I94="Yes",0,IF(Console!$AQ$3=Console!$AQ$15,MAX(L94,G94*12,K94*J94,H94),IF(G94>0,G94*12,MAX(L94,G94*12,K94*J94,H94)))),0) -> 0 | N94: 0 | O94: 0 | P94: =G94/(Console!$AV$5*Console!$AU$5) -> 0
B95: 25 | C95: =Input!D132 -> 0 | D95: =Input!F132 -> 0 | E95: =Input!H132 -> 0 | F95: =_xlfn.SWITCH(TRUE, Input!D132="Credit Card / Overdraft",0, Input!D132="Rental Expense ",0, Input!D132="Child Maintenance ",0, Input!D132="Buy Now Pay Later",0, Input!J132) -> 0 | G95: =Input!L132 -> 0 | H95: =IF(C95=$H$70,Console!$AV$9*12,0) -> 0 | I95: =Input!N132 -> 0 | J95: 0 | K95: =VLOOKUP(J95,Console!$BA$4:$BB$23,2,TRUE) -> 0 | L95: =IFERROR(VLOOKUP(C95,Console!$AT$4:$AV$13,3,FALSE)*MAX(E95:F95)*VLOOKUP(C95,Console!$AT$4:$AV$13,2,FALSE),0)*12 -> 0 | M95: =IFERROR(IF(I95="Yes",0,IF(Console!$AQ$3=Console!$AQ$15,MAX(L95,G95*12,K95*J95,H95),IF(G95>0,G95*12,MAX(L95,G95*12,K95*J95,H95)))),0) -> 0 | N95: 0 | O95: 0 | P95: =G95/(Console!$AV$5*Console!$AU$5) -> 0
B96: Total | M96: =SUM(M71:M95) -> 0 | N96: =SUM(N71:N95) -> 0
A102: Applicant Ref | B102: Unique List Applicants | C102: Uniques | D102: 1 To 20 | E102: Count | F102: Number Unique | G102: OFI Investment Loans Interest | H102: Interest for tax deduction of investment properties
A103: =C27 ->  | B103: =IF(A103=0,"",A103) ->  | C103: =IFERROR(INDEX($B$103:$B$122, MATCH(0, COUNTIF($C$102:C102, $B$103:$B$122), 0)), "") ->  | D103: 1 | E103: =IF(C103="",0,D103) -> 0 | F103: =MAX(E103:E122) -> 0 | G103: =SUMIFS($O$71:$O$95,$C$71:$C$95,Console!$AT$5,Calculations!$D$71:$D$95,Calculations!C103) -> 0 | H103: =IF(Console!$BQ$3=1,G103*(1-11.7%/2)*Console!$F$3,0) -> 0
A104: =D27 ->  | B104: =IF(A104=0,"",A104) ->  | C104: =IFERROR(INDEX($B$103:$B$122, MATCH(0, COUNTIF($C$102:C103, $B$103:$B$122), 0)), "") ->  | D104: 2 | E104: =IF(C104="",0,D104) -> 0 | G104: =SUMIFS($E$71:$E$95,$C$71:$C$95,Console!$AT$5,Calculations!$D$71:$D$95,Calculations!C104) -> 0 | H104: =IF(Console!$BQ$3=1,G104*(1-11.7%/2)*Console!$F$3,0) -> 0
A105: =E27 ->  | C105: =IFERROR(INDEX($B$103:$B$122, MATCH(0, COUNTIF($C$102:C104, $B$103:$B$122), 0)), "") ->  | D105: 3 | E105: 0 | G105: =SUMIFS($E$71:$E$95,$C$71:$C$95,Console!$AT$5,Calculations!$D$71:$D$95,Calculations!C105) -> 0 | H105: =IF(Console!$BQ$3=1,G105*(1-11.7%/2)*Console!$F$3,0) -> 0
A106: =F27 ->  | C106: =IFERROR(INDEX($B$103:$B$122, MATCH(0, COUNTIF($C$102:C105, $B$103:$B$122), 0)), "") ->  | D106: 4 | E106: 0 | G106: =SUMIFS($E$71:$E$95,$C$71:$C$95,Console!$AT$5,Calculations!$D$71:$D$95,Calculations!C106) -> 0 | H106: =IF(Console!$BQ$3=1,G106*(1-11.7%/2)*Console!$F$3,0) -> 0
A107: =G27 ->  | C107: =IFERROR(INDEX($B$103:$B$122, MATCH(0, COUNTIF($C$102:C106, $B$103:$B$122), 0)), "") ->  | D107: 5 | E107: 0 | G107: =SUMIFS($E$71:$E$95,$C$71:$C$95,Console!$AT$5,Calculations!$D$71:$D$95,Calculations!C107) -> 0 | H107: =IF(Console!$BQ$3=1,G107*(1-11.7%/2)*Console!$F$3,0) -> 0
A108: =H27 ->  | C108: =IFERROR(INDEX($B$103:$B$122, MATCH(0, COUNTIF($C$102:C107, $B$103:$B$122), 0)), "") ->  | D108: 6 | E108: 0 | G108: =SUMIFS($E$71:$E$95,$C$71:$C$95,Console!$AT$5,Calculations!$D$71:$D$95,Calculations!C108) -> 0 | H108: =IF(Console!$BQ$3=1,G108*(1-11.7%/2)*Console!$F$3,0) -> 0
A109: =I27 ->  | C109: =IFERROR(INDEX($B$103:$B$122, MATCH(0, COUNTIF($C$102:C108, $B$103:$B$122), 0)), "") ->  | D109: 7 | E109: 0 | G109: =SUMIFS($E$71:$E$95,$C$71:$C$95,Console!$AT$5,Calculations!$D$71:$D$95,Calculations!C109) -> 0 | H109: =IF(Console!$BQ$3=1,G109*(1-11.7%/2)*Console!$F$3,0) -> 0
A110: =J27 ->  | C110: =IFERROR(INDEX($B$103:$B$122, MATCH(0, COUNTIF($C$102:C109, $B$103:$B$122), 0)), "") ->  | D110: 8 | E110: 0 | G110: =SUMIFS($E$71:$E$95,$C$71:$C$95,Console!$AT$5,Calculations!$D$71:$D$95,Calculations!C110) -> 0 | H110: =IF(Console!$BQ$3=1,G110*(1-11.7%/2)*Console!$F$3,0) -> 0
A111: =K27 ->  | C111: =IFERROR(INDEX($B$103:$B$122, MATCH(0, COUNTIF($C$102:C110, $B$103:$B$122), 0)), "") ->  | D111: 9 | E111: 0 | G111: =SUMIFS($E$71:$E$95,$C$71:$C$95,Console!$AT$5,Calculations!$D$71:$D$95,Calculations!C111) -> 0 | H111: =IF(Console!$BQ$3=1,G111*(1-11.7%/2)*Console!$F$3,0) -> 0
A112: =L27 ->  | C112: =IFERROR(INDEX($B$103:$B$122, MATCH(0, COUNTIF($C$102:C111, $B$103:$B$122), 0)), "") ->  | D112: 10 | E112: 0 | G112: =SUMIFS($E$71:$E$95,$C$71:$C$95,Console!$AT$5,Calculations!$D$71:$D$95,Calculations!C112) -> 0 | H112: =IF(Console!$BQ$3=1,G112*(1-11.7%/2)*Console!$F$3,0) -> 0
A113: =M27 ->  | C113: =IFERROR(INDEX($B$103:$B$122, MATCH(0, COUNTIF($C$102:C112, $B$103:$B$122), 0)), "") ->  | D113: 11 | E113: 0 | G113: =SUMIFS($E$71:$E$95,$C$71:$C$95,Console!$AT$5,Calculations!$D$71:$D$95,Calculations!C113) -> 0 | H113: =IF(Console!$BQ$3=1,G113*(1-11.7%/2)*Console!$F$3,0) -> 0
A114: =N27 ->  | C114: =IFERROR(INDEX($B$103:$B$122, MATCH(0, COUNTIF($C$102:C113, $B$103:$B$122), 0)), "") ->  | D114: 12 | E114: 0 | G114: =SUMIFS($E$71:$E$95,$C$71:$C$95,Console!$AT$5,Calculations!$D$71:$D$95,Calculations!C114) -> 0 | H114: =IF(Console!$BQ$3=1,G114*(1-11.7%/2)*Console!$F$3,0) -> 0
A115: =O27 ->  | C115: =IFERROR(INDEX($B$103:$B$122, MATCH(0, COUNTIF($C$102:C114, $B$103:$B$122), 0)), "") ->  | D115: 13 | E115: 0 | G115: =SUMIFS($E$71:$E$95,$C$71:$C$95,Console!$AT$5,Calculations!$D$71:$D$95,Calculations!C115) -> 0 | H115: =IF(Console!$BQ$3=1,G115*(1-11.7%/2)*Console!$F$3,0) -> 0
A116: =P27 ->  | C116: =IFERROR(INDEX($B$103:$B$122, MATCH(0, COUNTIF($C$102:C115, $B$103:$B$122), 0)), "") ->  | D116: 14 | E116: 0 | G116: =SUMIFS($E$71:$E$95,$C$71:$C$95,Console!$AT$5,Calculations!$D$71:$D$95,Calculations!C116) -> 0 | H116: =IF(Console!$BQ$3=1,G116*(1-11.7%/2)*Console!$F$3,0) -> 0
A117: =Q27 ->  | C117: =IFERROR(INDEX($B$103:$B$122, MATCH(0, COUNTIF($C$102:C116, $B$103:$B$122), 0)), "") ->  | D117: 15 | E117: 0 | G117: =SUMIFS($E$71:$E$95,$C$71:$C$95,Console!$AT$5,Calculations!$D$71:$D$95,Calculations!C117) -> 0 | H117: =IF(Console!$BQ$3=1,G117*(1-11.7%/2)*Console!$F$3,0) -> 0
A118: =R27 ->  | C118: =IFERROR(INDEX($B$103:$B$122, MATCH(0, COUNTIF($C$102:C117, $B$103:$B$122), 0)), "") ->  | D118: 16 | E118: 0 | G118: =SUMIFS($E$71:$E$95,$C$71:$C$95,Console!$AT$5,Calculations!$D$71:$D$95,Calculations!C118) -> 0 | H118: =IF(Console!$BQ$3=1,G118*(1-11.7%/2)*Console!$F$3,0) -> 0
A119: =S27 ->  | C119: =IFERROR(INDEX($B$103:$B$122, MATCH(0, COUNTIF($C$102:C118, $B$103:$B$122), 0)), "") ->  | D119: 17 | E119: 0 | G119: =SUMIFS($E$71:$E$95,$C$71:$C$95,Console!$AT$5,Calculations!$D$71:$D$95,Calculations!C119) -> 0 | H119: =IF(Console!$BQ$3=1,G119*(1-11.7%/2)*Console!$F$3,0) -> 0
A120: =T27 ->  | C120: =IFERROR(INDEX($B$103:$B$122, MATCH(0, COUNTIF($C$102:C119, $B$103:$B$122), 0)), "") ->  | D120: 18 | E120: 0 | G120: =SUMIFS($E$71:$E$95,$C$71:$C$95,Console!$AT$5,Calculations!$D$71:$D$95,Calculations!C120) -> 0 | H120: =IF(Console!$BQ$3=1,G120*(1-11.7%/2)*Console!$F$3,0) -> 0
A121: =U27 ->  | C121: =IFERROR(INDEX($B$103:$B$122, MATCH(0, COUNTIF($C$102:C120, $B$103:$B$122), 0)), "") ->  | D121: 19 | E121: 0 | G121: =SUMIFS($E$71:$E$95,$C$71:$C$95,Console!$AT$5,Calculations!$D$71:$D$95,Calculations!C121) -> 0 | H121: =IF(Console!$BQ$3=1,G121*(1-11.7%/2)*Console!$F$3,0) -> 0
A122: =V27 ->  | C122: =IFERROR(INDEX($B$103:$B$122, MATCH(0, COUNTIF($C$102:C121, $B$103:$B$122), 0)), "") ->  | D122: 20 | E122: 0 | G122: =SUMIFS($E$71:$E$95,$C$71:$C$95,Console!$AT$5,Calculations!$D$71:$D$95,Calculations!C122) -> 0 | H122: =IF(Console!$BQ$3=1,G122*(1-11.7%/2)*Console!$F$3,0) -> 0
A123: 0 | H123: *11.7% is the average in balance change YoY of a homeloan, dividing by 2 gives the mid point, therefore based on an average P&I loan, this would be the interest charged, given this balance.

Sheet Formulas (hidden)
E1: Applicant
E2: 1 | F2: 2 | G2: 3 | H2: 4 | I2: 5 | J2: 6 | K2: 7 | L2: 8 | M2: 9 | N2: 10 | O2: 11 | P2: 12 | Q2: 13 | R2: 14 | S2: 15 | T2: 16 | U2: 17 | V2: 18 | W2: 19 | X2: 20
A3: Household | B3: 1 | E3: =Input!D27*Formulas!$B3 -> 0 | F3: =Input!F27*Formulas!$B3 -> 0 | G3: =Input!H27*Formulas!$B3 -> 0 | H3: =Input!J27*Formulas!$B3 -> 0 | I3: =Input!L27*Formulas!$B3 -> 0 | J3: =Input!N27*Formulas!$B3 -> 0 | K3: =Input!P27*Formulas!$B3 -> 0 | L3: =Input!R27*Formulas!$B3 -> 0 | M3: =Input!T27*Formulas!$B3 -> 0 | N3: =Input!V27*Formulas!$B3 -> 0 | O3: =Input!X27*Formulas!$B3 -> 0 | P3: =Input!Y27*Formulas!$B3 -> 0 | Q3: =Input!Z27*Formulas!$B3 -> 0 | R3: =Input!AA27*Formulas!$B3 -> 0 | S3: =Input!AB27*Formulas!$B3 -> 0 | T3: =Input!AC27*Formulas!$B3 -> 0 | U3: =Input!AD27*Formulas!$B3 -> 0 | V3: =Input!AE27*Formulas!$B3 -> 0 | W3: =Input!AF27*Formulas!$B3 -> 0 | X3: =Input!AG27*Formulas!$B3 -> 0
A4: Income Type | B4: Shading | C4: Gross/ Net
A5: Gross PAYG | B5: 1 | C5: Gross | E5: =Input!D29*Formulas!$B5 -> 0 | F5: =Input!F29*Formulas!$B5 -> 0 | G5: =Input!H29*Formulas!$B5 -> 0 | H5: =Input!J29*Formulas!$B5 -> 0 | I5: =Input!L29*Formulas!$B5 -> 0 | J5: =Input!N29*Formulas!$B5 -> 0 | K5: =Input!P29*Formulas!$B5 -> 0 | L5: =Input!R29*Formulas!$B5 -> 0 | M5: =Input!T29*Formulas!$B5 -> 0 | N5: =Input!V29*Formulas!$B5 -> 0 | O5: =Input!X29*Formulas!$B5 -> 0 | P5: =Input!Y29*Formulas!$B5 -> 0 | Q5: =Input!Z29*Formulas!$B5 -> 0 | R5: =Input!AA29*Formulas!$B5 -> 0 | S5: =Input!AB29*Formulas!$B5 -> 0 | T5: =Input!AC29*Formulas!$B5 -> 0 | U5: =Input!AD29*Formulas!$B5 -> 0 | V5: =Input!AE29*Formulas!$B5 -> 0 | W5: =Input!AF29*Formulas!$B5 -> 0 | X5: =Input!AG29*Formulas!$B5 -> 0
A6: Contract PAYG | B6: 1 | C6: Gross | E6: =Input!D30*Formulas!$B6 -> 0 | F6: =Input!F30*Formulas!$B6 -> 0 | G6: =Input!H30*Formulas!$B6 -> 0 | H6: =Input!J30*Formulas!$B6 -> 0 | I6: =Input!L30*Formulas!$B6 -> 0 | J6: =Input!N30*Formulas!$B6 -> 0 | K6: =Input!P30*Formulas!$B6 -> 0 | L6: =Input!R30*Formulas!$B6 -> 0 | M6: =Input!T30*Formulas!$B6 -> 0 | N6: =Input!V30*Formulas!$B6 -> 0 | O6: =Input!X30*Formulas!$B6 -> 0 | P6: =Input!Y30*Formulas!$B6 -> 0 | Q6: =Input!Z30*Formulas!$B6 -> 0 | R6: =Input!AA30*Formulas!$B6 -> 0 | S6: =Input!AB30*Formulas!$B6 -> 0 | T6: =Input!AC30*Formulas!$B6 -> 0 | U6: =Input!AD30*Formulas!$B6 -> 0 | V6: =Input!AE30*Formulas!$B6 -> 0 | W6: =Input!AF30*Formulas!$B6 -> 0 | X6: =Input!AG30*Formulas!$B6 -> 0
A7: Extra 1 | B7: 1 | C7: Gross | E7: =Input!D31*Formulas!$B7 -> 0 | F7: =Input!F31*Formulas!$B7 -> 0 | G7: =Input!H31*Formulas!$B7 -> 0 | H7: =Input!J31*Formulas!$B7 -> 0 | I7: =Input!L31*Formulas!$B7 -> 0 | J7: =Input!N31*Formulas!$B7 -> 0 | K7: =Input!P31*Formulas!$B7 -> 0 | L7: =Input!R31*Formulas!$B7 -> 0 | M7: =Input!T31*Formulas!$B7 -> 0 | N7: =Input!V31*Formulas!$B7 -> 0 | O7: =Input!X31*Formulas!$B7 -> 0 | P7: =Input!Y31*Formulas!$B7 -> 0 | Q7: =Input!Z31*Formulas!$B7 -> 0 | R7: =Input!AA31*Formulas!$B7 -> 0 | S7: =Input!AB31*Formulas!$B7 -> 0 | T7: =Input!AC31*Formulas!$B7 -> 0 | U7: =Input!AD31*Formulas!$B7 -> 0 | V7: =Input!AE31*Formulas!$B7 -> 0 | W7: =Input!AF31*Formulas!$B7 -> 0 | X7: =Input!AG31*Formulas!$B7 -> 0
A8: Extra 2 | B8: 1 | C8: Gross | E8: =Input!D32*Formulas!$B8 -> 0 | F8: =Input!F32*Formulas!$B8 -> 0 | G8: =Input!H32*Formulas!$B8 -> 0 | H8: =Input!J32*Formulas!$B8 -> 0 | I8: =Input!L32*Formulas!$B8 -> 0 | J8: =Input!N32*Formulas!$B8 -> 0 | K8: =Input!P32*Formulas!$B8 -> 0 | L8: =Input!R32*Formulas!$B8 -> 0 | M8: =Input!T32*Formulas!$B8 -> 0 | N8: =Input!V32*Formulas!$B8 -> 0 | O8: =Input!X32*Formulas!$B8 -> 0 | P8: =Input!Y32*Formulas!$B8 -> 0 | Q8: =Input!Z32*Formulas!$B8 -> 0 | R8: =Input!AA32*Formulas!$B8 -> 0 | S8: =Input!AB32*Formulas!$B8 -> 0 | T8: =Input!AC32*Formulas!$B8 -> 0 | U8: =Input!AD32*Formulas!$B8 -> 0 | V8: =Input!AE32*Formulas!$B8 -> 0 | W8: =Input!AF32*Formulas!$B8 -> 0 | X8: =Input!AG32*Formulas!$B8 -> 0
A9: Extra 3 | B9: 1 | C9: Gross | E9: =Input!D33*Formulas!$B9 -> 0 | F9: =Input!F33*Formulas!$B9 -> 0 | G9: =Input!H33*Formulas!$B9 -> 0 | H9: =Input!J33*Formulas!$B9 -> 0 | I9: =Input!L33*Formulas!$B9 -> 0 | J9: =Input!N33*Formulas!$B9 -> 0 | K9: =Input!P33*Formulas!$B9 -> 0 | L9: =Input!R33*Formulas!$B9 -> 0 | M9: =Input!T33*Formulas!$B9 -> 0 | N9: =Input!V33*Formulas!$B9 -> 0 | O9: =Input!X33*Formulas!$B9 -> 0 | P9: =Input!Y33*Formulas!$B9 -> 0 | Q9: =Input!Z33*Formulas!$B9 -> 0 | R9: =Input!AA33*Formulas!$B9 -> 0 | S9: =Input!AB33*Formulas!$B9 -> 0 | T9: =Input!AC33*Formulas!$B9 -> 0 | U9: =Input!AD33*Formulas!$B9 -> 0 | V9: =Input!AE33*Formulas!$B9 -> 0 | W9: =Input!AF33*Formulas!$B9 -> 0 | X9: =Input!AG33*Formulas!$B9 -> 0
A10: Extra 4 | B10: 1 | C10: Gross | E10: =Input!D34*Formulas!$B10 -> 0 | F10: =Input!F34*Formulas!$B10 -> 0 | G10: =Input!H34*Formulas!$B10 -> 0 | H10: =Input!J34*Formulas!$B10 -> 0 | I10: =Input!L34*Formulas!$B10 -> 0 | J10: =Input!N34*Formulas!$B10 -> 0 | K10: =Input!P34*Formulas!$B10 -> 0 | L10: =Input!R34*Formulas!$B10 -> 0 | M10: =Input!T34*Formulas!$B10 -> 0 | N10: =Input!V34*Formulas!$B10 -> 0 | O10: =Input!X34*Formulas!$B10 -> 0 | P10: =Input!Y34*Formulas!$B10 -> 0 | Q10: =Input!Z34*Formulas!$B10 -> 0 | R10: =Input!AA34*Formulas!$B10 -> 0 | S10: =Input!AB34*Formulas!$B10 -> 0 | T10: =Input!AC34*Formulas!$B10 -> 0 | U10: =Input!AD34*Formulas!$B10 -> 0 | V10: =Input!AE34*Formulas!$B10 -> 0 | W10: =Input!AF34*Formulas!$B10 -> 0 | X10: =Input!AG34*Formulas!$B10 -> 0
A13: Overtime | B13: 1 | C13: Gross | E13: =Input!D37*Formulas!$B13 -> 0 | F13: =Input!F37*Formulas!$B13 -> 0 | G13: =Input!H37*Formulas!$B13 -> 0 | H13: =Input!J37*Formulas!$B13 -> 0 | I13: =Input!L37*Formulas!$B13 -> 0 | J13: =Input!N37*Formulas!$B13 -> 0 | K13: =Input!P37*Formulas!$B13 -> 0 | L13: =Input!R37*Formulas!$B13 -> 0 | M13: =Input!T37*Formulas!$B13 -> 0 | N13: =Input!V37*Formulas!$B13 -> 0 | O13: =Input!X37*Formulas!$B13 -> 0 | P13: =Input!Y37*Formulas!$B13 -> 0 | Q13: =Input!Z37*Formulas!$B13 -> 0 | R13: =Input!AA37*Formulas!$B13 -> 0 | S13: =Input!AB37*Formulas!$B13 -> 0 | T13: =Input!AC37*Formulas!$B13 -> 0 | U13: =Input!AD37*Formulas!$B13 -> 0 | V13: =Input!AE37*Formulas!$B13 -> 0 | W13: =Input!AF37*Formulas!$B13 -> 0 | X13: =Input!AG37*Formulas!$B13 -> 0
A14: Commission | B14: 1 | C14: Gross | E14: =Input!D38*Formulas!$B14 -> 0 | F14: =Input!F38*Formulas!$B14 -> 0 | G14: =Input!H38*Formulas!$B14 -> 0 | H14: =Input!J38*Formulas!$B14 -> 0 | I14: =Input!L38*Formulas!$B14 -> 0 | J14: =Input!N38*Formulas!$B14 -> 0 | K14: =Input!P38*Formulas!$B14 -> 0 | L14: =Input!R38*Formulas!$B14 -> 0 | M14: =Input!T38*Formulas!$B14 -> 0 | N14: =Input!V38*Formulas!$B14 -> 0 | O14: =Input!X38*Formulas!$B14 -> 0 | P14: =Input!Y38*Formulas!$B14 -> 0 | Q14: =Input!Z38*Formulas!$B14 -> 0 | R14: =Input!AA38*Formulas!$B14 -> 0 | S14: =Input!AB38*Formulas!$B14 -> 0 | T14: =Input!AC38*Formulas!$B14 -> 0 | U14: =Input!AD38*Formulas!$B14 -> 0 | V14: =Input!AE38*Formulas!$B14 -> 0 | W14: =Input!AF38*Formulas!$B14 -> 0 | X14: =Input!AG38*Formulas!$B14 -> 0
A15: Investment Income | B15: 1 | C15: Gross | E15: =Input!D39*Formulas!$B15 -> 0 | F15: =Input!F39*Formulas!$B15 -> 0 | G15: =Input!H39*Formulas!$B15 -> 0 | H15: =Input!J39*Formulas!$B15 -> 0 | I15: =Input!L39*Formulas!$B15 -> 0 | J15: =Input!N39*Formulas!$B15 -> 0 | K15: =Input!P39*Formulas!$B15 -> 0 | L15: =Input!R39*Formulas!$B15 -> 0 | M15: =Input!T39*Formulas!$B15 -> 0 | N15: =Input!V39*Formulas!$B15 -> 0 | O15: =Input!X39*Formulas!$B15 -> 0 | P15: =Input!Y39*Formulas!$B15 -> 0 | Q15: =Input!Z39*Formulas!$B15 -> 0 | R15: =Input!AA39*Formulas!$B15 -> 0 | S15: =Input!AB39*Formulas!$B15 -> 0 | T15: =Input!AC39*Formulas!$B15 -> 0 | U15: =Input!AD39*Formulas!$B15 -> 0 | V15: =Input!AE39*Formulas!$B15 -> 0 | W15: =Input!AF39*Formulas!$B15 -> 0 | X15: =Input!AG39*Formulas!$B15 -> 0
A16: Foreign Income | B16: 0.9 | C16: Gross | E16: =Input!D40*Formulas!$B16 -> 0 | F16: =Input!F40*Formulas!$B16 -> 0 | G16: =Input!H40*Formulas!$B16 -> 0 | H16: =Input!J40*Formulas!$B16 -> 0 | I16: =Input!L40*Formulas!$B16 -> 0 | J16: =Input!N40*Formulas!$B16 -> 0 | K16: =Input!P40*Formulas!$B16 -> 0 | L16: =Input!R40*Formulas!$B16 -> 0 | M16: =Input!T40*Formulas!$B16 -> 0 | N16: =Input!V40*Formulas!$B16 -> 0 | O16: =Input!X40*Formulas!$B16 -> 0 | P16: =Input!Y40*Formulas!$B16 -> 0 | Q16: =Input!Z40*Formulas!$B16 -> 0 | R16: =Input!AA40*Formulas!$B16 -> 0 | S16: =Input!AB40*Formulas!$B16 -> 0 | T16: =Input!AC40*Formulas!$B16 -> 0 | U16: =Input!AD40*Formulas!$B16 -> 0 | V16: =Input!AE40*Formulas!$B16 -> 0 | W16: =Input!AF40*Formulas!$B16 -> 0 | X16: =Input!AG40*Formulas!$B16 -> 0
A17: Extra 1 | B17: 1 | C17: Gross | E17: =Input!D41*Formulas!$B17 -> 0 | F17: =Input!F41*Formulas!$B17 -> 0 | G17: =Input!H41*Formulas!$B17 -> 0 | H17: =Input!J41*Formulas!$B17 -> 0 | I17: =Input!L41*Formulas!$B17 -> 0 | J17: =Input!N41*Formulas!$B17 -> 0 | K17: =Input!P41*Formulas!$B17 -> 0 | L17: =Input!R41*Formulas!$B17 -> 0 | M17: =Input!T41*Formulas!$B17 -> 0 | N17: =Input!V41*Formulas!$B17 -> 0 | O17: =Input!X41*Formulas!$B17 -> 0 | P17: =Input!Y41*Formulas!$B17 -> 0 | Q17: =Input!Z41*Formulas!$B17 -> 0 | R17: =Input!AA41*Formulas!$B17 -> 0 | S17: =Input!AB41*Formulas!$B17 -> 0 | T17: =Input!AC41*Formulas!$B17 -> 0 | U17: =Input!AD41*Formulas!$B17 -> 0 | V17: =Input!AE41*Formulas!$B17 -> 0 | W17: =Input!AF41*Formulas!$B17 -> 0 | X17: =Input!AG41*Formulas!$B17 -> 0
A18: Extra 2 | B18: 1 | C18: Gross | E18: =Input!D42*Formulas!$B18 -> 0 | F18: =Input!F42*Formulas!$B18 -> 0 | G18: =Input!H42*Formulas!$B18 -> 0 | H18: =Input!J42*Formulas!$B18 -> 0 | I18: =Input!L42*Formulas!$B18 -> 0 | J18: =Input!N42*Formulas!$B18 -> 0 | K18: =Input!P42*Formulas!$B18 -> 0 | L18: =Input!R42*Formulas!$B18 -> 0 | M18: =Input!T42*Formulas!$B18 -> 0 | N18: =Input!V42*Formulas!$B18 -> 0 | O18: =Input!X42*Formulas!$B18 -> 0 | P18: =Input!Y42*Formulas!$B18 -> 0 | Q18: =Input!Z42*Formulas!$B18 -> 0 | R18: =Input!AA42*Formulas!$B18 -> 0 | S18: =Input!AB42*Formulas!$B18 -> 0 | T18: =Input!AC42*Formulas!$B18 -> 0 | U18: =Input!AD42*Formulas!$B18 -> 0 | V18: =Input!AE42*Formulas!$B18 -> 0 | W18: =Input!AF42*Formulas!$B18 -> 0 | X18: =Input!AG42*Formulas!$B18 -> 0
A19: Extra 3 | B19: 1 | C19: Gross | E19: =Input!D43*Formulas!$B19 -> 0 | F19: =Input!F43*Formulas!$B19 -> 0 | G19: =Input!H43*Formulas!$B19 -> 0 | H19: =Input!J43*Formulas!$B19 -> 0 | I19: =Input!L43*Formulas!$B19 -> 0 | J19: =Input!N43*Formulas!$B19 -> 0 | K19: =Input!P43*Formulas!$B19 -> 0 | L19: =Input!R43*Formulas!$B19 -> 0 | M19: =Input!T43*Formulas!$B19 -> 0 | N19: =Input!V43*Formulas!$B19 -> 0 | O19: =Input!X43*Formulas!$B19 -> 0 | P19: =Input!Y43*Formulas!$B19 -> 0 | Q19: =Input!Z43*Formulas!$B19 -> 0 | R19: =Input!AA43*Formulas!$B19 -> 0 | S19: =Input!AB43*Formulas!$B19 -> 0 | T19: =Input!AC43*Formulas!$B19 -> 0 | U19: =Input!AD43*Formulas!$B19 -> 0 | V19: =Input!AE43*Formulas!$B19 -> 0 | W19: =Input!AF43*Formulas!$B19 -> 0 | X19: =Input!AG43*Formulas!$B19 -> 0
A20: Extra 4 | B20: 1 | C20: Gross | E20: =Input!D44*Formulas!$B20 -> 0 | F20: =Input!F44*Formulas!$B20 -> 0 | G20: =Input!H44*Formulas!$B20 -> 0 | H20: =Input!J44*Formulas!$B20 -> 0 | I20: =Input!L44*Formulas!$B20 -> 0 | J20: =Input!N44*Formulas!$B20 -> 0 | K20: =Input!P44*Formulas!$B20 -> 0 | L20: =Input!R44*Formulas!$B20 -> 0 | M20: =Input!T44*Formulas!$B20 -> 0 | N20: =Input!V44*Formulas!$B20 -> 0 | O20: =Input!X44*Formulas!$B20 -> 0 | P20: =Input!Y44*Formulas!$B20 -> 0 | Q20: =Input!Z44*Formulas!$B20 -> 0 | R20: =Input!AA44*Formulas!$B20 -> 0 | S20: =Input!AB44*Formulas!$B20 -> 0 | T20: =Input!AC44*Formulas!$B20 -> 0 | U20: =Input!AD44*Formulas!$B20 -> 0 | V20: =Input!AE44*Formulas!$B20 -> 0 | W20: =Input!AF44*Formulas!$B20 -> 0 | X20: =Input!AG44*Formulas!$B20 -> 0
A23: Rental - Residential | B23: 0.8 | C23: Gross | E23: =Input!D47*Formulas!$B23 -> 0 | F23: =Input!F47*Formulas!$B23 -> 0 | G23: =Input!H47*Formulas!$B23 -> 0 | H23: =Input!J47*Formulas!$B23 -> 0 | I23: =Input!L47*Formulas!$B23 -> 0 | J23: =Input!N47*Formulas!$B23 -> 0 | K23: =Input!P47*Formulas!$B23 -> 0 | L23: =Input!R47*Formulas!$B23 -> 0 | M23: =Input!T47*Formulas!$B23 -> 0 | N23: =Input!V47*Formulas!$B23 -> 0 | O23: =Input!X47*Formulas!$B23 -> 0 | P23: =Input!Y47*Formulas!$B23 -> 0 | Q23: =Input!Z47*Formulas!$B23 -> 0 | R23: =Input!AA47*Formulas!$B23 -> 0 | S23: =Input!AB47*Formulas!$B23 -> 0 | T23: =Input!AC47*Formulas!$B23 -> 0 | U23: =Input!AD47*Formulas!$B23 -> 0 | V23: =Input!AE47*Formulas!$B23 -> 0 | W23: =Input!AF47*Formulas!$B23 -> 0 | X23: =Input!AG47*Formulas!$B23 -> 0
A24: Rental - Commercial | B24: 0.65 | C24: Gross | E24: =Input!D48*Formulas!$B24 -> 0 | F24: =Input!F48*Formulas!$B24 -> 0 | G24: =Input!H48*Formulas!$B24 -> 0 | H24: =Input!J48*Formulas!$B24 -> 0 | I24: =Input!L48*Formulas!$B24 -> 0 | J24: =Input!N48*Formulas!$B24 -> 0 | K24: =Input!P48*Formulas!$B24 -> 0 | L24: =Input!R48*Formulas!$B24 -> 0 | M24: =Input!T48*Formulas!$B24 -> 0 | N24: =Input!V48*Formulas!$B24 -> 0 | O24: =Input!X48*Formulas!$B24 -> 0 | P24: =Input!Y48*Formulas!$B24 -> 0 | Q24: =Input!Z48*Formulas!$B24 -> 0 | R24: =Input!AA48*Formulas!$B24 -> 0 | S24: =Input!AB48*Formulas!$B24 -> 0 | T24: =Input!AC48*Formulas!$B24 -> 0 | U24: =Input!AD48*Formulas!$B24 -> 0 | V24: =Input!AE48*Formulas!$B24 -> 0 | W24: =Input!AF48*Formulas!$B24 -> 0 | X24: =Input!AG48*Formulas!$B24 -> 0
A25: Rental - Foreign | B25: 0.72 | C25: Gross | E25: =Input!D49*Formulas!$B25 -> 0 | F25: =Input!F49*Formulas!$B25 -> 0 | G25: =Input!H49*Formulas!$B25 -> 0 | H25: =Input!J49*Formulas!$B25 -> 0 | I25: =Input!L49*Formulas!$B25 -> 0 | J25: =Input!N49*Formulas!$B25 -> 0 | K25: =Input!P49*Formulas!$B25 -> 0 | L25: =Input!R49*Formulas!$B25 -> 0 | M25: =Input!T49*Formulas!$B25 -> 0 | N25: =Input!V49*Formulas!$B25 -> 0 | O25: =Input!X49*Formulas!$B25 -> 0 | P25: =Input!Y49*Formulas!$B25 -> 0 | Q25: =Input!Z49*Formulas!$B25 -> 0 | R25: =Input!AA49*Formulas!$B25 -> 0 | S25: =Input!AB49*Formulas!$B25 -> 0 | T25: =Input!AC49*Formulas!$B25 -> 0 | U25: =Input!AD49*Formulas!$B25 -> 0 | V25: =Input!AE49*Formulas!$B25 -> 0 | W25: =Input!AF49*Formulas!$B25 -> 0 | X25: =Input!AG49*Formulas!$B25 -> 0
A26: Rental - Cat 3 | B26: 0.6 | C26: Gross | E26: =Input!D50*Formulas!$B26 -> 0 | F26: =Input!F50*Formulas!$B26 -> 0 | G26: =Input!H50*Formulas!$B26 -> 0 | H26: =Input!J50*Formulas!$B26 -> 0 | I26: =Input!L50*Formulas!$B26 -> 0 | J26: =Input!N50*Formulas!$B26 -> 0 | K26: =Input!P50*Formulas!$B26 -> 0 | L26: =Input!R50*Formulas!$B26 -> 0 | M26: =Input!T50*Formulas!$B26 -> 0 | N26: =Input!V50*Formulas!$B26 -> 0 | O26: =Input!X50*Formulas!$B26 -> 0 | P26: =Input!Y50*Formulas!$B26 -> 0 | Q26: =Input!Z50*Formulas!$B26 -> 0 | R26: =Input!AA50*Formulas!$B26 -> 0 | S26: =Input!AB50*Formulas!$B26 -> 0 | T26: =Input!AC50*Formulas!$B26 -> 0 | U26: =Input!AD50*Formulas!$B26 -> 0 | V26: =Input!AE50*Formulas!$B26 -> 0 | W26: =Input!AF50*Formulas!$B26 -> 0 | X26: =Input!AG50*Formulas!$B26 -> 0
A27: Extra 2 | B27: 1 | C27: Gross | E27: =Input!D51*Formulas!$B27 -> 0 | F27: =Input!F51*Formulas!$B27 -> 0 | G27: =Input!H51*Formulas!$B27 -> 0 | H27: =Input!J51*Formulas!$B27 -> 0 | I27: =Input!L51*Formulas!$B27 -> 0 | J27: =Input!N51*Formulas!$B27 -> 0 | K27: =Input!P51*Formulas!$B27 -> 0 | L27: =Input!R51*Formulas!$B27 -> 0 | M27: =Input!T51*Formulas!$B27 -> 0 | N27: =Input!V51*Formulas!$B27 -> 0 | O27: =Input!X51*Formulas!$B27 -> 0 | P27: =Input!Y51*Formulas!$B27 -> 0 | Q27: =Input!Z51*Formulas!$B27 -> 0 | R27: =Input!AA51*Formulas!$B27 -> 0 | S27: =Input!AB51*Formulas!$B27 -> 0 | T27: =Input!AC51*Formulas!$B27 -> 0 | U27: =Input!AD51*Formulas!$B27 -> 0 | V27: =Input!AE51*Formulas!$B27 -> 0 | W27: =Input!AF51*Formulas!$B27 -> 0 | X27: =Input!AG51*Formulas!$B27 -> 0
A28: Extra 3 | B28: 1 | C28: Gross | E28: =Input!D52*Formulas!$B28 -> 0 | F28: =Input!F52*Formulas!$B28 -> 0 | G28: =Input!H52*Formulas!$B28 -> 0 | H28: =Input!J52*Formulas!$B28 -> 0 | I28: =Input!L52*Formulas!$B28 -> 0 | J28: =Input!N52*Formulas!$B28 -> 0 | K28: =Input!P52*Formulas!$B28 -> 0 | L28: =Input!R52*Formulas!$B28 -> 0 | M28: =Input!T52*Formulas!$B28 -> 0 | N28: =Input!V52*Formulas!$B28 -> 0 | O28: =Input!X52*Formulas!$B28 -> 0 | P28: =Input!Y52*Formulas!$B28 -> 0 | Q28: =Input!Z52*Formulas!$B28 -> 0 | R28: =Input!AA52*Formulas!$B28 -> 0 | S28: =Input!AB52*Formulas!$B28 -> 0 | T28: =Input!AC52*Formulas!$B28 -> 0 | U28: =Input!AD52*Formulas!$B28 -> 0 | V28: =Input!AE52*Formulas!$B28 -> 0 | W28: =Input!AF52*Formulas!$B28 -> 0 | X28: =Input!AG52*Formulas!$B28 -> 0
A29: Extra 4 | B29: 1 | C29: Gross | E29: =Input!D53*Formulas!$B29 -> 0 | F29: =Input!F53*Formulas!$B29 -> 0 | G29: =Input!H53*Formulas!$B29 -> 0 | H29: =Input!J53*Formulas!$B29 -> 0 | I29: =Input!L53*Formulas!$B29 -> 0 | J29: =Input!N53*Formulas!$B29 -> 0 | K29: =Input!P53*Formulas!$B29 -> 0 | L29: =Input!R53*Formulas!$B29 -> 0 | M29: =Input!T53*Formulas!$B29 -> 0 | N29: =Input!V53*Formulas!$B29 -> 0 | O29: =Input!X53*Formulas!$B29 -> 0 | P29: =Input!Y53*Formulas!$B29 -> 0 | Q29: =Input!Z53*Formulas!$B29 -> 0 | R29: =Input!AA53*Formulas!$B29 -> 0 | S29: =Input!AB53*Formulas!$B29 -> 0 | T29: =Input!AC53*Formulas!$B29 -> 0 | U29: =Input!AD53*Formulas!$B29 -> 0 | V29: =Input!AE53*Formulas!$B29 -> 0 | W29: =Input!AF53*Formulas!$B29 -> 0 | X29: =Input!AG53*Formulas!$B29 -> 0
A32: Centrelink | B32: 1 | C32: Net | E32: =Input!D56*Formulas!$B32 -> 0 | F32: =Input!F56*Formulas!$B32 -> 0 | G32: =Input!H56*Formulas!$B32 -> 0 | H32: =Input!J56*Formulas!$B32 -> 0 | I32: =Input!L56*Formulas!$B32 -> 0 | J32: =Input!N56*Formulas!$B32 -> 0 | K32: =Input!P56*Formulas!$B32 -> 0 | L32: =Input!R56*Formulas!$B32 -> 0 | M32: =Input!T56*Formulas!$B32 -> 0 | N32: =Input!V56*Formulas!$B32 -> 0 | O32: =Input!X56*Formulas!$B32 -> 0 | P32: =Input!Y56*Formulas!$B32 -> 0 | Q32: =Input!Z56*Formulas!$B32 -> 0 | R32: =Input!AA56*Formulas!$B32 -> 0 | S32: =Input!AB56*Formulas!$B32 -> 0 | T32: =Input!AC56*Formulas!$B32 -> 0 | U32: =Input!AD56*Formulas!$B32 -> 0 | V32: =Input!AE56*Formulas!$B32 -> 0 | W32: =Input!AF56*Formulas!$B32 -> 0 | X32: =Input!AG56*Formulas!$B32 -> 0
A33: Child Support | B33: 1 | C33: Net | E33: =Input!D57*Formulas!$B33 -> 0 | F33: =Input!F57*Formulas!$B33 -> 0 | G33: =Input!H57*Formulas!$B33 -> 0 | H33: =Input!J57*Formulas!$B33 -> 0 | I33: =Input!L57*Formulas!$B33 -> 0 | J33: =Input!N57*Formulas!$B33 -> 0 | K33: =Input!P57*Formulas!$B33 -> 0 | L33: =Input!R57*Formulas!$B33 -> 0 | M33: =Input!T57*Formulas!$B33 -> 0 | N33: =Input!V57*Formulas!$B33 -> 0 | O33: =Input!X57*Formulas!$B33 -> 0 | P33: =Input!Y57*Formulas!$B33 -> 0 | Q33: =Input!Z57*Formulas!$B33 -> 0 | R33: =Input!AA57*Formulas!$B33 -> 0 | S33: =Input!AB57*Formulas!$B33 -> 0 | T33: =Input!AC57*Formulas!$B33 -> 0 | U33: =Input!AD57*Formulas!$B33 -> 0 | V33: =Input!AE57*Formulas!$B33 -> 0 | W33: =Input!AF57*Formulas!$B33 -> 0 | X33: =Input!AG57*Formulas!$B33 -> 0
A34: Other | B34: 1 | C34: Net | E34: =Input!D58*Formulas!$B34 -> 0 | F34: =Input!F58*Formulas!$B34 -> 0 | G34: =Input!H58*Formulas!$B34 -> 0 | H34: =Input!J58*Formulas!$B34 -> 0 | I34: =Input!L58*Formulas!$B34 -> 0 | J34: =Input!N58*Formulas!$B34 -> 0 | K34: =Input!P58*Formulas!$B34 -> 0 | L34: =Input!R58*Formulas!$B34 -> 0 | M34: =Input!T58*Formulas!$B34 -> 0 | N34: =Input!V58*Formulas!$B34 -> 0 | O34: =Input!X58*Formulas!$B34 -> 0 | P34: =Input!Y58*Formulas!$B34 -> 0 | Q34: =Input!Z58*Formulas!$B34 -> 0 | R34: =Input!AA58*Formulas!$B34 -> 0 | S34: =Input!AB58*Formulas!$B34 -> 0 | T34: =Input!AC58*Formulas!$B34 -> 0 | U34: =Input!AD58*Formulas!$B34 -> 0 | V34: =Input!AE58*Formulas!$B34 -> 0 | W34: =Input!AF58*Formulas!$B34 -> 0 | X34: =Input!AG58*Formulas!$B34 -> 0
A35: Extra 2 | B35: 1 | C35: Net | E35: =Input!D59*Formulas!$B35 -> 0 | F35: =Input!F59*Formulas!$B35 -> 0 | G35: =Input!H59*Formulas!$B35 -> 0 | H35: =Input!J59*Formulas!$B35 -> 0 | I35: =Input!L59*Formulas!$B35 -> 0 | J35: =Input!N59*Formulas!$B35 -> 0 | K35: =Input!P59*Formulas!$B35 -> 0 | L35: =Input!R59*Formulas!$B35 -> 0 | M35: =Input!T59*Formulas!$B35 -> 0 | N35: =Input!V59*Formulas!$B35 -> 0 | O35: =Input!X59*Formulas!$B35 -> 0 | P35: =Input!Y59*Formulas!$B35 -> 0 | Q35: =Input!Z59*Formulas!$B35 -> 0 | R35: =Input!AA59*Formulas!$B35 -> 0 | S35: =Input!AB59*Formulas!$B35 -> 0 | T35: =Input!AC59*Formulas!$B35 -> 0 | U35: =Input!AD59*Formulas!$B35 -> 0 | V35: =Input!AE59*Formulas!$B35 -> 0 | W35: =Input!AF59*Formulas!$B35 -> 0 | X35: =Input!AG59*Formulas!$B35 -> 0
A36: Extra 3 | B36: 1 | C36: Net | E36: =Input!D60*Formulas!$B36 -> 0 | F36: =Input!F60*Formulas!$B36 -> 0 | G36: =Input!H60*Formulas!$B36 -> 0 | H36: =Input!J60*Formulas!$B36 -> 0 | I36: =Input!L60*Formulas!$B36 -> 0 | J36: =Input!N60*Formulas!$B36 -> 0 | K36: =Input!P60*Formulas!$B36 -> 0 | L36: =Input!R60*Formulas!$B36 -> 0 | M36: =Input!T60*Formulas!$B36 -> 0 | N36: =Input!V60*Formulas!$B36 -> 0 | O36: =Input!X60*Formulas!$B36 -> 0 | P36: =Input!Y60*Formulas!$B36 -> 0 | Q36: =Input!Z60*Formulas!$B36 -> 0 | R36: =Input!AA60*Formulas!$B36 -> 0 | S36: =Input!AB60*Formulas!$B36 -> 0 | T36: =Input!AC60*Formulas!$B36 -> 0 | U36: =Input!AD60*Formulas!$B36 -> 0 | V36: =Input!AE60*Formulas!$B36 -> 0 | W36: =Input!AF60*Formulas!$B36 -> 0 | X36: =Input!AG60*Formulas!$B36 -> 0
A37: Extra 4 | B37: 1 | C37: Net | E37: =Input!D61*Formulas!$B37 -> 0 | F37: =Input!F61*Formulas!$B37 -> 0 | G37: =Input!H61*Formulas!$B37 -> 0 | H37: =Input!J61*Formulas!$B37 -> 0 | I37: =Input!L61*Formulas!$B37 -> 0 | J37: =Input!N61*Formulas!$B37 -> 0 | K37: =Input!P61*Formulas!$B37 -> 0 | L37: =Input!R61*Formulas!$B37 -> 0 | M37: =Input!T61*Formulas!$B37 -> 0 | N37: =Input!V61*Formulas!$B37 -> 0 | O37: =Input!X61*Formulas!$B37 -> 0 | P37: =Input!Y61*Formulas!$B37 -> 0 | Q37: =Input!Z61*Formulas!$B37 -> 0 | R37: =Input!AA61*Formulas!$B37 -> 0 | S37: =Input!AB61*Formulas!$B37 -> 0 | T37: =Input!AC61*Formulas!$B37 -> 0 | U37: =Input!AD61*Formulas!$B37 -> 0 | V37: =Input!AE61*Formulas!$B37 -> 0 | W37: =Input!AF61*Formulas!$B37 -> 0 | X37: =Input!AG61*Formulas!$B37 -> 0
A40: Taxable | B40: 1 | C40: =IF(Input!$D$13=Console!$K$9,"Net","Gross") -> Gross | E40: =Input!D64*IF('Income Calculators'!J12=Console!$AJ$8,(1-Console!$AJ$3),1)*Formulas!$B40 -> 0 | F40: =Input!F64*IF('Income Calculators'!L12=Console!$AJ$8,(1-Console!$AJ$3),1)*Formulas!$B40 -> 0 | G40: =Input!H64*IF('Income Calculators'!N12=Console!$AJ$8,(1-Console!$AJ$3),1)*Formulas!$B40 -> 0 | H40: =Input!J64*IF('Income Calculators'!P12=Console!$AJ$8,(1-Console!$AJ$3),1)*Formulas!$B40 -> 0 | I40: =Input!L64*IF('Income Calculators'!R12=Console!$AJ$8,(1-Console!$AJ$3),1)*Formulas!$B40 -> 0 | J40: =Input!N64*(1-Console!$AJ$3)*Formulas!$B40 -> 0 | K40: =Input!P64*(1-Console!$AJ$3)*Formulas!$B40 -> 0 | L40: =Input!R64*(1-Console!$AJ$3)*Formulas!$B40 -> 0 | M40: =Input!T64*(1-Console!$AJ$3)*Formulas!$B40 -> 0 | N40: =Input!V64*Formulas!$B40 -> 0 | O40: =Input!X64*Formulas!$B40 -> 0 | P40: =Input!Y64*Formulas!$B40 -> 0 | Q40: =Input!Z64*Formulas!$B40 -> 0 | R40: =Input!AA64*Formulas!$B40 -> 0 | S40: =Input!AB64*Formulas!$B40 -> 0 | T40: =Input!AC64*Formulas!$B40 -> 0 | U40: =Input!AD64*Formulas!$B40 -> 0 | V40: =Input!AE64*Formulas!$B40 -> 0 | W40: =Input!AF64*Formulas!$B40 -> 0 | X40: =Input!AG64*Formulas!$B40 -> 0
A41: Non-Taxable | B41: 1 | C41: Net | E41: =Input!D65*Formulas!$B41 -> 0 | F41: =Input!F65*Formulas!$B41 -> 0 | G41: =Input!H65*Formulas!$B41 -> 0 | H41: =Input!J65*Formulas!$B41 -> 0 | I41: =Input!L65*Formulas!$B41 -> 0 | J41: =Input!N65*Formulas!$B41 -> 0 | K41: =Input!P65*Formulas!$B41 -> 0 | L41: =Input!R65*Formulas!$B41 -> 0 | M41: =Input!T65*Formulas!$B41 -> 0 | N41: =Input!V65*Formulas!$B41 -> 0 | O41: =Input!X65*Formulas!$B41 -> 0 | P41: =Input!Y65*Formulas!$B41 -> 0 | Q41: =Input!Z65*Formulas!$B41 -> 0 | R41: =Input!AA65*Formulas!$B41 -> 0 | S41: =Input!AB65*Formulas!$B41 -> 0 | T41: =Input!AC65*Formulas!$B41 -> 0 | U41: =Input!AD65*Formulas!$B41 -> 0 | V41: =Input!AE65*Formulas!$B41 -> 0 | W41: =Input!AF65*Formulas!$B41 -> 0 | X41: =Input!AG65*Formulas!$B41 -> 0
A42: Extra 0 | B42: 1 | C42: =IF(Input!$D$13=Console!$K$9,"Net","Gross") -> Gross | E42: =Input!D66*Formulas!$B42 -> 0 | F42: =Input!F66*Formulas!$B42 -> 0 | G42: =Input!H66*Formulas!$B42 -> 0 | H42: =Input!J66*Formulas!$B42 -> 0 | I42: =Input!L66*Formulas!$B42 -> 0 | J42: =Input!N66*Formulas!$B42 -> 0 | K42: =Input!P66*Formulas!$B42 -> 0 | L42: =Input!R66*Formulas!$B42 -> 0 | M42: =Input!T66*Formulas!$B42 -> 0 | N42: =Input!V66*Formulas!$B42 -> 0 | O42: =Input!X66*Formulas!$B42 -> 0 | P42: =Input!Y66*Formulas!$B42 -> 0 | Q42: =Input!Z66*Formulas!$B42 -> 0 | R42: =Input!AA66*Formulas!$B42 -> 0 | S42: =Input!AB66*Formulas!$B42 -> 0 | T42: =Input!AC66*Formulas!$B42 -> 0 | U42: =Input!AD66*Formulas!$B42 -> 0 | V42: =Input!AE66*Formulas!$B42 -> 0 | W42: =Input!AF66*Formulas!$B42 -> 0 | X42: =Input!AG66*Formulas!$B42 -> 0
A43: Extra 1 | B43: 1 | C43: =IF(Input!$D$13=Console!$K$9,"Net","Gross") -> Gross | E43: =Input!D67*Formulas!$B43 -> 0 | F43: =Input!F67*Formulas!$B43 -> 0 | G43: =Input!H67*Formulas!$B43 -> 0 | H43: =Input!J67*Formulas!$B43 -> 0 | I43: =Input!L67*Formulas!$B43 -> 0 | J43: =Input!N67*Formulas!$B43 -> 0 | K43: =Input!P67*Formulas!$B43 -> 0 | L43: =Input!R67*Formulas!$B43 -> 0 | M43: =Input!T67*Formulas!$B43 -> 0 | N43: =Input!V67*Formulas!$B43 -> 0 | O43: =Input!X67*Formulas!$B43 -> 0 | P43: =Input!Y67*Formulas!$B43 -> 0 | Q43: =Input!Z67*Formulas!$B43 -> 0 | R43: =Input!AA67*Formulas!$B43 -> 0 | S43: =Input!AB67*Formulas!$B43 -> 0 | T43: =Input!AC67*Formulas!$B43 -> 0 | U43: =Input!AD67*Formulas!$B43 -> 0 | V43: =Input!AE67*Formulas!$B43 -> 0 | W43: =Input!AF67*Formulas!$B43 -> 0 | X43: =Input!AG67*Formulas!$B43 -> 0
A44: Extra 2 | B44: 1 | C44: =IF(Input!$D$13=Console!$K$9,"Net","Gross") -> Gross | E44: =Input!D68*Formulas!$B44 -> 0 | F44: =Input!F68*Formulas!$B44 -> 0 | G44: =Input!H68*Formulas!$B44 -> 0 | H44: =Input!J68*Formulas!$B44 -> 0 | I44: =Input!L68*Formulas!$B44 -> 0 | J44: =Input!N68*Formulas!$B44 -> 0 | K44: =Input!P68*Formulas!$B44 -> 0 | L44: =Input!R68*Formulas!$B44 -> 0 | M44: =Input!T68*Formulas!$B44 -> 0 | N44: =Input!V68*Formulas!$B44 -> 0 | O44: =Input!X68*Formulas!$B44 -> 0 | P44: =Input!Y68*Formulas!$B44 -> 0 | Q44: =Input!Z68*Formulas!$B44 -> 0 | R44: =Input!AA68*Formulas!$B44 -> 0 | S44: =Input!AB68*Formulas!$B44 -> 0 | T44: =Input!AC68*Formulas!$B44 -> 0 | U44: =Input!AD68*Formulas!$B44 -> 0 | V44: =Input!AE68*Formulas!$B44 -> 0 | W44: =Input!AF68*Formulas!$B44 -> 0 | X44: =Input!AG68*Formulas!$B44 -> 0
A45: Extra 3 | B45: 1 | C45: =IF(Input!$D$13=Console!$K$9,"Net","Gross") -> Gross | E45: =Input!D69*Formulas!$B45 -> 0 | F45: =Input!F69*Formulas!$B45 -> 0 | G45: =Input!H69*Formulas!$B45 -> 0 | H45: =Input!J69*Formulas!$B45 -> 0 | I45: =Input!L69*Formulas!$B45 -> 0 | J45: =Input!N69*Formulas!$B45 -> 0 | K45: =Input!P69*Formulas!$B45 -> 0 | L45: =Input!R69*Formulas!$B45 -> 0 | M45: =Input!T69*Formulas!$B45 -> 0 | N45: =Input!V69*Formulas!$B45 -> 0 | O45: =Input!X69*Formulas!$B45 -> 0 | P45: =Input!Y69*Formulas!$B45 -> 0 | Q45: =Input!Z69*Formulas!$B45 -> 0 | R45: =Input!AA69*Formulas!$B45 -> 0 | S45: =Input!AB69*Formulas!$B45 -> 0 | T45: =Input!AC69*Formulas!$B45 -> 0 | U45: =Input!AD69*Formulas!$B45 -> 0 | V45: =Input!AE69*Formulas!$B45 -> 0 | W45: =Input!AF69*Formulas!$B45 -> 0 | X45: =Input!AG69*Formulas!$B45 -> 0
A46: Extra 4 | B46: 1 | C46: =IF(Input!$D$13=Console!$K$9,"Net","Gross") -> Gross | E46: =Input!D70*Formulas!$B46 -> 0 | F46: =Input!F70*Formulas!$B46 -> 0 | G46: =Input!H70*Formulas!$B46 -> 0 | H46: =Input!J70*Formulas!$B46 -> 0 | I46: =Input!L70*Formulas!$B46 -> 0 | J46: =Input!N70*Formulas!$B46 -> 0 | K46: =Input!P70*Formulas!$B46 -> 0 | L46: =Input!R70*Formulas!$B46 -> 0 | M46: =Input!T70*Formulas!$B46 -> 0 | N46: =Input!V70*Formulas!$B46 -> 0 | O46: =Input!X70*Formulas!$B46 -> 0 | P46: =Input!Y70*Formulas!$B46 -> 0 | Q46: =Input!Z70*Formulas!$B46 -> 0 | R46: =Input!AA70*Formulas!$B46 -> 0 | S46: =Input!AB70*Formulas!$B46 -> 0 | T46: =Input!AC70*Formulas!$B46 -> 0 | U46: =Input!AD70*Formulas!$B46 -> 0 | V46: =Input!AE70*Formulas!$B46 -> 0 | W46: =Input!AF70*Formulas!$B46 -> 0 | X46: =Input!AG70*Formulas!$B46 -> 0
A47: On/ Off | J47: =IF(Input!F24>=Input!N24,1,0) -> 0 | K47: =IF(Input!F24>=Input!P24,1,0) -> 0 | L47: =IF(Input!F24>=Input!R24,1,0) -> 0 | M47: =IF(Input!F24>=Input!T24,1,0) -> 0 | N47: =IF(Input!F24>=Input!V24,1,0) -> 0
E48: Applicant 1 | F48: Applicant 2 | G48: Applicant 3 | H48: Applicant 4 | I48: Applicant 5 | J48: Applicant 6 | K48: Applicant 7 | L48: Applicant 8 | M48: Applicant 9 | N48: Applicant 10 | O48: Applicant 11 | P48: Applicant 12 | Q48: Applicant 13 | R48: Applicant 14 | S48: Applicant 15 | T48: Applicant 16 | U48: Applicant 17 | V48: Applicant 18 | W48: Applicant 19 | X48: Applicant 20
A49: Total Income | E49: =SUM(Input!D29:D34,Input!D37:D44,Input!D47:D53,Input!D56:D61,Input!D64:D70) -> 0 | F49: =SUM(Input!F29:F34,Input!F37:F44,Input!F47:F53,Input!F56:F61,Input!F64:F70) -> 0 | G49: =SUM(Input!H29:H34,Input!H37:H44,Input!H47:H53,Input!H56:H61,Input!H64:H70) -> 0 | H49: =SUM(Input!J29:J34,Input!J37:J44,Input!J47:J53,Input!J56:J61,Input!J64:J70) -> 0 | I49: =SUM(Input!L29:L34,Input!L37:L44,Input!L47:L53,Input!L56:L61,Input!L64:L70) -> 0 | J49: =SUM(Input!N29:N34,Input!N37:N44,Input!N47:N53,Input!N56:N61,Input!N64:N70)*J47 -> 0 | K49: =SUM(Input!P29:P34,Input!P37:P44,Input!P47:P53,Input!P56:P61,Input!P64:P70)*K47 -> 0 | L49: =SUM(Input!R29:R34,Input!R37:R44,Input!R47:R53,Input!R56:R61,Input!R64:R70)*L47 -> 0 | M49: =SUM(Input!T29:T34,Input!T37:T44,Input!T47:T53,Input!T56:T61,Input!T64:T70)*M47 -> 0 | N49: =SUM(Input!V29:V34,Input!V37:V44,Input!V47:V53,Input!V56:V61,Input!V64:V70)*N47 -> 0 | O49: =SUM(Input!X29:X34,Input!X37:X44,Input!X47:X53,Input!X56:X61,Input!X64:X70) -> 0 | P49: =SUM(Input!Y29:Y34,Input!Y37:Y44,Input!Y47:Y53,Input!Y56:Y61,Input!Y64:Y70) -> 0 | Q49: =SUM(Input!Z29:Z34,Input!Z37:Z44,Input!Z47:Z53,Input!Z56:Z61,Input!Z64:Z70) -> 0 | R49: =SUM(Input!AA29:AA34,Input!AA37:AA44,Input!AA47:AA53,Input!AA56:AA61,Input!AA64:AA70) -> 0 | S49: =SUM(Input!AB29:AB34,Input!AB37:AB44,Input!AB47:AB53,Input!AB56:AB61,Input!AB64:AB70) -> 0 | T49: =SUM(Input!AC29:AC34,Input!AC37:AC44,Input!AC47:AC53,Input!AC56:AC61,Input!AC64:AC70) -> 0 | U49: =SUM(Input!AD29:AD34,Input!AD37:AD44,Input!AD47:AD53,Input!AD56:AD61,Input!AD64:AD70) -> 0 | V49: =SUM(Input!AE29:AE34,Input!AE37:AE44,Input!AE47:AE53,Input!AE56:AE61,Input!AE64:AE70) -> 0 | W49: =SUM(Input!AF29:AF34,Input!AF37:AF44,Input!AF47:AF53,Input!AF56:AF61,Input!AF64:AF70) -> 0 | X49: =SUM(Input!AG29:AG34,Input!AG37:AG44,Input!AG47:AG53,Input!AG56:AG61,Input!AG64:AG70) -> 0
A50: Total Allowable Income | E50: =SUM(E5:E46) -> 0 | F50: =SUM(F5:F46) -> 0 | G50: 0 | H50: 0 | I50: 0 | J50: =SUM(J5:J46)*J47 -> 0 | K50: =SUM(K5:K46)*K47 -> 0 | L50: 0 | M50: 0 | N50: 0 | O50: 0 | P50: 0 | Q50: 0 | R50: 0 | S50: 0 | T50: 0 | U50: 0 | V50: 0 | W50: 0 | X50: 0
A51: Declared Gross Income | C51: Gross | E51: =SUMIF($C$5:$C$46,$C$51,E$5:E$46)+IF(AND(Input!$D$13=Console!$K$8,'Income Calculators'!J12=Console!$AJ$8),'Income Calculators'!J25*Console!$AJ$3,0)+IF(AND(Input!$D$13=Console!$K$9,OR('Income Calculators'!J12=Console!$AJ$6,'Income Calculators'!J12=Console!$AJ$7)),'Income Calculators'!J25+'Income Calculators'!J33,0) -> 0 | F51: =SUMIF($C$5:$C$46,$C$51,F$5:F$46)+IF(AND(Input!$D$13=Console!$K$8,'Income Calculators'!L12=Console!$AJ$8),'Income Calculators'!L25*Console!$AJ$3,0)+IF(AND(Input!$D$13=Console!$K$9,OR('Income Calculators'!L12=Console!$AJ$6,'Income Calculators'!L12=Console!$AJ$7)),'Income Calculators'!L25+'Income Calculators'!L33,0) -> 0 | G51: =SUMIF($C$5:$C$46,$C$51,G$5:G$46)+IF(AND(Input!$D$13=Console!$K$8,'Income Calculators'!N12=Console!$AJ$8),'Income Calculators'!N25*Console!$AJ$3,0)+IF(AND(Input!$D$13=Console!$K$9,OR('Income Calculators'!N12=Console!$AJ$6,'Income Calculators'!N12=Console!$AJ$7)),'Income Calculators'!N25+'Income Calculators'!N33,0) -> 0 | H51: =SUMIF($C$5:$C$46,$C$51,H$5:H$46)+IF(AND(Input!$D$13=Console!$K$8,'Income Calculators'!P12=Console!$AJ$8),'Income Calculators'!P25*Console!$AJ$3,0)+IF(AND(Input!$D$13=Console!$K$9,OR('Income Calculators'!P12=Console!$AJ$6,'Income Calculators'!P12=Console!$AJ$7)),'Income Calculators'!P25+'Income Calculators'!P33,0) -> 0 | I51: =SUMIF($C$5:$C$46,$C$51,I$5:I$46)+IF(AND(Input!$D$13=Console!$K$8,'Income Calculators'!R12=Console!$AJ$8),'Income Calculators'!R25*Console!$AJ$3,0)+IF(AND(Input!$D$13=Console!$K$9,OR('Income Calculators'!R12=Console!$AJ$6,'Income Calculators'!R12=Console!$AJ$7)),'Income Calculators'!R25+'Income Calculators'!R33,0) -> 0 | J51: =SUMIF($C$5:$C$46,$C$51,J$5:J$46)*J47 -> 0 | K51: =SUMIF($C$5:$C$46,$C$51,K$5:K$46)*K47 -> 0 | L51: 0 | M51: 0 | N51: 0 | O51: =SUMIF($C$5:$C$46,$C$51,O$5:O$46) -> 0 | P51: 0 | Q51: 0 | R51: 0 | S51: 0 | T51: 0 | U51: 0 | V51: 0 | W51: 0 | X51: 0
A52: Declared Net Income | C52: Net | E52: =SUMIF($C$5:$C$46,$C$52,E$5:E$46)-IF(AND(Input!$D$13=Console!$K$9,OR('Income Calculators'!J12=Console!$AJ$6,'Income Calculators'!J12=Console!$AJ$7)),'Income Calculators'!J25+'Income Calculators'!J33,0) -> 0 | F52: =SUMIF($C$5:$C$46,$C$52,F$5:F$46)-IF(AND(Input!$D$13=Console!$K$9,OR('Income Calculators'!L12=Console!$AJ$6,'Income Calculators'!L12=Console!$AJ$7)),'Income Calculators'!L25+'Income Calculators'!L33,0) -> 0 | G52: =SUMIF($C$5:$C$46,$C$52,G$5:G$46)-IF(AND(Input!$D$13=Console!$K$9,OR('Income Calculators'!N12=Console!$AJ$6,'Income Calculators'!N12=Console!$AJ$7)),'Income Calculators'!N25+'Income Calculators'!N33,0) -> 0 | H52: =SUMIF($C$5:$C$46,$C$52,H$5:H$46)-IF(AND(Input!$D$13=Console!$K$9,OR('Income Calculators'!P12=Console!$AJ$6,'Income Calculators'!P12=Console!$AJ$7)),'Income Calculators'!P25+'Income Calculators'!P33,0) -> 0 | I52: =SUMIF($C$5:$C$46,$C$52,I$5:I$46)-IF(AND(Input!$D$13=Console!$K$9,OR('Income Calculators'!R12=Console!$AJ$6,'Income Calculators'!R12=Console!$AJ$7)),'Income Calculators'!R25+'Income Calculators'!R33,0) -> 0 | J52: =SUMIF($C$5:$C$46,$C$52,J$5:J$46)*J47 -> 0 | K52: =SUMIF($C$5:$C$46,$C$52,K$5:K$46)*K47 -> 0 | L52: 0 | M52: 0 | N52: 0 | O52: =SUMIF($C$5:$C$46,$C$52,O$5:O$46) -> 0 | P52: 0 | Q52: 0 | R52: 0 | S52: 0 | T52: 0 | U52: 0 | V52: 0 | W52: 0 | X52: 0
A53: Negative gearing factor | E53: =(E51/20000)*E51 -> 0 | F53: =(F51/20000)*F51 -> 0 | G53: 0 | H53: 0 | I53: 0 | J53: 0 | K53: 0 | L53: 0 | M53: 0 | N53: 0 | O53: 0 | P53: 0 | Q53: 0 | R53: 0 | S53: 0 | T53: 0 | U53: 0 | V53: 0 | W53: 0 | X53: 0
A54: Negative gearing attribution | E54: =IFERROR(E53/SUM($E$53:$X$53),0) -> 0 | F54: =IFERROR(F53/SUM($E$53:$X$53),0) -> 0 | G54: 0 | H54: 0 | I54: 0 | J54: 0 | K54: 0 | L54: 0 | M54: 0 | N54: 0 | O54: 0 | P54: 0 | Q54: 0 | R54: 0 | S54: 0 | T54: 0 | U54: 0 | V54: 0 | W54: 0 | X54: 0
A55: Negative Gearing Interest Deduction | E55: =E54*$C$96+E62 -> 0 | F55: =F54*$C$96+F62 -> 0 | G55: 0 | H55: 0 | I55: 0 | J55: 0 | K55: 0 | L55: 0 | M55: 0 | N55: 0 | O55: 0 | P55: 0 | Q55: 0 | R55: 0 | S55: 0 | T55: 0 | U55: 0 | V55: 0 | W55: 0 | X55: 0
A56: Total Taxable Income | E56: =MAX(E51-E55,0) -> 0 | F56: =MAX(F51-F55,0) -> 0 | G56: 0 | H56: 0 | I56: 0 | J56: 0 | K56: 0 | L56: 0 | M56: 0 | N56: 0 | O56: 0 | P56: 0 | Q56: 0 | R56: 0 | S56: 0 | T56: 0 | U56: 0 | V56: 0 | W56: 0 | X56: 0
A57: Income Tax | E57: =MAX(IF(E56<=Console!$AD$3,0,IF(E56<=Console!$AD$4,Console!$AE$4+Console!$AF$4*(E56-Console!$AC$4),IF(E56<=Console!$AD$5,Console!$AE$5+Console!$AF$5*(E56-Console!$AC$5),IF(E56<=Console!$AD$6,Console!$AE$6+Console!$AF$6*(E56-Console!$AC$6),Console!$AE$7+Console!$AF$7*(E56-Console!$AC$7)))))-E64-E65,0) -> 0 | F57: =MAX(IF(F56<=Console!$AD$3,0,IF(F56<=Console!$AD$4,Console!$AE$4+Console!$AF$4*(F56-Console!$AC$4),IF(F56<=Console!$AD$5,Console!$AE$5+Console!$AF$5*(F56-Console!$AC$5),IF(F56<=Console!$AD$6,Console!$AE$6+Console!$AF$6*(F56-Console!$AC$6),Console!$AE$7+Console!$AF$7*(F56-Console!$AC$7)))))-F64-F65,0) -> 0 | G57: =MAX(IF(G56<=Console!$AD$3,0,IF(G56<=Console!$AD$4,Console!$AE$4+Console!$AF$4*(G56-Console!$AC$4),IF(G56<=Console!$AD$5,Console!$AE$5+Console!$AF$5*(G56-Console!$AC$5),IF(G56<=Console!$AD$6,Console!$AE$6+Console!$AF$6*(G56-Console!$AC$6),Console!$AE$7+Console!$AF$7*(G56-Console!$AC$7)))))-G64-G65,0) -> 0 | H57: =MAX(IF(H56<=Console!$AD$3,0,IF(H56<=Console!$AD$4,Console!$AE$4+Console!$AF$4*(H56-Console!$AC$4),IF(H56<=Console!$AD$5,Console!$AE$5+Console!$AF$5*(H56-Console!$AC$5),IF(H56<=Console!$AD$6,Console!$AE$6+Console!$AF$6*(H56-Console!$AC$6),Console!$AE$7+Console!$AF$7*(H56-Console!$AC$7)))))-H64-H65,0) -> 0 | I57: =MAX(IF(I56<=Console!$AD$3,0,IF(I56<=Console!$AD$4,Console!$AE$4+Console!$AF$4*(I56-Console!$AC$4),IF(I56<=Console!$AD$5,Console!$AE$5+Console!$AF$5*(I56-Console!$AC$5),IF(I56<=Console!$AD$6,Console!$AE$6+Console!$AF$6*(I56-Console!$AC$6),Console!$AE$7+Console!$AF$7*(I56-Console!$AC$7)))))-I64-I65,0) -> 0 | J57: =MAX(IF(J56<=Console!$AD$3,0,IF(J56<=Console!$AD$4,Console!$AE$4+Console!$AF$4*(J56-Console!$AC$4),IF(J56<=Console!$AD$5,Console!$AE$5+Console!$AF$5*(J56-Console!$AC$5),IF(J56<=Console!$AD$6,Console!$AE$6+Console!$AF$6*(J56-Console!$AC$6),Console!$AE$7+Console!$AF$7*(J56-Console!$AC$7)))))-J64-J65,0) -> 0 | K57: =MAX(IF(K56<=Console!$AD$3,0,IF(K56<=Console!$AD$4,Console!$AE$4+Console!$AF$4*(K56-Console!$AC$4),IF(K56<=Console!$AD$5,Console!$AE$5+Console!$AF$5*(K56-Console!$AC$5),IF(K56<=Console!$AD$6,Console!$AE$6+Console!$AF$6*(K56-Console!$AC$6),Console!$AE$7+Console!$AF$7*(K56-Console!$AC$7)))))-K64-K65,0) -> 0 | L57: =MAX(IF(L56<=Console!$AD$3,0,IF(L56<=Console!$AD$4,Console!$AE$4+Console!$AF$4*(L56-Console!$AC$4),IF(L56<=Console!$AD$5,Console!$AE$5+Console!$AF$5*(L56-Console!$AC$5),IF(L56<=Console!$AD$6,Console!$AE$6+Console!$AF$6*(L56-Console!$AC$6),Console!$AE$7+Console!$AF$7*(L56-Console!$AC$7)))))-L64-L65,0) -> 0 | M57: =MAX(IF(M56<=Console!$AD$3,0,IF(M56<=Console!$AD$4,Console!$AE$4+Console!$AF$4*(M56-Console!$AC$4),IF(M56<=Console!$AD$5,Console!$AE$5+Console!$AF$5*(M56-Console!$AC$5),IF(M56<=Console!$AD$6,Console!$AE$6+Console!$AF$6*(M56-Console!$AC$6),Console!$AE$7+Console!$AF$7*(M56-Console!$AC$7)))))-M64-M65,0) -> 0 | N57: =MAX(IF(N56<=Console!$AD$3,0,IF(N56<=Console!$AD$4,Console!$AE$4+Console!$AF$4*(N56-Console!$AC$4),IF(N56<=Console!$AD$5,Console!$AE$5+Console!$AF$5*(N56-Console!$AC$5),IF(N56<=Console!$AD$6,Console!$AE$6+Console!$AF$6*(N56-Console!$AC$6),Console!$AE$7+Console!$AF$7*(N56-Console!$AC$7)))))-N64-N65,0) -> 0 | O57: =MAX(IF(O56<=Console!$AD$3,0,IF(O56<=Console!$AD$4,Console!$AE$4+Console!$AF$4*(O56-Console!$AC$4),IF(O56<=Console!$AD$5,Console!$AE$5+Console!$AF$5*(O56-Console!$AC$5),IF(O56<=Console!$AD$6,Console!$AE$6+Console!$AF$6*(O56-Console!$AC$6),Console!$AE$7+Console!$AF$7*(O56-Console!$AC$7)))))-O64-O65,0) -> 0 | P57: =MAX(IF(P56<=Console!$AD$3,0,IF(P56<=Console!$AD$4,Console!$AE$4+Console!$AF$4*(P56-Console!$AC$4),IF(P56<=Console!$AD$5,Console!$AE$5+Console!$AF$5*(P56-Console!$AC$5),IF(P56<=Console!$AD$6,Console!$AE$6+Console!$AF$6*(P56-Console!$AC$6),Console!$AE$7+Console!$AF$7*(P56-Console!$AC$7)))))-P64-P65,0) -> 0 | Q57: =MAX(IF(Q56<=Console!$AD$3,0,IF(Q56<=Console!$AD$4,Console!$AE$4+Console!$AF$4*(Q56-Console!$AC$4),IF(Q56<=Console!$AD$5,Console!$AE$5+Console!$AF$5*(Q56-Console!$AC$5),IF(Q56<=Console!$AD$6,Console!$AE$6+Console!$AF$6*(Q56-Console!$AC$6),Console!$AE$7+Console!$AF$7*(Q56-Console!$AC$7)))))-Q64-Q65,0) -> 0 | R57: =MAX(IF(R56<=Console!$AD$3,0,IF(R56<=Console!$AD$4,Console!$AE$4+Console!$AF$4*(R56-Console!$AC$4),IF(R56<=Console!$AD$5,Console!$AE$5+Console!$AF$5*(R56-Console!$AC$5),IF(R56<=Console!$AD$6,Console!$AE$6+Console!$AF$6*(R56-Console!$AC$6),Console!$AE$7+Console!$AF$7*(R56-Console!$AC$7)))))-R64-R65,0) -> 0 | S57: =MAX(IF(S56<=Console!$AD$3,0,IF(S56<=Console!$AD$4,Console!$AE$4+Console!$AF$4*(S56-Console!$AC$4),IF(S56<=Console!$AD$5,Console!$AE$5+Console!$AF$5*(S56-Console!$AC$5),IF(S56<=Console!$AD$6,Console!$AE$6+Console!$AF$6*(S56-Console!$AC$6),Console!$AE$7+Console!$AF$7*(S56-Console!$AC$7)))))-S64-S65,0) -> 0 | T57: =MAX(IF(T56<=Console!$AD$3,0,IF(T56<=Console!$AD$4,Console!$AE$4+Console!$AF$4*(T56-Console!$AC$4),IF(T56<=Console!$AD$5,Console!$AE$5+Console!$AF$5*(T56-Console!$AC$5),IF(T56<=Console!$AD$6,Console!$AE$6+Console!$AF$6*(T56-Console!$AC$6),Console!$AE$7+Console!$AF$7*(T56-Console!$AC$7)))))-T64-T65,0) -> 0 | U57: =MAX(IF(U56<=Console!$AD$3,0,IF(U56<=Console!$AD$4,Console!$AE$4+Console!$AF$4*(U56-Console!$AC$4),IF(U56<=Console!$AD$5,Console!$AE$5+Console!$AF$5*(U56-Console!$AC$5),IF(U56<=Console!$AD$6,Console!$AE$6+Console!$AF$6*(U56-Console!$AC$6),Console!$AE$7+Console!$AF$7*(U56-Console!$AC$7)))))-U64-U65,0) -> 0 | V57: =MAX(IF(V56<=Console!$AD$3,0,IF(V56<=Console!$AD$4,Console!$AE$4+Console!$AF$4*(V56-Console!$AC$4),IF(V56<=Console!$AD$5,Console!$AE$5+Console!$AF$5*(V56-Console!$AC$5),IF(V56<=Console!$AD$6,Console!$AE$6+Console!$AF$6*(V56-Console!$AC$6),Console!$AE$7+Console!$AF$7*(V56-Console!$AC$7)))))-V64-V65,0) -> 0 | W57: =MAX(IF(W56<=Console!$AD$3,0,IF(W56<=Console!$AD$4,Console!$AE$4+Console!$AF$4*(W56-Console!$AC$4),IF(W56<=Console!$AD$5,Console!$AE$5+Console!$AF$5*(W56-Console!$AC$5),IF(W56<=Console!$AD$6,Console!$AE$6+Console!$AF$6*(W56-Console!$AC$6),Console!$AE$7+Console!$AF$7*(W56-Console!$AC$7)))))-W64-W65,0) -> 0 | X57: =MAX(IF(X56<=Console!$AD$3,0,IF(X56<=Console!$AD$4,Console!$AE$4+Console!$AF$4*(X56-Console!$AC$4),IF(X56<=Console!$AD$5,Console!$AE$5+Console!$AF$5*(X56-Console!$AC$5),IF(X56<=Console!$AD$6,Console!$AE$6+Console!$AF$6*(X56-Console!$AC$6),Console!$AE$7+Console!$AF$7*(X56-Console!$AC$7)))))-X64-X65,0) -> 0
A58: Medicare Levy | E58: =IF(Formulas!E51<=Console!$AD$3,0,E56*Console!$AH$3) -> 0 | F58: =IF(Formulas!F51<=Console!$AD$3,0,F56*Console!$AH$3) -> 0 | G58: =IF(Formulas!G51<=Console!$AD$3,0,G56*Console!$AH$3) -> 0 | H58: =IF(Formulas!H51<=Console!$AD$3,0,H56*Console!$AH$3) -> 0 | I58: =IF(Formulas!I51<=Console!$AD$3,0,I56*Console!$AH$3) -> 0 | J58: =IF(Formulas!J51<=Console!$AD$3,0,J56*Console!$AH$3) -> 0 | K58: =IF(Formulas!K51<=Console!$AD$3,0,K56*Console!$AH$3) -> 0 | L58: =IF(Formulas!L51<=Console!$AD$3,0,L56*Console!$AH$3) -> 0 | M58: =IF(Formulas!M51<=Console!$AD$3,0,M56*Console!$AH$3) -> 0 | N58: =IF(Formulas!N51<=Console!$AD$3,0,N56*Console!$AH$3) -> 0 | O58: =IF(Formulas!O51<=Console!$AD$3,0,O56*Console!$AH$3) -> 0 | P58: =IF(Formulas!P51<=Console!$AD$3,0,P56*Console!$AH$3) -> 0 | Q58: =IF(Formulas!Q51<=Console!$AD$3,0,Q56*Console!$AH$3) -> 0 | R58: =IF(Formulas!R51<=Console!$AD$3,0,R56*Console!$AH$3) -> 0 | S58: =IF(Formulas!S51<=Console!$AD$3,0,S56*Console!$AH$3) -> 0 | T58: =IF(Formulas!T51<=Console!$AD$3,0,T56*Console!$AH$3) -> 0 | U58: =IF(Formulas!U51<=Console!$AD$3,0,U56*Console!$AH$3) -> 0 | V58: =IF(Formulas!V51<=Console!$AD$3,0,V56*Console!$AH$3) -> 0 | W58: =IF(Formulas!W51<=Console!$AD$3,0,W56*Console!$AH$3) -> 0 | X58: =IF(Formulas!X51<=Console!$AD$3,0,X56*Console!$AH$3) -> 0
A59: Net Income | E59: =E51-E57-E58+E52 -> 0 | F59: =F51-F57-F58+F52 -> 0 | G59: 0 | H59: 0 | I59: 0 | J59: 0 | K59: 0 | L59: 0 | M59: 0 | N59: 0 | O59: 0 | P59: 0 | Q59: 0 | R59: 0 | S59: 0 | T59: 0 | U59: 0 | V59: 0 | W59: 0 | X59: 0
A61: Total Limits Investment Mortgage | E61: =SUMIFS($P$101:$P$125,$D$101:$D$125,Formulas!E48,$C$101:$C$125,Console!$AT$5) -> 0 | F61: =SUMIFS($P$101:$P$125,$D$101:$D$125,Formulas!F48,$C$101:$C$125,Console!$AT$5) -> 0 | G61: =SUMIFS($P$101:$P$125,$D$101:$D$125,Formulas!G48,$C$101:$C$125,Console!$AT$5) -> 0 | H61: =SUMIFS($P$101:$P$125,$D$101:$D$125,Formulas!H48,$C$101:$C$125,Console!$AT$5) -> 0 | I61: =SUMIFS($P$101:$P$125,$D$101:$D$125,Formulas!I48,$C$101:$C$125,Console!$AT$5) -> 0 | J61: =SUMIFS($P$101:$P$125,$D$101:$D$125,Formulas!J48,$C$101:$C$125,Console!$AT$5) -> 0 | K61: =SUMIFS($P$101:$P$125,$D$101:$D$125,Formulas!K48,$C$101:$C$125,Console!$AT$5) -> 0 | L61: =SUMIFS($P$101:$P$125,$D$101:$D$125,Formulas!L48,$C$101:$C$125,Console!$AT$5) -> 0 | M61: =SUMIFS($P$101:$P$125,$D$101:$D$125,Formulas!M48,$C$101:$C$125,Console!$AT$5) -> 0 | N61: =SUMIFS($P$101:$P$125,$D$101:$D$125,Formulas!N48,$C$101:$C$125,Console!$AT$5) -> 0 | O61: =SUMIFS($P$101:$P$125,$D$101:$D$125,Formulas!O48,$C$101:$C$125,Console!$AT$5) -> 0 | P61: =SUMIFS($P$101:$P$125,$D$101:$D$125,Formulas!P48,$C$101:$C$125,Console!$AT$5) -> 0 | Q61: =SUMIFS($P$101:$P$125,$D$101:$D$125,Formulas!Q48,$C$101:$C$125,Console!$AT$5) -> 0 | R61: =SUMIFS($P$101:$P$125,$D$101:$D$125,Formulas!R48,$C$101:$C$125,Console!$AT$5) -> 0 | S61: =SUMIFS($P$101:$P$125,$D$101:$D$125,Formulas!S48,$C$101:$C$125,Console!$AT$5) -> 0 | T61: =SUMIFS($P$101:$P$125,$D$101:$D$125,Formulas!T48,$C$101:$C$125,Console!$AT$5) -> 0 | U61: =SUMIFS($P$101:$P$125,$D$101:$D$125,Formulas!U48,$C$101:$C$125,Console!$AT$5) -> 0 | V61: =SUMIFS($P$101:$P$125,$D$101:$D$125,Formulas!V48,$C$101:$C$125,Console!$AT$5) -> 0 | W61: =SUMIFS($P$101:$P$125,$D$101:$D$125,Formulas!W48,$C$101:$C$125,Console!$AT$5) -> 0 | X61: =SUMIFS($P$101:$P$125,$D$101:$D$125,Formulas!X48,$C$101:$C$125,Console!$AT$5) -> 0
A62: Interest Charge for negative gearing | E62: =IFERROR(E61*((Input!$F$21-0.5)/Input!$F$21)*Input!$P$11,0) -> 0 | F62: =IFERROR(F61*((Input!$F$21-0.5)/Input!$F$21)*Input!$P$11,0) -> 0 | G62: =IFERROR(G61*((Input!$F$21-0.5)/Input!$F$21)*Input!$P$11,0) -> 0 | H62: =IFERROR(H61*((Input!$F$21-0.5)/Input!$F$21)*Input!$P$11,0) -> 0 | I62: =IFERROR(I61*((Input!$F$21-0.5)/Input!$F$21)*Input!$P$11,0) -> 0 | J62: =IFERROR(J61*((Input!$F$21-0.5)/Input!$F$21)*Input!$P$11,0) -> 0 | K62: =IFERROR(K61*((Input!$F$21-0.5)/Input!$F$21)*Input!$P$11,0) -> 0 | L62: =IFERROR(L61*((Input!$F$21-0.5)/Input!$F$21)*Input!$P$11,0) -> 0 | M62: =IFERROR(M61*((Input!$F$21-0.5)/Input!$F$21)*Input!$P$11,0) -> 0 | N62: =IFERROR(N61*((Input!$F$21-0.5)/Input!$F$21)*Input!$P$11,0) -> 0 | O62: =IFERROR(O61*((Input!$F$21-0.5)/Input!$F$21)*Input!$P$11,0) -> 0 | P62: =IFERROR(P61*((Input!$F$21-0.5)/Input!$F$21)*Input!$P$11,0) -> 0 | Q62: =IFERROR(Q61*((Input!$F$21-0.5)/Input!$F$21)*Input!$P$11,0) -> 0 | R62: =IFERROR(R61*((Input!$F$21-0.5)/Input!$F$21)*Input!$P$11,0) -> 0 | S62: =IFERROR(S61*((Input!$F$21-0.5)/Input!$F$21)*Input!$P$11,0) -> 0 | T62: =IFERROR(T61*((Input!$F$21-0.5)/Input!$F$21)*Input!$P$11,0) -> 0 | U62: =IFERROR(U61*((Input!$F$21-0.5)/Input!$F$21)*Input!$P$11,0) -> 0 | V62: =IFERROR(V61*((Input!$F$21-0.5)/Input!$F$21)*Input!$P$11,0) -> 0 | W62: =IFERROR(W61*((Input!$F$21-0.5)/Input!$F$21)*Input!$P$11,0) -> 0 | X62: =IFERROR(X61*((Input!$F$21-0.5)/Input!$F$21)*Input!$P$11,0) -> 0
A64: Low Income Tax Offset | E64: =IF(Formulas!E56<=Console!$AD$14,(Console!$AE$14+Console!$AF$14*(Formulas!E56-Console!$AC$14)),IF(Formulas!E56<=Console!$AD$15,(Console!$AE$15+Console!$AF$15*(Formulas!E56-Console!$AC$15)),IF(Formulas!E56<=Console!$AD$16,(Console!$AE$16+Console!$AF$16*(Formulas!E56-Console!$AC$16)),0))) -> 700 | F64: =IF(Formulas!F56<=Console!$AD$14,(Console!$AE$14+Console!$AF$14*(Formulas!F56-Console!$AC$14)),IF(Formulas!F56<=Console!$AD$15,(Console!$AE$15+Console!$AF$15*(Formulas!F56-Console!$AC$15)),IF(Formulas!F56<=Console!$AD$16,(Console!$AE$16+Console!$AF$16*(Formulas!F56-Console!$AC$16)),0))) -> 700 | G64: =IF(Formulas!G56<=Console!$AD$14,(Console!$AE$14+Console!$AF$14*(Formulas!G56-Console!$AC$14)),IF(Formulas!G56<=Console!$AD$15,(Console!$AE$15+Console!$AF$15*(Formulas!G56-Console!$AC$15)),IF(Formulas!G56<=Console!$AD$16,(Console!$AE$16+Console!$AF$16*(Formulas!G56-Console!$AC$16)),0))) -> 700 | H64: =IF(Formulas!H56<=Console!$AD$14,(Console!$AE$14+Console!$AF$14*(Formulas!H56-Console!$AC$14)),IF(Formulas!H56<=Console!$AD$15,(Console!$AE$15+Console!$AF$15*(Formulas!H56-Console!$AC$15)),IF(Formulas!H56<=Console!$AD$16,(Console!$AE$16+Console!$AF$16*(Formulas!H56-Console!$AC$16)),0))) -> 700 | I64: =IF(Formulas!I56<=Console!$AD$14,(Console!$AE$14+Console!$AF$14*(Formulas!I56-Console!$AC$14)),IF(Formulas!I56<=Console!$AD$15,(Console!$AE$15+Console!$AF$15*(Formulas!I56-Console!$AC$15)),IF(Formulas!I56<=Console!$AD$16,(Console!$AE$16+Console!$AF$16*(Formulas!I56-Console!$AC$16)),0))) -> 700 | J64: =IF(Formulas!J56<=Console!$AD$14,(Console!$AE$14+Console!$AF$14*(Formulas!J56-Console!$AC$14)),IF(Formulas!J56<=Console!$AD$15,(Console!$AE$15+Console!$AF$15*(Formulas!J56-Console!$AC$15)),IF(Formulas!J56<=Console!$AD$16,(Console!$AE$16+Console!$AF$16*(Formulas!J56-Console!$AC$16)),0))) -> 700 | K64: =IF(Formulas!K56<=Console!$AD$14,(Console!$AE$14+Console!$AF$14*(Formulas!K56-Console!$AC$14)),IF(Formulas!K56<=Console!$AD$15,(Console!$AE$15+Console!$AF$15*(Formulas!K56-Console!$AC$15)),IF(Formulas!K56<=Console!$AD$16,(Console!$AE$16+Console!$AF$16*(Formulas!K56-Console!$AC$16)),0))) -> 700 | L64: =IF(Formulas!L56<=Console!$AD$14,(Console!$AE$14+Console!$AF$14*(Formulas!L56-Console!$AC$14)),IF(Formulas!L56<=Console!$AD$15,(Console!$AE$15+Console!$AF$15*(Formulas!L56-Console!$AC$15)),IF(Formulas!L56<=Console!$AD$16,(Console!$AE$16+Console!$AF$16*(Formulas!L56-Console!$AC$16)),0))) -> 700 | M64: =IF(Formulas!M56<=Console!$AD$14,(Console!$AE$14+Console!$AF$14*(Formulas!M56-Console!$AC$14)),IF(Formulas!M56<=Console!$AD$15,(Console!$AE$15+Console!$AF$15*(Formulas!M56-Console!$AC$15)),IF(Formulas!M56<=Console!$AD$16,(Console!$AE$16+Console!$AF$16*(Formulas!M56-Console!$AC$16)),0))) -> 700 | N64: =IF(Formulas!N56<=Console!$AD$14,(Console!$AE$14+Console!$AF$14*(Formulas!N56-Console!$AC$14)),IF(Formulas!N56<=Console!$AD$15,(Console!$AE$15+Console!$AF$15*(Formulas!N56-Console!$AC$15)),IF(Formulas!N56<=Console!$AD$16,(Console!$AE$16+Console!$AF$16*(Formulas!N56-Console!$AC$16)),0))) -> 700 | O64: =IF(Formulas!O56<=Console!$AD$14,(Console!$AE$14+Console!$AF$14*(Formulas!O56-Console!$AC$14)),IF(Formulas!O56<=Console!$AD$15,(Console!$AE$15+Console!$AF$15*(Formulas!O56-Console!$AC$15)),IF(Formulas!O56<=Console!$AD$16,(Console!$AE$16+Console!$AF$16*(Formulas!O56-Console!$AC$16)),0))) -> 700 | P64: =IF(Formulas!P56<=Console!$AD$14,(Console!$AE$14+Console!$AF$14*(Formulas!P56-Console!$AC$14)),IF(Formulas!P56<=Console!$AD$15,(Console!$AE$15+Console!$AF$15*(Formulas!P56-Console!$AC$15)),IF(Formulas!P56<=Console!$AD$16,(Console!$AE$16+Console!$AF$16*(Formulas!P56-Console!$AC$16)),0))) -> 700 | Q64: =IF(Formulas!Q56<=Console!$AD$14,(Console!$AE$14+Console!$AF$14*(Formulas!Q56-Console!$AC$14)),IF(Formulas!Q56<=Console!$AD$15,(Console!$AE$15+Console!$AF$15*(Formulas!Q56-Console!$AC$15)),IF(Formulas!Q56<=Console!$AD$16,(Console!$AE$16+Console!$AF$16*(Formulas!Q56-Console!$AC$16)),0))) -> 700 | R64: =IF(Formulas!R56<=Console!$AD$14,(Console!$AE$14+Console!$AF$14*(Formulas!R56-Console!$AC$14)),IF(Formulas!R56<=Console!$AD$15,(Console!$AE$15+Console!$AF$15*(Formulas!R56-Console!$AC$15)),IF(Formulas!R56<=Console!$AD$16,(Console!$AE$16+Console!$AF$16*(Formulas!R56-Console!$AC$16)),0))) -> 700 | S64: =IF(Formulas!S56<=Console!$AD$14,(Console!$AE$14+Console!$AF$14*(Formulas!S56-Console!$AC$14)),IF(Formulas!S56<=Console!$AD$15,(Console!$AE$15+Console!$AF$15*(Formulas!S56-Console!$AC$15)),IF(Formulas!S56<=Console!$AD$16,(Console!$AE$16+Console!$AF$16*(Formulas!S56-Console!$AC$16)),0))) -> 700 | T64: =IF(Formulas!T56<=Console!$AD$14,(Console!$AE$14+Console!$AF$14*(Formulas!T56-Console!$AC$14)),IF(Formulas!T56<=Console!$AD$15,(Console!$AE$15+Console!$AF$15*(Formulas!T56-Console!$AC$15)),IF(Formulas!T56<=Console!$AD$16,(Console!$AE$16+Console!$AF$16*(Formulas!T56-Console!$AC$16)),0))) -> 700 | U64: =IF(Formulas!U56<=Console!$AD$14,(Console!$AE$14+Console!$AF$14*(Formulas!U56-Console!$AC$14)),IF(Formulas!U56<=Console!$AD$15,(Console!$AE$15+Console!$AF$15*(Formulas!U56-Console!$AC$15)),IF(Formulas!U56<=Console!$AD$16,(Console!$AE$16+Console!$AF$16*(Formulas!U56-Console!$AC$16)),0))) -> 700 | V64: =IF(Formulas!V56<=Console!$AD$14,(Console!$AE$14+Console!$AF$14*(Formulas!V56-Console!$AC$14)),IF(Formulas!V56<=Console!$AD$15,(Console!$AE$15+Console!$AF$15*(Formulas!V56-Console!$AC$15)),IF(Formulas!V56<=Console!$AD$16,(Console!$AE$16+Console!$AF$16*(Formulas!V56-Console!$AC$16)),0))) -> 700 | W64: =IF(Formulas!W56<=Console!$AD$14,(Console!$AE$14+Console!$AF$14*(Formulas!W56-Console!$AC$14)),IF(Formulas!W56<=Console!$AD$15,(Console!$AE$15+Console!$AF$15*(Formulas!W56-Console!$AC$15)),IF(Formulas!W56<=Console!$AD$16,(Console!$AE$16+Console!$AF$16*(Formulas!W56-Console!$AC$16)),0))) -> 700 | X64: =IF(Formulas!X56<=Console!$AD$14,(Console!$AE$14+Console!$AF$14*(Formulas!X56-Console!$AC$14)),IF(Formulas!X56<=Console!$AD$15,(Console!$AE$15+Console!$AF$15*(Formulas!X56-Console!$AC$15)),IF(Formulas!X56<=Console!$AD$16,(Console!$AE$16+Console!$AF$16*(Formulas!X56-Console!$AC$16)),0))) -> 700
A65: Low-Middle Income Tax Offset | E65: 0 | F65: 0 | G65: 0 | H65: 0 | I65: 0 | J65: 0 | K65: 0 | L65: 0 | M65: 0 | N65: 0 | O65: 0 | P65: 0 | Q65: 0 | R65: 0 | S65: 0 | T65: 0 | U65: 0 | V65: 0 | W65: 0 | X65: 0
B82: Total Interest for the Loan at assessment rate: | G82: Household | H82: 1 | I82: 2 | J82: 3 | K82: 4 | L82: 5
A83: =IF(OR(Input!J16="IO",Input!J17="IO",Input!J18="IO",Input!J19="IO",Input!J20="IO"),"IO","P&I") -> P&I | B83: Balance | C83: Interest | D83: Pmt | E83: Final Balance | G83: Total Taxable Income | H83: =SUMIF($E$3:$X$3,H82,$E$56:$X$56) -> 0 | I83: =SUMIF($E$3:$X$3,I82,$E$56:$X$56) -> 0 | J83: 0 | K83: 0 | L83: 0
A84: 1 | B84: =SUMIF(Input!H16:H20,"Inv Property",Input!D16:D20) -> 0 | C84: =B84*Input!P11/12 -> 0 | D84: =IF(B84=0,0,-PMT(Input!$P$12/12,Input!$F$21*12,$B$84,0,0)) -> 0 | E84: =B84+C84-D84 -> 0 | G84: Total Net Income | H84: =SUMIF($E$3:$X$3,H82,$E$52:$X$52) -> 0 | I84: =SUMIF($E$3:$X$3,I82,$E$52:$X$52) -> 0 | J84: 0 | K84: 0 | L84: 0
A85: 2 | B85: =E84 -> 0 | C85: =B85*Input!$P$11/12 -> 0 | D85: =IF(B85=0,0,-PMT(Input!$P$12/12,Input!$F$21*12,$B$84,0,0)) -> 0 | E85: =B85+C85-D85 -> 0 | G85: Total Income | H85: =H84+H83 -> 0 | I85: =I84+I83 -> 0 | J85: 0 | K85: 0 | L85: 0
A86: 3 | B86: =E85 -> 0 | C86: =B86*Input!$P$11/12 -> 0 | D86: =IF(B86=0,0,-PMT(Input!$P$12/12,Input!$F$21*12,$B$84,0,0)) -> 0 | E86: =B86+C86-D86 -> 0 | G86: HEM Reference | H86: =HLOOKUP(H85,HEM!$F$1:$S$2,2,TRUE) -> 3 | I86: =HLOOKUP(I85,HEM!$F$1:$S$2,2,TRUE) -> 3 | J86: =HLOOKUP(J85,HEM!$F$1:$S$2,2,TRUE) -> 3 | K86: =HLOOKUP(K85,HEM!$F$1:$S$2,2,TRUE) -> 3 | L86: =HLOOKUP(L85,HEM!$F$1:$S$2,2,TRUE) -> 3
A87: 4 | B87: 0 | C87: =B87*Input!$P$11/12 -> 0 | D87: =IF(B87=0,0,-PMT(Input!$P$12/12,Input!$F$21*12,$B$84,0,0)) -> 0 | E87: 0 | G87: HEM Value Annually | H87: =Input!F85*12*(1+Console!$AO$3)*H89 -> 0 | I87: =Input!H85*12*(1+Console!$AO$3)*I89 -> 0 | J87: =Input!J85*12*(1+Console!$AO$3)*J89 -> 0 | K87: =Input!L85*12*(1+Console!$AO$3)*K89 -> 0 | L87: =Input!N85*12*(1+Console!$AO$3)*L89 -> 0
A88: 5 | B88: 0 | C88: =B88*Input!$P$11/12 -> 0 | D88: =IF(B88=0,0,-PMT(Input!$P$12/12,Input!$F$21*12,$B$84,0,0)) -> 0 | E88: 0 | G88: Declared Living Expense | H88: =SUM(Input!$F$88:$F$99)*12*H89 -> 0 | I88: =SUM(Input!$H$88:$H$99)*12*I89 -> 0 | J88: =SUM(Input!$J$88:$J$99)*12*J89 -> 0 | K88: =SUM(Input!$L$88:$L$99)*12*K89 -> 0 | L88: =SUM(Input!$N$88:$N$99)*12*L89 -> 0
A89: 6 | B89: 0 | C89: =B89*Input!$P$11/12 -> 0 | D89: =IF(B89=0,0,-PMT(Input!$P$12/12,Input!$F$21*12,$B$84,0,0)) -> 0 | E89: 0 | G89: On/Off | H89: =IF(Input!$F$81>=Formulas!H82,1,0) -> 1 | I89: =IF(Input!$F$81>=Formulas!I82,1,0) -> 1 | J89: =IF(Input!$F$81>=Formulas!J82,1,0) -> 0 | K89: =IF(Input!$F$81>=Formulas!K82,1,0) -> 0 | L89: =IF(Input!$F$81>=Formulas!L82,1,0) -> 0
A90: 7 | B90: 0 | C90: =B90*Input!$P$11/12 -> 0 | D90: =IF(B90=0,0,-PMT(Input!$P$12/12,Input!$F$21*12,$B$84,0,0)) -> 0 | E90: 0 | G90: Value Used | H90: =MAX(H87:H88)*H89 -> 0 | I90: =MAX(I87:I88)*I89 -> 0 | J90: 0 | K90: 0 | L90: 0
A91: 8 | B91: 0 | C91: =B91*Input!$P$11/12 -> 0 | D91: =IF(B91=0,0,-PMT(Input!$P$12/12,Input!$F$21*12,$B$84,0,0)) -> 0 | E91: 0
A92: 9 | B92: 0 | C92: =B92*Input!$P$11/12 -> 0 | D92: =IF(B92=0,0,-PMT(Input!$P$12/12,Input!$F$21*12,$B$84,0,0)) -> 0 | E92: 0
A93: 10 | B93: 0 | C93: =B93*Input!$P$11/12 -> 0 | D93: =IF(B93=0,0,-PMT(Input!$P$12/12,Input!$F$21*12,$B$84,0,0)) -> 0 | E93: 0
A94: 11 | B94: 0 | C94: =B94*Input!$P$11/12 -> 0 | D94: =IF(B94=0,0,-PMT(Input!$P$12/12,Input!$F$21*12,$B$84,0,0)) -> 0 | E94: 0
A95: 12 | B95: 0 | C95: =B95*Input!$P$11/12 -> 0 | D95: =IF(B95=0,0,-PMT(Input!$P$12/12,Input!$F$21*12,$B$84,0,0)) -> 0 | E95: 0
A96: Total Interest Year 1 | C96: =IF(Console!BQ3=1,IF(A83="IO",B84*Input!P11,SUM(C84:C95)),0)+SUM(Input!F93,Input!H93,Input!J93,Input!L93,Input!N93)*12 -> 0
C100: Type | D100: applicant | E100: Limit | F100: balance | G100: MMP | H100: Rental Expense | I100: POC | J100: HECS / HELP | K100: Hec Ref | L100: Calc Pmt | M100: Max Pmt | N100: Limits | O100: Reversed Limit | P100: Max Bal and Limit
A101: Liabilities | B101: 1 | C101: =Input!D108 -> 0 | D101: =Input!F108 -> Applicant 1 | E101: =Input!H108 -> 0 | F101: =_xlfn.SWITCH(TRUE, Input!D108 = "Child Maintenance ",0, Input!D108 = "Rental Expense ",0, Input!D108 = "Credit Card / Overdraft",0, Input!J108) -> 0 | G101: =_xlfn.SWITCH(TRUE, Input!D108 = "Credit Card / Overdraft",0, Input!L108) -> 0 | H101: =IF(C101=$H$100,Console!$AV$9*12,0) -> 0 | I101: =Input!N108 -> 0 | J101: =Input!L108 -> 0 | L101: =IFERROR(VLOOKUP(C101,Console!$AT$4:$AV$13,3,FALSE)*MAX(E101:F101)*VLOOKUP(C101,Console!$AT$4:$AV$13,2,FALSE),0)*12 -> 0 | M101: =IFERROR(IF(I101="Yes",0,IF(Console!$AQ$3=Console!$AQ$15,IF(OR(C101=Console!$AT$6,C101=Console!$AT$5,C101=Console!$AT$4),IF(G101>0,G101*12*VLOOKUP(C101,Console!$AT$3:$AU$13,2,FALSE),MAX(L101,G101*12,K101*J101,H101)),MAX(L101,G101*12,K101*J101,H101)),IF(G101>0,G101*12*VLOOKUP(C101,Console!$AT$3:$AU$13,2,FALSE),MAX(L101,G101*12,K101*J101,H101)))),0) -> 0 | N101: =IF(I101="Yes",0,E101) -> 0 | O101: 0 | P101: =IF(I101="Yes",0,MAX(E101,F101,O101)) -> 0
B102: 2 | C102: =Input!D109 -> 0 | D102: =Input!F109 -> 0 | E102: =Input!H109 -> 0 | F102: =_xlfn.SWITCH(TRUE, Input!D109 = "Child Maintenance ",0, Input!D109 = "Rental Expense ",0, Input!D109 = "Credit Card / Overdraft",0, Input!J109) -> 0 | G102: =_xlfn.SWITCH(TRUE, Input!D109 = "Credit Card / Overdraft",0, Input!L109) -> 0 | H102: =IF(C102=$H$100,Console!$AV$9*12,0) -> 0 | I102: =Input!N109 -> 0 | J102: =Input!L109 -> 0 | L102: =IFERROR(VLOOKUP(C102,Console!$AT$4:$AV$13,3,FALSE)*MAX(E102:F102)*VLOOKUP(C102,Console!$AT$4:$AV$13,2,FALSE),0)*12 -> 0 | M102: =IFERROR(IF(I102="Yes",0,IF(Console!$AQ$3=Console!$AQ$15,IF(OR(C102=Console!$AT$6,C102=Console!$AT$5,C102=Console!$AT$4),IF(G102>0,G102*12*VLOOKUP(C102,Console!$AT$3:$AU$13,2,FALSE),MAX(L102,G102*12,K102*J102,H102)),MAX(L102,G102*12,K102*J102,H102)),IF(G102>0,G102*12*VLOOKUP(C102,Console!$AT$3:$AU$13,2,FALSE),MAX(L102,G102*12,K102*J102,H102)))),0) -> 0 | N102: =IF(I102="Yes",0,E102) -> 0 | O102: 0 | P102: =IF(I102="Yes",0,MAX(E102,F102,O102)) -> 0
B103: 3 | C103: =Input!D110 -> 0 | D103: =Input!F110 -> 0 | E103: =Input!H110 -> 0 | F103: =_xlfn.SWITCH(TRUE, Input!D110 = "Child Maintenance ",0, Input!D110 = "Rental Expense ",0, Input!D110 = "Credit Card / Overdraft",0, Input!J110) -> 0 | G103: =_xlfn.SWITCH(TRUE, Input!D110 = "Credit Card / Overdraft",0, Input!L110) -> 0 | H103: =IF(C103=$H$100,Console!$AV$9*12,0) -> 0 | I103: =Input!N110 -> 0 | J103: =Input!L110 -> 0 | L103: =IFERROR(VLOOKUP(C103,Console!$AT$4:$AV$13,3,FALSE)*MAX(E103:F103)*VLOOKUP(C103,Console!$AT$4:$AV$13,2,FALSE),0)*12 -> 0 | M103: =IFERROR(IF(I103="Yes",0,IF(Console!$AQ$3=Console!$AQ$15,IF(OR(C103=Console!$AT$6,C103=Console!$AT$5,C103=Console!$AT$4),IF(G103>0,G103*12*VLOOKUP(C103,Console!$AT$3:$AU$13,2,FALSE),MAX(L103,G103*12,K103*J103,H103)),MAX(L103,G103*12,K103*J103,H103)),IF(G103>0,G103*12*VLOOKUP(C103,Console!$AT$3:$AU$13,2,FALSE),MAX(L103,G103*12,K103*J103,H103)))),0) -> 0 | N103: 0 | O103: 0 | P103: 0
B104: 4 | C104: =Input!D111 -> 0 | D104: =Input!F111 -> 0 | E104: =Input!H111 -> 0 | F104: =_xlfn.SWITCH(TRUE, Input!D111 = "Child Maintenance ",0, Input!D111 = "Rental Expense ",0, Input!D111 = "Credit Card / Overdraft",0, Input!J111) -> 0 | G104: =_xlfn.SWITCH(TRUE, Input!D111 = "Credit Card / Overdraft",0, Input!L111) -> 0 | H104: =IF(C104=$H$100,Console!$AV$9*12,0) -> 0 | I104: =Input!N111 -> 0 | J104: =Input!L111 -> 0 | L104: =IFERROR(VLOOKUP(C104,Console!$AT$4:$AV$13,3,FALSE)*MAX(E104:F104)*VLOOKUP(C104,Console!$AT$4:$AV$13,2,FALSE),0)*12 -> 0 | M104: =IFERROR(IF(I104="Yes",0,IF(Console!$AQ$3=Console!$AQ$15,IF(OR(C104=Console!$AT$6,C104=Console!$AT$5,C104=Console!$AT$4),IF(G104>0,G104*12*VLOOKUP(C104,Console!$AT$3:$AU$13,2,FALSE),MAX(L104,G104*12,K104*J104,H104)),MAX(L104,G104*12,K104*J104,H104)),IF(G104>0,G104*12*VLOOKUP(C104,Console!$AT$3:$AU$13,2,FALSE),MAX(L104,G104*12,K104*J104,H104)))),0) -> 0 | N104: 0 | O104: 0 | P104: 0
B105: 5 | C105: =Input!D112 -> 0 | D105: =Input!F112 -> 0 | E105: =Input!H112 -> 0 | F105: =_xlfn.SWITCH(TRUE, Input!D112 = "Child Maintenance ",0, Input!D112 = "Rental Expense ",0, Input!D112 = "Credit Card / Overdraft",0, Input!J112) -> 0 | G105: =_xlfn.SWITCH(TRUE, Input!D112 = "Credit Card / Overdraft",0, Input!L112) -> 0 | H105: =IF(C105=$H$100,Console!$AV$9*12,0) -> 0 | I105: =Input!N112 -> 0 | J105: =Input!L112 -> 0 | L105: =IFERROR(VLOOKUP(C105,Console!$AT$4:$AV$13,3,FALSE)*MAX(E105:F105)*VLOOKUP(C105,Console!$AT$4:$AV$13,2,FALSE),0)*12 -> 0 | M105: =IFERROR(IF(I105="Yes",0,IF(Console!$AQ$3=Console!$AQ$15,IF(OR(C105=Console!$AT$6,C105=Console!$AT$5,C105=Console!$AT$4),IF(G105>0,G105*12*VLOOKUP(C105,Console!$AT$3:$AU$13,2,FALSE),MAX(L105,G105*12,K105*J105,H105)),MAX(L105,G105*12,K105*J105,H105)),IF(G105>0,G105*12*VLOOKUP(C105,Console!$AT$3:$AU$13,2,FALSE),MAX(L105,G105*12,K105*J105,H105)))),0) -> 0 | N105: 0 | O105: 0 | P105: 0
B106: 6 | C106: =Input!D113 -> 0 | D106: =Input!F113 -> 0 | E106: =Input!H113 -> 0 | F106: =_xlfn.SWITCH(TRUE, Input!D113 = "Child Maintenance ",0, Input!D113 = "Rental Expense ",0, Input!D113 = "Credit Card / Overdraft",0, Input!J113) -> 0 | G106: =_xlfn.SWITCH(TRUE, Input!D113 = "Credit Card / Overdraft",0, Input!L113) -> 0 | H106: =IF(C106=$H$100,Console!$AV$9*12,0) -> 0 | I106: =Input!N113 -> 0 | J106: =Input!L113 -> 0 | L106: =IFERROR(VLOOKUP(C106,Console!$AT$4:$AV$13,3,FALSE)*MAX(E106:F106)*VLOOKUP(C106,Console!$AT$4:$AV$13,2,FALSE),0)*12 -> 0 | M106: =IFERROR(IF(I106="Yes",0,IF(Console!$AQ$3=Console!$AQ$15,IF(OR(C106=Console!$AT$6,C106=Console!$AT$5,C106=Console!$AT$4),IF(G106>0,G106*12*VLOOKUP(C106,Console!$AT$3:$AU$13,2,FALSE),MAX(L106,G106*12,K106*J106,H106)),MAX(L106,G106*12,K106*J106,H106)),IF(G106>0,G106*12*VLOOKUP(C106,Console!$AT$3:$AU$13,2,FALSE),MAX(L106,G106*12,K106*J106,H106)))),0) -> 0 | N106: 0 | O106: 0 | P106: 0
B107: 7 | C107: =Input!D114 -> 0 | D107: =Input!F114 -> 0 | E107: =Input!H114 -> 0 | F107: =_xlfn.SWITCH(TRUE, Input!D114 = "Child Maintenance ",0, Input!D114 = "Rental Expense ",0, Input!D114 = "Credit Card / Overdraft",0, Input!J114) -> 0 | G107: =_xlfn.SWITCH(TRUE, Input!D114 = "Credit Card / Overdraft",0, Input!L114) -> 0 | H107: =IF(C107=$H$100,Console!$AV$9*12,0) -> 0 | I107: =Input!N114 -> 0 | J107: =Input!L114 -> 0 | L107: =IFERROR(VLOOKUP(C107,Console!$AT$4:$AV$13,3,FALSE)*MAX(E107:F107)*VLOOKUP(C107,Console!$AT$4:$AV$13,2,FALSE),0)*12 -> 0 | M107: =IFERROR(IF(I107="Yes",0,IF(Console!$AQ$3=Console!$AQ$15,IF(OR(C107=Console!$AT$6,C107=Console!$AT$5,C107=Console!$AT$4),IF(G107>0,G107*12*VLOOKUP(C107,Console!$AT$3:$AU$13,2,FALSE),MAX(L107,G107*12,K107*J107,H107)),MAX(L107,G107*12,K107*J107,H107)),IF(G107>0,G107*12*VLOOKUP(C107,Console!$AT$3:$AU$13,2,FALSE),MAX(L107,G107*12,K107*J107,H107)))),0) -> 0 | N107: 0 | O107: 0 | P107: 0
B108: 8 | C108: =Input!D115 -> 0 | D108: =Input!F115 -> 0 | E108: =Input!H115 -> 0 | F108: =_xlfn.SWITCH(TRUE, Input!D115 = "Child Maintenance ",0, Input!D115 = "Rental Expense ",0, Input!D115 = "Credit Card / Overdraft",0, Input!J115) -> 0 | G108: =_xlfn.SWITCH(TRUE, Input!D115 = "Credit Card / Overdraft",0, Input!L115) -> 0 | H108: =IF(C108=$H$100,Console!$AV$9*12,0) -> 0 | I108: =Input!N115 -> 0 | J108: =Input!L115 -> 0 | L108: =IFERROR(VLOOKUP(C108,Console!$AT$4:$AV$13,3,FALSE)*MAX(E108:F108)*VLOOKUP(C108,Console!$AT$4:$AV$13,2,FALSE),0)*12 -> 0 | M108: =IFERROR(IF(I108="Yes",0,IF(Console!$AQ$3=Console!$AQ$15,IF(OR(C108=Console!$AT$6,C108=Console!$AT$5,C108=Console!$AT$4),IF(G108>0,G108*12*VLOOKUP(C108,Console!$AT$3:$AU$13,2,FALSE),MAX(L108,G108*12,K108*J108,H108)),MAX(L108,G108*12,K108*J108,H108)),IF(G108>0,G108*12*VLOOKUP(C108,Console!$AT$3:$AU$13,2,FALSE),MAX(L108,G108*12,K108*J108,H108)))),0) -> 0 | N108: 0 | O108: 0 | P108: 0
B109: 9 | C109: =Input!D116 -> 0 | D109: =Input!F116 -> 0 | E109: =Input!H116 -> 0 | F109: =_xlfn.SWITCH(TRUE, Input!D116 = "Child Maintenance ",0, Input!D116 = "Rental Expense ",0, Input!D116 = "Credit Card / Overdraft",0, Input!J116) -> 0 | G109: =_xlfn.SWITCH(TRUE, Input!D116 = "Credit Card / Overdraft",0, Input!L116) -> 0 | H109: =IF(C109=$H$100,Console!$AV$9*12,0) -> 0 | I109: =Input!N116 -> 0 | J109: =Input!L116 -> 0 | L109: =IFERROR(VLOOKUP(C109,Console!$AT$4:$AV$13,3,FALSE)*MAX(E109:F109)*VLOOKUP(C109,Console!$AT$4:$AV$13,2,FALSE),0)*12 -> 0 | M109: =IFERROR(IF(I109="Yes",0,IF(Console!$AQ$3=Console!$AQ$15,IF(OR(C109=Console!$AT$6,C109=Console!$AT$5,C109=Console!$AT$4),IF(G109>0,G109*12*VLOOKUP(C109,Console!$AT$3:$AU$13,2,FALSE),MAX(L109,G109*12,K109*J109,H109)),MAX(L109,G109*12,K109*J109,H109)),IF(G109>0,G109*12*VLOOKUP(C109,Console!$AT$3:$AU$13,2,FALSE),MAX(L109,G109*12,K109*J109,H109)))),0) -> 0 | N109: 0 | O109: 0 | P109: 0
B110: 10 | C110: =Input!D117 -> 0 | D110: =Input!F117 -> 0 | E110: =Input!H117 -> 0 | F110: =_xlfn.SWITCH(TRUE, Input!D117 = "Child Maintenance ",0, Input!D117 = "Rental Expense ",0, Input!D117 = "Credit Card / Overdraft",0, Input!J117) -> 0 | G110: =_xlfn.SWITCH(TRUE, Input!D117 = "Credit Card / Overdraft",0, Input!L117) -> 0 | H110: =IF(C110=$H$100,Console!$AV$9*12,0) -> 0 | I110: =Input!N117 -> 0 | J110: =Input!L117 -> 0 | L110: =IFERROR(VLOOKUP(C110,Console!$AT$4:$AV$13,3,FALSE)*MAX(E110:F110)*VLOOKUP(C110,Console!$AT$4:$AV$13,2,FALSE),0)*12 -> 0 | M110: =IFERROR(IF(I110="Yes",0,IF(Console!$AQ$3=Console!$AQ$15,IF(OR(C110=Console!$AT$6,C110=Console!$AT$5,C110=Console!$AT$4),IF(G110>0,G110*12*VLOOKUP(C110,Console!$AT$3:$AU$13,2,FALSE),MAX(L110,G110*12,K110*J110,H110)),MAX(L110,G110*12,K110*J110,H110)),IF(G110>0,G110*12*VLOOKUP(C110,Console!$AT$3:$AU$13,2,FALSE),MAX(L110,G110*12,K110*J110,H110)))),0) -> 0 | N110: 0 | O110: 0 | P110: 0
B111: 11 | C111: =Input!D118 -> 0 | D111: =Input!F118 -> 0 | E111: =Input!H118 -> 0 | F111: =_xlfn.SWITCH(TRUE, Input!D118 = "Child Maintenance ",0, Input!D118 = "Rental Expense ",0, Input!D118 = "Credit Card / Overdraft",0, Input!J118) -> 0 | G111: =_xlfn.SWITCH(TRUE, Input!D118 = "Credit Card / Overdraft",0, Input!L118) -> 0 | H111: =IF(C111=$H$100,Console!$AV$9*12,0) -> 0 | I111: =Input!N118 -> 0 | J111: =Input!L118 -> 0 | L111: =IFERROR(VLOOKUP(C111,Console!$AT$4:$AV$13,3,FALSE)*MAX(E111:F111)*VLOOKUP(C111,Console!$AT$4:$AV$13,2,FALSE),0)*12 -> 0 | M111: =IFERROR(IF(I111="Yes",0,IF(Console!$AQ$3=Console!$AQ$15,IF(OR(C111=Console!$AT$6,C111=Console!$AT$5,C111=Console!$AT$4),IF(G111>0,G111*12*VLOOKUP(C111,Console!$AT$3:$AU$13,2,FALSE),MAX(L111,G111*12,K111*J111,H111)),MAX(L111,G111*12,K111*J111,H111)),IF(G111>0,G111*12*VLOOKUP(C111,Console!$AT$3:$AU$13,2,FALSE),MAX(L111,G111*12,K111*J111,H111)))),0) -> 0 | N111: 0 | O111: 0 | P111: 0
B112: 12 | C112: =Input!D119 -> 0 | D112: =Input!F119 -> 0 | E112: =Input!H119 -> 0 | F112: =_xlfn.SWITCH(TRUE, Input!D119 = "Child Maintenance ",0, Input!D119 = "Rental Expense ",0, Input!D119 = "Credit Card / Overdraft",0, Input!J119) -> 0 | G112: =_xlfn.SWITCH(TRUE, Input!D119 = "Credit Card / Overdraft",0, Input!L119) -> 0 | H112: =IF(C112=$H$100,Console!$AV$9*12,0) -> 0 | I112: =Input!N119 -> 0 | J112: =Input!L119 -> 0 | L112: =IFERROR(VLOOKUP(C112,Console!$AT$4:$AV$13,3,FALSE)*MAX(E112:F112)*VLOOKUP(C112,Console!$AT$4:$AV$13,2,FALSE),0)*12 -> 0 | M112: =IFERROR(IF(I112="Yes",0,IF(Console!$AQ$3=Console!$AQ$15,IF(OR(C112=Console!$AT$6,C112=Console!$AT$5,C112=Console!$AT$4),IF(G112>0,G112*12*VLOOKUP(C112,Console!$AT$3:$AU$13,2,FALSE),MAX(L112,G112*12,K112*J112,H112)),MAX(L112,G112*12,K112*J112,H112)),IF(G112>0,G112*12*VLOOKUP(C112,Console!$AT$3:$AU$13,2,FALSE),MAX(L112,G112*12,K112*J112,H112)))),0) -> 0 | N112: 0 | O112: 0 | P112: 0
B113: 13 | C113: =Input!D120 -> 0 | D113: =Input!F120 -> 0 | E113: =Input!H120 -> 0 | F113: =_xlfn.SWITCH(TRUE, Input!D120 = "Child Maintenance ",0, Input!D120 = "Rental Expense ",0, Input!D120 = "Credit Card / Overdraft",0, Input!J120) -> 0 | G113: =_xlfn.SWITCH(TRUE, Input!D120 = "Credit Card / Overdraft",0, Input!L120) -> 0 | H113: =IF(C113=$H$100,Console!$AV$9*12,0) -> 0 | I113: =Input!N120 -> 0 | J113: =Input!L120 -> 0 | L113: =IFERROR(VLOOKUP(C113,Console!$AT$4:$AV$13,3,FALSE)*MAX(E113:F113)*VLOOKUP(C113,Console!$AT$4:$AV$13,2,FALSE),0)*12 -> 0 | M113: =IFERROR(IF(I113="Yes",0,IF(Console!$AQ$3=Console!$AQ$15,IF(OR(C113=Console!$AT$6,C113=Console!$AT$5,C113=Console!$AT$4),IF(G113>0,G113*12*VLOOKUP(C113,Console!$AT$3:$AU$13,2,FALSE),MAX(L113,G113*12,K113*J113,H113)),MAX(L113,G113*12,K113*J113,H113)),IF(G113>0,G113*12*VLOOKUP(C113,Console!$AT$3:$AU$13,2,FALSE),MAX(L113,G113*12,K113*J113,H113)))),0) -> 0 | N113: 0 | O113: 0 | P113: 0
B114: 14 | C114: =Input!D121 -> 0 | D114: =Input!F121 -> 0 | E114: =Input!H121 -> 0 | F114: =_xlfn.SWITCH(TRUE, Input!D121 = "Child Maintenance ",0, Input!D121 = "Rental Expense ",0, Input!D121 = "Credit Card / Overdraft",0, Input!J121) -> 0 | G114: =_xlfn.SWITCH(TRUE, Input!D121 = "Credit Card / Overdraft",0, Input!L121) -> 0 | H114: =IF(C114=$H$100,Console!$AV$9*12,0) -> 0 | I114: =Input!N121 -> 0 | J114: =Input!L121 -> 0 | L114: =IFERROR(VLOOKUP(C114,Console!$AT$4:$AV$13,3,FALSE)*MAX(E114:F114)*VLOOKUP(C114,Console!$AT$4:$AV$13,2,FALSE),0)*12 -> 0 | M114: =IFERROR(IF(I114="Yes",0,IF(Console!$AQ$3=Console!$AQ$15,IF(OR(C114=Console!$AT$6,C114=Console!$AT$5,C114=Console!$AT$4),IF(G114>0,G114*12*VLOOKUP(C114,Console!$AT$3:$AU$13,2,FALSE),MAX(L114,G114*12,K114*J114,H114)),MAX(L114,G114*12,K114*J114,H114)),IF(G114>0,G114*12*VLOOKUP(C114,Console!$AT$3:$AU$13,2,FALSE),MAX(L114,G114*12,K114*J114,H114)))),0) -> 0 | N114: 0 | O114: 0 | P114: 0
B115: 15 | C115: =Input!D122 -> 0 | D115: =Input!F122 -> 0 | E115: =Input!H122 -> 0 | F115: =_xlfn.SWITCH(TRUE, Input!D122 = "Child Maintenance ",0, Input!D122 = "Rental Expense ",0, Input!D122 = "Credit Card / Overdraft",0, Input!J122) -> 0 | G115: =_xlfn.SWITCH(TRUE, Input!D122 = "Credit Card / Overdraft",0, Input!L122) -> 0 | H115: =IF(C115=$H$100,Console!$AV$9*12,0) -> 0 | I115: =Input!N122 -> 0 | J115: =Input!L122 -> 0 | L115: =IFERROR(VLOOKUP(C115,Console!$AT$4:$AV$13,3,FALSE)*MAX(E115:F115)*VLOOKUP(C115,Console!$AT$4:$AV$13,2,FALSE),0)*12 -> 0 | M115: =IFERROR(IF(I115="Yes",0,IF(Console!$AQ$3=Console!$AQ$15,IF(OR(C115=Console!$AT$6,C115=Console!$AT$5,C115=Console!$AT$4),IF(G115>0,G115*12*VLOOKUP(C115,Console!$AT$3:$AU$13,2,FALSE),MAX(L115,G115*12,K115*J115,H115)),MAX(L115,G115*12,K115*J115,H115)),IF(G115>0,G115*12*VLOOKUP(C115,Console!$AT$3:$AU$13,2,FALSE),MAX(L115,G115*12,K115*J115,H115)))),0) -> 0 | N115: 0 | O115: 0 | P115: 0
B116: 16 | C116: =Input!D123 -> 0 | D116: =Input!F123 -> 0 | E116: =Input!H123 -> 0 | F116: =_xlfn.SWITCH(TRUE, Input!D123 = "Child Maintenance ",0, Input!D123 = "Rental Expense ",0, Input!D123 = "Credit Card / Overdraft",0, Input!J123) -> 0 | G116: =_xlfn.SWITCH(TRUE, Input!D123 = "Credit Card / Overdraft",0, Input!L123) -> 0 | H116: =IF(C116=$H$100,Console!$AV$9*12,0) -> 0 | I116: =Input!N123 -> 0 | J116: =Input!L123 -> 0 | L116: =IFERROR(VLOOKUP(C116,Console!$AT$4:$AV$13,3,FALSE)*MAX(E116:F116)*VLOOKUP(C116,Console!$AT$4:$AV$13,2,FALSE),0)*12 -> 0 | M116: =IFERROR(IF(I116="Yes",0,IF(Console!$AQ$3=Console!$AQ$15,IF(OR(C116=Console!$AT$6,C116=Console!$AT$5,C116=Console!$AT$4),IF(G116>0,G116*12*VLOOKUP(C116,Console!$AT$3:$AU$13,2,FALSE),MAX(L116,G116*12,K116*J116,H116)),MAX(L116,G116*12,K116*J116,H116)),IF(G116>0,G116*12*VLOOKUP(C116,Console!$AT$3:$AU$13,2,FALSE),MAX(L116,G116*12,K116*J116,H116)))),0) -> 0 | N116: 0 | O116: 0 | P116: 0
B117: 17 | C117: =Input!D124 -> 0 | D117: =Input!F124 -> 0 | E117: =Input!H124 -> 0 | F117: =_xlfn.SWITCH(TRUE, Input!D124 = "Child Maintenance ",0, Input!D124 = "Rental Expense ",0, Input!D124 = "Credit Card / Overdraft",0, Input!J124) -> 0 | G117: =_xlfn.SWITCH(TRUE, Input!D124 = "Credit Card / Overdraft",0, Input!L124) -> 0 | H117: =IF(C117=$H$100,Console!$AV$9*12,0) -> 0 | I117: =Input!N124 -> 0 | J117: =Input!L124 -> 0 | L117: =IFERROR(VLOOKUP(C117,Console!$AT$4:$AV$13,3,FALSE)*MAX(E117:F117)*VLOOKUP(C117,Console!$AT$4:$AV$13,2,FALSE),0)*12 -> 0 | M117: =IFERROR(IF(I117="Yes",0,IF(Console!$AQ$3=Console!$AQ$15,IF(OR(C117=Console!$AT$6,C117=Console!$AT$5,C117=Console!$AT$4),IF(G117>0,G117*12*VLOOKUP(C117,Console!$AT$3:$AU$13,2,FALSE),MAX(L117,G117*12,K117*J117,H117)),MAX(L117,G117*12,K117*J117,H117)),IF(G117>0,G117*12*VLOOKUP(C117,Console!$AT$3:$AU$13,2,FALSE),MAX(L117,G117*12,K117*J117,H117)))),0) -> 0 | N117: 0 | O117: 0 | P117: 0
B118: 18 | C118: =Input!D125 -> 0 | D118: =Input!F125 -> 0 | E118: =Input!H125 -> 0 | F118: =_xlfn.SWITCH(TRUE, Input!D125 = "Child Maintenance ",0, Input!D125 = "Rental Expense ",0, Input!D125 = "Credit Card / Overdraft",0, Input!J125) -> 0 | G118: =_xlfn.SWITCH(TRUE, Input!D125 = "Credit Card / Overdraft",0, Input!L125) -> 0 | H118: =IF(C118=$H$100,Console!$AV$9*12,0) -> 0 | I118: =Input!N125 -> 0 | J118: =Input!L125 -> 0 | L118: =IFERROR(VLOOKUP(C118,Console!$AT$4:$AV$13,3,FALSE)*MAX(E118:F118)*VLOOKUP(C118,Console!$AT$4:$AV$13,2,FALSE),0)*12 -> 0 | M118: =IFERROR(IF(I118="Yes",0,IF(Console!$AQ$3=Console!$AQ$15,IF(OR(C118=Console!$AT$6,C118=Console!$AT$5,C118=Console!$AT$4),IF(G118>0,G118*12*VLOOKUP(C118,Console!$AT$3:$AU$13,2,FALSE),MAX(L118,G118*12,K118*J118,H118)),MAX(L118,G118*12,K118*J118,H118)),IF(G118>0,G118*12*VLOOKUP(C118,Console!$AT$3:$AU$13,2,FALSE),MAX(L118,G118*12,K118*J118,H118)))),0) -> 0 | N118: 0 | O118: 0 | P118: 0
B119: 19 | C119: =Input!D126 -> 0 | D119: =Input!F126 -> 0 | E119: =Input!H126 -> 0 | F119: =_xlfn.SWITCH(TRUE, Input!D126 = "Child Maintenance ",0, Input!D126 = "Rental Expense ",0, Input!D126 = "Credit Card / Overdraft",0, Input!J126) -> 0 | G119: =_xlfn.SWITCH(TRUE, Input!D126 = "Credit Card / Overdraft",0, Input!L126) -> 0 | H119: =IF(C119=$H$100,Console!$AV$9*12,0) -> 0 | I119: =Input!N126 -> 0 | J119: =Input!L126 -> 0 | L119: =IFERROR(VLOOKUP(C119,Console!$AT$4:$AV$13,3,FALSE)*MAX(E119:F119)*VLOOKUP(C119,Console!$AT$4:$AV$13,2,FALSE),0)*12 -> 0 | M119: =IFERROR(IF(I119="Yes",0,IF(Console!$AQ$3=Console!$AQ$15,IF(OR(C119=Console!$AT$6,C119=Console!$AT$5,C119=Console!$AT$4),IF(G119>0,G119*12*VLOOKUP(C119,Console!$AT$3:$AU$13,2,FALSE),MAX(L119,G119*12,K119*J119,H119)),MAX(L119,G119*12,K119*J119,H119)),IF(G119>0,G119*12*VLOOKUP(C119,Console!$AT$3:$AU$13,2,FALSE),MAX(L119,G119*12,K119*J119,H119)))),0) -> 0 | N119: 0 | O119: 0 | P119: 0
B120: 20 | C120: =Input!D127 -> 0 | D120: =Input!F127 -> 0 | E120: =Input!H127 -> 0 | F120: =_xlfn.SWITCH(TRUE, Input!D127 = "Child Maintenance ",0, Input!D127 = "Rental Expense ",0, Input!D127 = "Credit Card / Overdraft",0, Input!J127) -> 0 | G120: =_xlfn.SWITCH(TRUE, Input!D127 = "Credit Card / Overdraft",0, Input!L127) -> 0 | H120: =IF(C120=$H$100,Console!$AV$9*12,0) -> 0 | I120: =Input!N127 -> 0 | J120: =Input!L127 -> 0 | L120: =IFERROR(VLOOKUP(C120,Console!$AT$4:$AV$13,3,FALSE)*MAX(E120:F120)*VLOOKUP(C120,Console!$AT$4:$AV$13,2,FALSE),0)*12 -> 0 | M120: =IFERROR(IF(I120="Yes",0,IF(Console!$AQ$3=Console!$AQ$15,IF(OR(C120=Console!$AT$6,C120=Console!$AT$5,C120=Console!$AT$4),IF(G120>0,G120*12*VLOOKUP(C120,Console!$AT$3:$AU$13,2,FALSE),MAX(L120,G120*12,K120*J120,H120)),MAX(L120,G120*12,K120*J120,H120)),IF(G120>0,G120*12*VLOOKUP(C120,Console!$AT$3:$AU$13,2,FALSE),MAX(L120,G120*12,K120*J120,H120)))),0) -> 0 | N120: 0 | O120: 0 | P120: 0
B121: 21 | C121: =Input!D128 -> 0 | D121: =Input!F128 -> 0 | E121: =Input!H128 -> 0 | F121: =_xlfn.SWITCH(TRUE, Input!D128 = "Child Maintenance ",0, Input!D128 = "Rental Expense ",0, Input!D128 = "Credit Card / Overdraft",0, Input!J128) -> 0 | G121: =_xlfn.SWITCH(TRUE, Input!D128 = "Credit Card / Overdraft",0, Input!L128) -> 0 | H121: =IF(C121=$H$100,Console!$AV$9*12,0) -> 0 | I121: =Input!N128 -> 0 | J121: =Input!L128 -> 0 | L121: =IFERROR(VLOOKUP(C121,Console!$AT$4:$AV$13,3,FALSE)*MAX(E121:F121)*VLOOKUP(C121,Console!$AT$4:$AV$13,2,FALSE),0)*12 -> 0 | M121: =IFERROR(IF(I121="Yes",0,IF(Console!$AQ$3=Console!$AQ$15,IF(OR(C121=Console!$AT$6,C121=Console!$AT$5,C121=Console!$AT$4),IF(G121>0,G121*12*VLOOKUP(C121,Console!$AT$3:$AU$13,2,FALSE),MAX(L121,G121*12,K121*J121,H121)),MAX(L121,G121*12,K121*J121,H121)),IF(G121>0,G121*12*VLOOKUP(C121,Console!$AT$3:$AU$13,2,FALSE),MAX(L121,G121*12,K121*J121,H121)))),0) -> 0 | N121: 0 | O121: 0 | P121: 0
B122: 22 | C122: =Input!D129 -> 0 | D122: =Input!F129 -> 0 | E122: =Input!H129 -> 0 | F122: =_xlfn.SWITCH(TRUE, Input!D129 = "Child Maintenance ",0, Input!D129 = "Rental Expense ",0, Input!D129 = "Credit Card / Overdraft",0, Input!J129) -> 0 | G122: =_xlfn.SWITCH(TRUE, Input!D129 = "Credit Card / Overdraft",0, Input!L129) -> 0 | H122: =IF(C122=$H$100,Console!$AV$9*12,0) -> 0 | I122: =Input!N129 -> 0 | J122: =Input!L129 -> 0 | L122: =IFERROR(VLOOKUP(C122,Console!$AT$4:$AV$13,3,FALSE)*MAX(E122:F122)*VLOOKUP(C122,Console!$AT$4:$AV$13,2,FALSE),0)*12 -> 0 | M122: =IFERROR(IF(I122="Yes",0,IF(Console!$AQ$3=Console!$AQ$15,IF(OR(C122=Console!$AT$6,C122=Console!$AT$5,C122=Console!$AT$4),IF(G122>0,G122*12*VLOOKUP(C122,Console!$AT$3:$AU$13,2,FALSE),MAX(L122,G122*12,K122*J122,H122)),MAX(L122,G122*12,K122*J122,H122)),IF(G122>0,G122*12*VLOOKUP(C122,Console!$AT$3:$AU$13,2,FALSE),MAX(L122,G122*12,K122*J122,H122)))),0) -> 0 | N122: 0 | O122: 0 | P122: 0
B123: 23 | C123: =Input!D130 -> 0 | D123: =Input!F130 -> 0 | E123: =Input!H130 -> 0 | F123: =_xlfn.SWITCH(TRUE, Input!D130 = "Child Maintenance ",0, Input!D130 = "Rental Expense ",0, Input!D130 = "Credit Card / Overdraft",0, Input!J130) -> 0 | G123: =_xlfn.SWITCH(TRUE, Input!D130 = "Credit Card / Overdraft",0, Input!L130) -> 0 | H123: =IF(C123=$H$100,Console!$AV$9*12,0) -> 0 | I123: =Input!N130 -> 0 | J123: =Input!L130 -> 0 | L123: =IFERROR(VLOOKUP(C123,Console!$AT$4:$AV$13,3,FALSE)*MAX(E123:F123)*VLOOKUP(C123,Console!$AT$4:$AV$13,2,FALSE),0)*12 -> 0 | M123: =IFERROR(IF(I123="Yes",0,IF(Console!$AQ$3=Console!$AQ$15,IF(OR(C123=Console!$AT$6,C123=Console!$AT$5,C123=Console!$AT$4),IF(G123>0,G123*12*VLOOKUP(C123,Console!$AT$3:$AU$13,2,FALSE),MAX(L123,G123*12,K123*J123,H123)),MAX(L123,G123*12,K123*J123,H123)),IF(G123>0,G123*12*VLOOKUP(C123,Console!$AT$3:$AU$13,2,FALSE),MAX(L123,G123*12,K123*J123,H123)))),0) -> 0 | N123: 0 | O123: 0 | P123: 0
B124: 24 | C124: =Input!D131 -> 0 | D124: =Input!F131 -> 0 | E124: =Input!H131 -> 0 | F124: =_xlfn.SWITCH(TRUE, Input!D131 = "Child Maintenance ",0, Input!D131 = "Rental Expense ",0, Input!D131 = "Credit Card / Overdraft",0, Input!J131) -> 0 | G124: =_xlfn.SWITCH(TRUE, Input!D131 = "Credit Card / Overdraft",0, Input!L131) -> 0 | H124: =IF(C124=$H$100,Console!$AV$9*12,0) -> 0 | I124: =Input!N131 -> 0 | J124: =Input!L131 -> 0 | L124: =IFERROR(VLOOKUP(C124,Console!$AT$4:$AV$13,3,FALSE)*MAX(E124:F124)*VLOOKUP(C124,Console!$AT$4:$AV$13,2,FALSE),0)*12 -> 0 | M124: =IFERROR(IF(I124="Yes",0,IF(Console!$AQ$3=Console!$AQ$15,IF(OR(C124=Console!$AT$6,C124=Console!$AT$5,C124=Console!$AT$4),IF(G124>0,G124*12*VLOOKUP(C124,Console!$AT$3:$AU$13,2,FALSE),MAX(L124,G124*12,K124*J124,H124)),MAX(L124,G124*12,K124*J124,H124)),IF(G124>0,G124*12*VLOOKUP(C124,Console!$AT$3:$AU$13,2,FALSE),MAX(L124,G124*12,K124*J124,H124)))),0) -> 0 | N124: 0 | O124: 0 | P124: 0
B125: 25 | C125: =Input!D132 -> 0 | D125: =Input!F132 -> 0 | E125: =Input!H132 -> 0 | F125: =_xlfn.SWITCH(TRUE, Input!D132 = "Child Maintenance ",0, Input!D132 = "Rental Expense ",0, Input!D132 = "Credit Card / Overdraft",0, Input!J132) -> 0 | G125: =_xlfn.SWITCH(TRUE, Input!D132 = "Credit Card / Overdraft",0, Input!L132) -> 0 | H125: =IF(C125=$H$100,Console!$AV$9*12,0) -> 0 | I125: =Input!N132 -> 0 | J125: =Input!L132 -> 0 | L125: =IFERROR(VLOOKUP(C125,Console!$AT$4:$AV$13,3,FALSE)*MAX(E125:F125)*VLOOKUP(C125,Console!$AT$4:$AV$13,2,FALSE),0)*12 -> 0 | M125: =IFERROR(IF(I125="Yes",0,IF(Console!$AQ$3=Console!$AQ$15,IF(OR(C125=Console!$AT$6,C125=Console!$AT$5,C125=Console!$AT$4),IF(G125>0,G125*12*VLOOKUP(C125,Console!$AT$3:$AU$13,2,FALSE),MAX(L125,G125*12,K125*J125,H125)),MAX(L125,G125*12,K125*J125,H125)),IF(G125>0,G125*12*VLOOKUP(C125,Console!$AT$3:$AU$13,2,FALSE),MAX(L125,G125*12,K125*J125,H125)))),0) -> 0 | N125: 0 | O125: 0 | P125: 0
B126: Total | N126: =SUM(P101:P125) -> 0

Sheet Console (hidden)
A1: Product Data | T1: Income Data | AL1: Expense Data | AT1: Liability Data | AZ1: Old version no longer used since 11th Aug 2020, kept for reference | BE1: Old version no longer used since 11th Aug 2020 | BQ1: TOGGLES
A2: Products | B2: Rate | C2: Rate Loading | D2: Assessment Rate | F2: Floor Rate | H2: Yes | I2: IO | J2: OO | K2: Loan Term | L2: P&I | M2: IO | O2: Loan Amount | Q2: States | R2: Interest Only Terms | T2: Income Types | U2: Allowance | V2: Tax Type | X2: Payment Frequency | Y2: Multiplier | AA2: Taxable Income | AB2: Tax on this income | AC2: Min | AD2: Max | AE2: Scalar | AF2: Rate | AH2: Medicare Levy | AJ2: Company tax rate | AL2: Living Expenses | AM2: Discretionary? | AO2: HEM BUFFER | AQ2: Toggle Liabilities Calc: | AT2: Liability Type | AU2: Multiplier | AW2: Notes | AX2: Notes | AZ2: Hecs Payments | BE2: Adults | BM2: FY Years | BN2: Start Date | BQ2: Negative Gearing Option | BS2: Negative Gearing options
A3: All Loan Types | C3: 0.02 | D3: =C3+B3 -> 0.02 | E3: For Aggregate Lending on all loan purposes and products | F3: 0.056 | H3: No | I3: P&I | J3: Inv | K3: Minimum | L3: 1 | M3: 1 | O3: Miniumum | P3: 1000 | Q3: NSW | R3: 1 | T3: Salary | U3: 1 | V3: Progressive | X3: Annually | Y3: 1 | AA3: 0-$18,200 | AB3: Nil | AC3: 0 | AD3: 18200 | AE3: 0 | AF3: 0 | AH3: 0.02 | AJ3: 0.3 | AL3: Childcare | AM3: No | AO3: 0 | AQ3: Use MAX of calc payment or delcared payment | AT3: New Debt | AU3: 1 | AX3: Loan amount @ assessment rate, over loan term - P&I | AZ3: Repayment Income | BB3: Repayment Rate | BD3: Children | BE3: 1 | BF3: 2 | BG3: 3 | BH3: 4 | BI3: 5 | BJ3: 6 | BM3: FY20 | BN3: 2019-07-01 | BQ3: 1 | BS3: 1 | BT3: Full | BU3: On all investment loans, the interest charged each year is applied as a tex deduction to gross income
A4: $ for $ Refi | C4: 0.01 | D4: =C4+B4 -> 0.01 | E4: For Aggregate Lending with only Refinance loan purpose i.e no Cash out, no other debt consolidation, no purchase etc | K4: Maximum | L4: 30 | M4: 5 | O4: Maximum | P4: 99999999 | Q4: VIC | R4: 2 | T4: Net Salary | U4: 1 | V4: None | X4: Half Yearly | Y4: 2 | AA4: $18,201 - $45,000 | AB4: 19c for each $1 over $18,200 | AC4: =AD3+0.001 -> 18200.001 | AD4: 45000 | AE4: 0 | AF4: 0.16 | AL4: Clothing & other personal expenses | AM4: No | AT4: OO Mortgage | AU4: 1.25 | AV4: =-AU4*PMT(Input!P12/12,30*12,100000,0,0)/100000 -> 0.007175987258 | AW4: Loading 25% | AX4: Actual Pmt + 25% used, if no actual payment then 30yr P&I at assessment rate at 25% loading | AZ4: 0 | BA4: 0 | BB4: 0 | BD4: 0 | BE4: =AR8 -> 0 | BF4: =AR3 -> 0 | BG4: =BF4+$AR$15 -> 0 | BH4: =BG4+$AR$15 -> 0 | BI4: =BH4+$AR$15 -> 0 | BJ4: =BI4+$AR$15 -> 0 | BM4: FY21 | BN4: 2020-07-01 | BS4: 2 | BT4: Partial | BU4: Interest is NOT used as a tax deduction, but rental incomes are treated as not taxable incomes
A5: Fixed Rate Only | C5: 0.015 | D5: =C5+B5 -> 0.015 | E5: For Aggregate Lending with only Fixed Rate loan product(s) i.e no variable products | F5: Personal Loan Other Liability Rate | J5: OO | Q5: QLD | R5: 3 | T5: Part Time Job | U5: 1 | V5: Progressive | X5: Quarterly | Y5: 4 | AA5: $45,001 – $135,000 | AB5: $4,288 plus 30c for each $1 over $45,000 | AC5: =AD4+0.001 -> 45000.001 | AD5: 135000 | AE5: =ROUND((AD4-AC4)*AF4,2)+AE4 -> 4288 | AF5: 0.3 | AJ5: Business Type | AL5: Education | AM5: No | AT5: Investment Mortgage | AU5: 1.25 | AV5: =-AU5*PMT(Input!P12/12,30*12,100000,0,0)/100000 -> 0.007175987258 | AW5: Loading 25% | AX5: Actual Pmt + 25% used, if no actual payment then 30yr P&I at assessment rate at 25% loading | AZ5: Below $45,881 | BA5: 45881 | BB5: 0.01 | BD5: 1 | BE5: =AR9 -> 0 | BF5: =AR4 -> 0 | BG5: =BF5+$AR$15 -> 0 | BH5: 0 | BI5: 0 | BJ5: 0 | BM5: FY22 | BN5: 2021-07-01 | BS5: 3 | BT5: Off | BU5: Interest is NOT used to deduct taxable income, and rental incomes are taxed
A6: Flow Buffer | C6: 0.03 | D6: =C6+B6 -> 0.03 | F6: 0.12 | J6: Inv Property | Q6: SA | R6: 4 | T6: Casual | U6: 1 | V6: Progressive | X6: Monthly | Y6: 12 | AA6: $135,001 – $190,000 | AB6: $31,288 plus 37c for each $1 over $135,000 | AC6: 135000.001 | AD6: 190000 | AE6: =ROUND((AD5-AC5)*AF5,2)+AE5 -> 31288 | AF6: 0.37 | AJ6: Sole Trader | AL6: Groceries | AM6: No | AT6: Personal Loan | AU6: 1 | AV6: =-PMT(F6/12,7*12,10000,0,0)/10000 -> 0.0176527328 | AW6: Actual | AX6: Actual repayment | AZ6: $45,881 -$52,973 | BA6: 52973 | BB6: 0.02 | BD6: 2 | BE6: =AR10 -> 0 | BF6: =AR5 -> 0 | BG6: 0 | BH6: 0 | BI6: 0 | BJ6: 0
J7: Inv Other | K7: Borrower Entity | Q7: WA | R7: 5 | T7: Commission | U7: 0.8 | V7: Progressive | X7: Fortnightly | Y7: =(365.25/14) -> 26.08928571 | AA7: $190,001 and over | AB7: $51,638 plus 45c for each $1 over $190,000 | AC7: 190000.001 | AD7: 10000000 | AE7: =ROUND((AD6-AC6)*AF6,2)+AE6 -> 51638 | AF7: 0.45 | AJ7: Partnership | AL7: Insurance | AM7: No | AT7: Line of Credit | AU7: 1 | AV7: =-PMT(Input!P12/12,30*12,100000,0,0)/100000 -> 0.005740789806 | AW7: Actual | AX7: 30yr P&I at assessment rate | AZ7: $52,974 -$ 56,151 | BA7: 56151 | BB7: 0.025 | BD7: 3 | BE7: =AR11 -> 0 | BF7: =AR6 -> 0 | BG7: 0 | BH7: 0 | BI7: 0 | BJ7: 0
A8: LVR <= 80%, Inv, IO | B8: 0.0379 | C8: 0.03 | D8: 0.0679 | F8: NSR | K8: Individual | Q8: TAS | R8: 6 | T8: Overtime | U8: 0.8 | V8: Progressive | X8: Weekly | Y8: =(365.25/7) -> 52.17857143 | AJ8: Company | AL8: Investment property expenses (new purchase / existing) | AM8: No | AT8: Credit Card / Overdraft | AU8: 1 | AV8: 0.038 | AW8: 0.038 | AX8: Limit x 3.80% = monthly figure | AZ8: $56,152- $59,521 | BA8: 59521 | BB8: 0.03 | BD8: 4 | BE8: =BE7+$AR$17 -> 0 | BF8: =BF7+$AR$17 -> 0 | BG8: 0 | BH8: 0 | BI8: 0 | BJ8: 0 | BQ8: HEM | BS8: HEM Options
A9: LVR <= 80%, OO, P&I | B9: 0.0314 | C9: 0.03 | D9: 0.0614 | F9: 500 | K9: Company | Q9: ACT & NT | R9: 7 | T9: Contract | U9: 1 | V9: Progressive | X9: Daily | Y9: 365.25 | AL9: Medical & Health | AM9: No | AT9: Rental Expense | AU9: 1 | AV9: 0 | AW9: Actual | AX9: Notional rent ($650 per month per applicant) | AZ9: $59,522 - $63,092 | BA9: 63092 | BB9: 0.035 | BD9: 5 | BE9: =BE8+$AR$17 -> 0 | BF9: =BF8+$AR$17 -> 0 | BG9: 0 | BH9: 0 | BI9: 0 | BJ9: 0 | BQ9: 2 | BS9: 1 | BT9: Absolute Gross Salary
A10: LVR <= 80%, OO, IO | B10: 0.0324 | C10: 0.03 | D10: 0.0624 | R10: 8 | T10: Investment Income | U10: 0.8 | V10: Progressive | AL10: Other | AM10: No | AT10: HECS / HELP | AU10: 1 | AV10: 0 | AW10: Actual | AX10: Manual calculation based on income | AZ10: $63,093- $66,877 | BA10: 66877 | BB10: 0.04 | BD10: 6 | BE10: 0 | BF10: 0 | BG10: 0 | BH10: 0 | BI10: 0 | BJ10: 0 | BS10: 2 | BT10: Gross Taxable Salary as reported to ATO
R11: 9 | T11: Business Net Profit | U11: 1 | V11: Progressive | AL11: Owner Occupied Council Rates/ Body Corp fees (new purchase/ existing) | AM11: No | AT11: Child Maintenance | AU11: 1 | AV11: 0 | AW11: Actual | AX11: Actual repayment | AZ11: $66,878 - $70,890 | BA11: 70890 | BB11: 0.045 | BD11: 7 | BE11: 0 | BF11: 0 | BG11: 0 | BH11: 0 | BI11: 0 | BJ11: 0
R12: 10 | T12: Business Addbacks | U12: 1 | V12: Progressive | AA12: Low Income tax offset | AL12: Recreation & Entertainment | AM12: Yes | AT12: Buy Now Pay Later | AU12: 1 | AV12: 0.038 | AW12: 0.038 | AX12: Limit x 3.80% = monthly figure | AZ12: $70,891 - $ 75,144 | BA12: 75144 | BB12: 0.05 | BD12: 8 | BE12: 0 | BF12: 0 | BG12: 0 | BH12: 0 | BI12: 0 | BJ12: 0
T13: Rental - Residential | U13: 0.8 | V13: Progressive | AA13: Taxable Income | AB13: Offset on this income | AC13: Min | AD13: Max | AE13: Scalar | AF13: Rate | AL13: Telephone/ Internet/ Media & Music subscriptions | AM13: No | AT13: Other | AU13: 1 | AV13: 0 | AW13: Actual | AX13: Actual repayment | AZ13: $75,145 - $79,652 | BA13: 79652 | BB13: 0.055 | BD13: 9 | BE13: 0 | BF13: 0 | BG13: 0 | BH13: 0 | BI13: 0 | BJ13: 0
T14: Rental - Commercial | U14: 0.7 | V14: Progressive | AA14: 0-37500 | AB14: Full offset $700 | AC14: 0 | AD14: 37500 | AE14: 700 | AF14: 0 | AL14: Transportation expenses | AM14: No | AQ14: Options for toggle above DO NOT TOUCH: | AZ14: $79,653 - $ 84,432 | BA14: 84432 | BB14: 0.06 | BD14: 10 | BE14: 0 | BF14: 0 | BG14: 0 | BH14: 0 | BI14: 0 | BJ14: 0
T15: Centrelink | U15: 1 | V15: None | AA15: 37501-45000 | AB15: $700 + 5 cents for every $1 | AC15: 37500.001 | AD15: 45000 | AE15: 700 | AF15: -0.05 | AQ15: Use MAX of calc payment or delcared payment | AZ15: $84,433 - $89,498 | BA15: 89498 | BB15: 0.065 | BD15: 11 | BE15: 0 | BF15: 0 | BG15: 0 | BH15: 0 | BI15: 0 | BJ15: 0
T16: Child Support | U16: 1 | V16: None | AA16: 45001-66667 | AB16: $324 + 1.5cents for every $1 | AC16: 45000.001 | AD16: 66667 | AE16: 324 | AF16: -0.015 | AQ16: If actual pmt used then use in servicing, otherwise use calc | AZ16: $89,499 - $94,868 | BA16: 94868 | BB16: 0.07 | BD16: 12 | BE16: 0 | BF16: 0 | BG16: 0 | BH16: 0 | BI16: 0 | BJ16: 0
T17: Foreign Income | U17: 0.9 | V17: Progressive | AA17: 66,668+ | AB17: 0 | AC17: 66667.001 | AD17: 100000000 | AE17: 0 | AF17: 0 | AZ17: $94,869 - $100,560 | BA17: 100560 | BB17: 0.075 | BD17: 13 | BE17: 0 | BF17: 0 | BG17: 0 | BH17: 0 | BI17: 0 | BJ17: 0
T18: Foreign Rental Income | U18: =80%*90% -> 0.72 | V18: Progressive | AZ18: $100,561 - $106,593 | BA18: 106593 | BB18: 0.08 | BD18: 14 | BE18: 0 | BF18: 0 | BG18: 0 | BH18: 0 | BI18: 0 | BJ18: 0
AZ19: $106,594 - $112,989 | BA19: 112989 | BB19: 0.085 | BD19: 15 | BE19: 0 | BF19: 0 | BG19: 0 | BH19: 0 | BI19: 0 | BJ19: 0
AZ20: $112,990 - $ 119,769 | BA20: 119769 | BB20: 0.09 | BD20: 16 | BE20: 0 | BF20: 0 | BG20: 0 | BH20: 0 | BI20: 0 | BJ20: 0
T21: Category 3 rental incomes to be entered seperately as per policy | AZ21: $119,770 - $ 126,955 | BA21: 126955 | BB21: 0.095 | BD21: 17 | BE21: 0 | BF21: 0 | BG21: 0 | BH21: 0 | BI21: 0 | BJ21: 0
AZ22: $126,959- $ 134,572 | BA22: 134572 | BB22: 0.1 | BD22: 18 | BE22: 0 | BF22: 0 | BG22: 0 | BH22: 0 | BI22: 0 | BJ22: 0
AA23: Low to middle income tax offset | AZ23: $134,573 and above | BA23: 100000000 | BB23: 0.1 | BD23: 19 | BE23: 0 | BF23: 0 | BG23: 0 | BH23: 0 | BI23: 0 | BJ23: 0
AA24: Taxable Income | AB24: Offset on this income | AC24: Min | AD24: Max | AE24: Scalar | AF24: Rate | BD24: 20 | BE24: =BE23+$AR$17 -> 0 | BF24: =BF23+$AR$17 -> 0 | BG24: 0 | BH24: 0 | BI24: 0 | BJ24: 0
AA25: 0-37,000 | AB25: 255 | AC25: 0 | AD25: 37000 | AE25: 255 | AF25: 0
AA26: 37,001 - 48,000 | AB26: 255 + 7.5% over 37,000, max 1080 | AC26: 37000.001 | AD26: 48000 | AE26: 255 | AF26: 0.075
AA27: 48,001 - 90,000 | AB27: 1080 | AC27: 48000.001 | AD27: 90000 | AE27: 1080 | AF27: 0
AA28: 90,001 - 126,000 | AB28: 1080 - 3% over 90,000 | AC28: 90000.001 | AD28: 126000 | AE28: 1080 | AF28: -0.03
AA29: 126,001+ | AC29: 126000.001 | AD29: 100000000 | AE29: 0 | AF29: 0

Sheet HEM (hidden)
B1: Adults | C1: Children | D1: UNIQUE | F1: 0 | G1: 26000 | H1: 39000 | I1: 52000 | J1: 66000 | K1: 79000 | L1: 105000 | M1: 131000 | N1: 157000 | O1: 184000 | P1: 210000 | Q1: 262000 | R1: 328000 | S1: 394000 | T1: 1e+19
E2: Australia | F2: 3 | G2: 4 | H2: 5 | I2: 6 | J2: 7 | K2: 8 | L2: 9 | M2: 10 | N2: 11 | O2: 12 | P2: 13 | Q2: 14 | R2: 15 | S2: 16
B3: 2 | C3: 0 | D3: =CONCATENATE(B3,C3) -> 20 | E3: Couple | F3: 598.595273 | G3: 598.595273 | H3: 613.328721 | I3: 638.1843114 | J3: 678.8731501 | K3: 741.816676 | L3: 829.0894449 | M3: 903.0729307 | N3: 985.3991666 | O3: 1033.784206 | P3: 1099.805434 | Q3: 1216.325815 | R3: 1388.64004 | S3: 1403.467859
B4: 2 | C4: 1 | D4: =CONCATENATE(B4,C4) -> 21 | E4: Couple with 1 child | F4: 703.5189996 | G4: 703.5189996 | H4: 703.5189996 | I4: 728.4808204 | J4: 769.3435593 | K4: 832.5560981 | L4: 920.2018621 | M4: 994.5015463 | N4: 1077.179633 | O4: 1125.771469 | P4: 1192.074866 | Q4: 1309.093239 | R4: 1482.143918 | S4: 1497.035109
B5: 2 | C5: 2 | D5: 22 | E5: Couple with 2 children | F5: 769.2235706 | G5: 769.2235706 | H5: 769.2235706 | I5: 794.0224294 | J5: 834.6183996 | K5: 897.41826 | L5: 984.4918338 | M5: 1058.306458 | N5: 1140.444789 | O5: 1188.719394 | P5: 1254.589933 | Q5: 1370.844362 | R5: 1542.765293 | S5: 1557.559268
B6: 2 | C6: 3 | D6: 23 | E6: Couple with 3 children | F6: 858.9547196 | G6: 858.9547196 | H6: 858.9547196 | I6: 858.9547196 | J6: 899.5359428 | K6: 962.3129956 | L6: 1049.354941 | M6: 1123.142754 | N6: 1205.251248 | O6: 1253.508318 | P6: 1319.354931 | Q6: 1435.567133 | R6: 1607.425614 | S6: 1622.214218
B8: 1 | C8: 0 | D8: 10 | E8: Single person | F8: 310.894831 | G8: 326.2985127 | H8: 341.0573747 | I8: 365.9558393 | J8: 406.714863 | K8: 469.7669612 | L8: 557.1902681 | M8: 631.3013696 | N8: 713.7696108 | O8: 762.2381119 | P8: 828.3732204 | Q8: 945.0945885 | R8: 1117.706043 | S8: 1132.559437
B9: 1 | C9: 1 | D9: 11 | E9: Single parent with 1 child | F9: 424.9090439 | G9: 424.9090439 | H9: 439.5698938 | I9: 464.30301 | J9: 504.791355 | K9: 567.4247311 | L9: 654.2674682 | M9: 727.8864036 | N9: 809.8069781 | O9: 857.953605 | P9: 923.6495169 | Q9: 1039.59575 | R9: 1211.060905 | S9: 1225.81566
B10: 1 | C10: 2 | D10: 12 | E10: Single parent with 2 children | F10: 536.0953604 | G10: 536.0953604 | H10: 550.7352364 | I10: 575.4329687 | J10: 615.86339 | K10: 678.4071629 | L10: 765.1256595 | M10: 838.6392742 | N10: 920.4426549 | O10: 968.5203985 | P10: 1034.122326 | Q10: 1149.902686 | R10: 1321.122537 | S10: 1335.856185
B11: 1 | C11: 3 | D11: 13 | E11: Single parent with 3 children | F11: 661.900579 | G11: 661.900579 | H11: 661.900579 | I11: 686.5629275 | J11: 726.935425 | K11: 789.3895947 | L11: 875.9838508 | M11: 949.3921448 | N11: 1031.078332 | O11: 1079.087192 | P11: 1144.595134 | Q11: 1260.209622 | R11: 1431.184169 | S11: 1445.896709
D12: =CONCATENATE(A12,B12,C12) -> 

Sheet Subordinate Calculator (hidden)
B3: SECTION 1 - Loan Features | I3: SECTION 2 - Subordination | V3: SECTION 3 - Inputs
C9: # | D9: Loan Field | E9: Specific Loan Input | J9: # | K9: AAA CE Calculator | L9: 1 | M9: =L9+1 -> 2 | N9: 3 | O9: 4 | P9: model adjustment | Q9: item | R9: comment | W9: S&P Inputs | AI9: Additional Input selectors | AK9: Documentation | AL9: Repayment Type | AM9: Employment Type | AO9: State | AP9: Location | AQ9: Int Type
C10: 1 | D10: Loan ID | E10: ='Loan Feature Input'!E68 -> 0 | J10: 1 | K10: LVR Distribution | L10: =IF(E42="",1,E42) -> 1 | P10: =0.45+EXP(-6.6+100*0.08*L10) -> 4.505199967 | Q10: FF | R10: base case Foreclosure Frequency ("FF") adjustment | AI10: Do | AJ10: 0 | AK10: Full Doc | AL10: Principal and Interest | AM10: Self Employed | AN10: Yes | AO10: Exclude | AP10: =CONCATENATE(Z113," - ",AA113) -> Exclude - Exclude | AQ10: Variable
C11: =OFFSET(C11,-1,)+1 -> 2 | D11: Issuer | E11: ='Loan Feature Input'!E69 -> BCHL | J11: =OFFSET(J11,-1,)+1 -> 2 | K11: Pool Size | L11: 251 | P11: =IF(L11<=100,16.0839/LN(L11),IF(L11<250,16.0839/LN(L11)*(250-L11)/150+((L11-100)/150),1)) -> 1 | Q11: FF | R11: min pool size is 250 loans, otherwise a penalty will be applied | W11: 1 | X11: Seasoning | AJ11: 1 | AK11: Alt Doc | AL11: Interest Only | AM11: PAYG | AN11: No | AO11: ACT | AP11: =CONCATENATE(Z114," - ",AA114) -> ACT - Non metro | AQ11: Fixed
C12: 3 | D12: Loan Type | E12: ='Loan Feature Input'!E36 -> Sub-prime | J12: 3 | K12: Loan Seasoning (P&I) (mhts) | L12: =$E$24 -> Principal and Interest | M12: =INT(YEARFRAC($E$29,$E$57,3)*12) -> 0 | P12: =IF($L12<>"Principal and Interest",1,LOOKUP($M12,OFFSET($AC$14,,,$Z$12,1),OFFSET($AD$14,,,$Z$12,1))) -> 1 | Q12: FF | Y12: rows | Z12: =COUNTA(Y14:Y20) -> 7 | AJ12: 2 | AO12: NT | AP12: NT - Metro
C13: 4 | D13: Borrower Group ID | E13: ='Loan Feature Input'!E72 -> Tranche 1 | J13: 4 | K13: Loan Seasoning (I/O) (mths) | L13: =$E$24 -> Principal and Interest | M13: =MAX(0,M$12-(INT(YEARFRAC($E$29,$E$30,3))-$E$45)*12) -> 0 | P13: =IF($L13<>"Interest Only",1,LOOKUP($M13,OFFSET($AC$14,,,$Z$12,1),OFFSET($AD$14,,,$Z$12,1))) -> 1 | Q13: FF | Y13: Rating Agency | Z13: Data Category | AA13: Description | AB13: Description2 | AC13: LBound | AD13: DF Multiple | AE13: MVD Multiple | AJ13: 3 | AO13: NSW | AP13: NT - Non metro
C14: 5 | D14: Borrower Residency | E14: ='Loan Feature Input'!E73 -> Australian | J14: 5 | K14: Repayment Method - IO Period (I/O) | L14: =$E$24 -> Principal and Interest | M14: =YEAR($E$30)-YEAR($E$29)-$E$45 -> 0 | P14: =IF($L14<>"Interest Only",1,LOOKUP($M14,OFFSET($AC$25,,,$Z$23,1),OFFSET($AD$25,,,$Z$23,1))) -> 1 | Q14: FF | Y14: S&P | Z14: Seasoning | AA14: <= 5 year | AC14: 0 | AD14: 1 | AJ14: 4 | AO14: VIC | AP14: NT - Metro
C15: 6 | D15: Current Loan Balance | E15: =IF('Loan Feature Input'!E74=0,1,'Loan Feature Input'!E74) -> 1 | J15: 6 | K15: Repayment Method Amortising Period Post IO (I/O) | L15: =$E$24 -> Principal and Interest | M15: =$E$45 -> 0 | P15: =IF($L15<>"Interest Only",1,LOOKUP($M15,OFFSET($AC$34,,,$Z$32,1),OFFSET($AD$34,,,$Z$32,1))) -> 1 | Q15: FF | Y15: S&P | Z15: Seasoning | AA15: > 5 - 6 years | AC15: 60.001 | AD15: 0.75 | AJ15: 5 | AO15: QLD | AP15: NT - Non metro
C16: 7 | D16: Current LTV | E16: ='Loan Feature Input'!E75 ->  | J16: 7 | K16: Loan Term (P&I) | L16: =$E$24 -> Principal and Interest | M16: =YEAR($E$30)-YEAR($E$29) -> 0 | P16: =IF($L16<>"Principal and Interest",1,LOOKUP($M16,OFFSET($AC$43,,,$Z$41,1),OFFSET($AD$43,,,$Z$41,1))) -> 0.4 | Q16: FF | Y16: S&P | Z16: Seasoning | AA16: > 6 - 7 years | AC16: 72.001 | AD16: 0.7 | AJ16: 6 | AO16: SA | AP16: NSW - Metro
C17: 8 | D17: Documentation | E17: ='Loan Feature Input'!E4 -> 0 | J17: 8 | K17: Savings Verified | L17: =$E$55 -> Yes | P17: =OFFSET($AD$50,MATCH($L17,OFFSET($AA$51,,,$Z$49,1),0),) -> 1 | Q17: FF | Y17: S&P | Z17: Seasoning | AA17: > 7 - 8 years | AC17: 84.001 | AD17: 0.65 | AJ17: 7 | AO17: WA | AP17: NSW - Non metro
C18: 9 | D18: Interest Type | E18: ='Loan Feature Input'!E70 -> Variable | J18: 9 | K18: Documentation (Low Doc and Self Employed) | L18: =$E$51 -> 2 | M18: =$E$54 -> No | N18: =$E$44 -> 0 | P18: =IF(AND($E$17<>"Full Doc",$E$35="self employed")=FALSE,1,OFFSET($AD$56,MATCH($L18,OFFSET($AA$57,,,$Z$55,1),0),)*OFFSET($AD$65,MATCH($M18,OFFSET($AA$66,,,$Z$64,1),0),)*LOOKUP($N18,OFFSET($AC$72,,,$Z$70,1),OFFSET($AD$72,,,$Z$70,1))) -> 1 | Q18: FF | Y18: S&P | Z18: Seasoning | AA18: > 8 - 9 years | AC18: 96.001 | AD18: 0.6 | AJ18: 8 | AO18: TAS | AP18: NSW - Inner city
C19: 10 | D19: Line Of Credit | E19: ='Loan Feature Input'!E71 -> No | J19: 10 | K19: Issuer Multiple | P19: 1 | Q19: FF | Y19: S&P | Z19: Seasoning | AA19: > 9 - 10 years | AC19: 108.001 | AD19: 0.55 | AJ19: 9 | AP19: NSW - Metro
C20: 11 | D20: Property Occupancy | E20: ='Loan Feature Input'!E38 -> Owner Occupied | J20: 11 | K20: First Time Buyer | L20: =$E$44 -> 0 | M20: =$E$37 -> 0 | P20: =IF($L20>$AC$83,1,OFFSET($AD$82,MATCH($M20,OFFSET($AA$83,,,$Z$81,1),0),)) ->  | Q20: FF | Y20: S&P | Z20: Seasoning | AA20: > 10 years | AC20: 120.001 | AD20: 0.5 | AJ20: 10 | AP20: NSW - Non metro
C21: 12 | D21: Original Loan Balance | E21: ='Loan Feature Input'!E39 -> 0 | J21: 12 | K21: Property Occupancy - Investor/Owner | L21: =$E$20 -> Owner Occupied | P21: =OFFSET($AD$89,MATCH($L21,OFFSET($AA$90,,,$Z$88,1),0),) -> 1 | Q21: FF | AJ21: 11 | AP21: NSW - Metro
C22: 13 | D22: Facility limit | E22: ='Loan Feature Input'!E40 -> 0 | J22: 13 | K22: Property Occupancy - Investor/Owner vs Inner City vs High Density | L22: =$E$56 -> Yes | M22: =$E$41 -> NA | N22: =$E$20 -> Owner Occupied | O22: =$E$59 -> Exclude | P22: =IF(AND(OFFSET($AD$95,MATCH($L22,OFFSET($AA$96,,,$Z$94,1),0),),$M22="High density")=FALSE,1,SUMPRODUCT((OFFSET($AA$103,,,$Z$101,1)=$N22)*(OFFSET($AB$103,,,$Z$101,1)=$O22)*OFFSET($AD$103,,,$Z$101,1))) -> 1 | Q22: FF | W22: =W11+1 -> 2 | X22: IO Period | AJ22: 12 | AP22: NSW - Non metro
C23: 14 | D23: Original LTV | E23: ='Loan Feature Input'!E41 ->  | J23: 14 | K23: Borrower residency | L23: =$E$14 -> Australian | P23: =OFFSET($AD$177,MATCH($L23,OFFSET($AA$178,,,$Z$176,1),0),) -> 1 | Q23: FF | Y23: rows | Z23: =COUNTA(Y25:Y30) -> 5 | AJ23: 13 | AP23: ACT - Metro
C24: 15 | D24: Repayment Method | E24: ='Loan Feature Input'!E42 -> Principal and Interest | J24: 15 | K24: Days Past Due | L24: =$E$44 -> 0 | M24: =$E$33 -> 0 | P24: =IF($L24<=6,OFFSET($AD$184,MATCH($M24,OFFSET($AC$185,,,$Z$183,1),0),),OFFSET($AD$191,MATCH($M24,OFFSET($AC$192,,,$Z$190,1),0),)) -> 1 | Q24: FF | Y24: Rating Agency | Z24: Data Category | AA24: Description | AB24: Description2 | AC24: LBound | AD24: DF Multiple | AE24: MVD Multiple | AJ24: 14 | AP24: NSW - Non metro
C25: 16 | D25: Product | E25: ='Loan Feature Input'!E43 -> Principal and Interest | J25: 16 | K25: Times in Arrears (No credit events) | L25: =$E$12 -> Sub-prime | M25: =$E$52 -> 0 | P25: =IF(AND(L25<>"Prime",P26=1),LOOKUP($M25,OFFSET($AC$207,,,$Z$205,1),OFFSET($AD$207,,,$Z$205,1)),1) -> 1 | Q25: FF | Y25: S&P | Z25: IO Period | AA25: <=5 years | AC25: 0 | AD25: 1.1 | AJ25: 15 | AP25: NSW - Metro
C26: 17 | D26: Post Code | E26: ='Loan Feature Input'!E10 -> 0 | J26: 17 | K26: Credit History / Credit Events | L26: =$E$53 -> 125.7863014 | M26: =$E$44 -> 0 | N26: =$E$40 -> 0 | P26: =IF($L26*12+$M26>=60,1,OFFSET($AD$199,MATCH($N26,OFFSET($AC$200,,,$Z$198,1),0),)) -> 1 | Q26: FF | Y26: S&P | Z26: IO Period | AA26: 5-<=10 years | AC26: 5.001 | AD26: 1.25 | AJ26: 16 | AP26: NSW - Non metro
C27: 18 | D27: Location | E27: ='Loan Feature Input'!E45 -> Exclude - Exclude | J27: 18 | K27: Discount Loan | L27: =$E$44 -> 0 | M27: =$E$47 -> No | P27: =IF($L27<=$AC$216,OFFSET($AD$215,MATCH($M27,OFFSET($AA$216,,,$Z$214,1),0),),1) -> 1 | Q27: FF | Y27: S&P | Z27: IO Period | AA27: 10-<=15 years | AC27: 10.001 | AD27: 1.5 | AJ27: 17 | AP27: ACT - Metro
C28: 19 | D28: Total Valuation | E28: ='Loan Feature Input'!E46 -> 0 | J28: 19 | K28: Geographic Concentration | P28: 1 | Q28: FF | Y28: S&P | Z28: IO Period | AA28: 15-<=20 years | AC28: 15.001 | AD28: 1.75 | AJ28: 18 | AP28: NSW - Non metro
C29: 20 | D29: Settlement Date | E29: ='Loan Feature Input'!E47 -> 45912 | J29: 20 | K29: Borrower Employment | L29: =$E$35 -> 0 | M29: Full Doc | N29: =$E$43+$E$44 -> 0 | P29: =IF($L29<>"Self Employed",OFFSET($AD$243,MATCH($L29,OFFSET($AA$244,,,$Z$242,1),0),),IF($M29="Alt Doc",LOOKUP($N29,OFFSET($AC$223,,,$Z$221,1),OFFSET($AD$223,,,$Z$221,1)),LOOKUP($N29,OFFSET($AC$233,,,$Z$231,1),OFFSET($AD$233,,,$Z$231,1)))) ->  | Q29: FF | Y29: S&P | Z29: IO Period | AA29: >20 years | AC29: 20.001 | AD29: 2 | AJ29: 19 | AP29: VIC - Inner city
C30: 21 | D30: Maturity Date | E30: ='Loan Feature Input'!E48 -> 45912 | J30: 21 | K30: Further Advances / Further Redraw | L30: =$E$48 -> Yes | M30: =$E$49 -> Yes | P30: =SUMPRODUCT((OFFSET($AA$256,,,$Z$254,1)=$L30)*(OFFSET($AB$256,,,$Z$254,1)=$M30)*OFFSET($AD$256,,,$Z$254,1)) -> 1.1 | Q30: FF | AJ30: 20 | AP30: VIC - Metro
C31: 22 | D31: Fixed Term Remaining in Years | E31: ='Loan Feature Input'!E44 -> 0 | J31: 22 | K31: Loan Purpose | L31: =$E$39 -> 0 | M31: =$E$12 -> Sub-prime | P31: =SUMPRODUCT((OFFSET($AA$265,,,$Z$263,1)=$L31)*(OFFSET($AB$265,,,$Z$263,1)=$M31)*OFFSET($AD$265,,,$Z$263,1)) -> 0 | Q31: FF | W31: =W22+1 -> 3 | X31: Amortising Period | AJ31: 21 | AP31: VIC - Non metro
C32: 23 | D32: IO Period Remaining in Years | E32: ='Loan Feature Input'!E49 -> 0 | J32: 23 | K32: Property Value | L32: =$E$28 -> 0 | P32: =LOOKUP($L32,OFFSET($AC$291,,,$Z$289,1),OFFSET($AE$291,,,$Z$289,1)) -> 1 | Q32: MVD | Y32: rows | Z32: =COUNTA(Y34:Y39) -> 5 | AJ32: 22 | AP32: VIC - Metro
C33: 24 | D33: Number of Days in Arrears | E33: ='Loan Feature Input'!E50 -> 0 | J33: 24 | K33: Location Inner City High Density | L33: =$E$41 -> NA | M33: =$E$59 -> Exclude | P33: =IF($L33<>"High Density",1,OFFSET($AE$300,MATCH($M33,OFFSET($AA$301,,,$Z$299,1),0),)) -> 1 | Q33: MVD | Y33: Rating Agency | Z33: Data Category | AA33: Description | AB33: Description2 | AC33: Bound | AD33: DF Multiple | AE33: MVD Multiple | AJ33: 23 | AP33: VIC - Non metro
C34: 25 | D34: Scheduled Loan Balance | E34: ='Loan Feature Input'!E51 -> 0 | J34: 25 | K34: Loan Purpose - Construction | L34: =$E$39 -> 0 | M34: =$E$12 -> Sub-prime | P34: =SUMPRODUCT((OFFSET($AA$265,,,$Z$263,1)=$L31)*(OFFSET($AB$265,,,$Z$263,1)=$M31)*OFFSET($AE$265,,,$Z$263,1)) -> 0 | Q34: MVD | Y34: S&P | Z34: Amortising Period | AA34: <3 years | AC34: 0 | AD34: 1.75 | AJ34: 24 | AP34: VIC - Metro
C35: 26 | D35: Employment | E35: =IF(E17="Alt Doc","Self Employed",'Loan Feature Input'!E5) -> 0 | J35: 26 | K35: Foreclosure Period | L35: =IF($E$28>$AC$314,$AB314,$AB$320) -> Non-Construction | M35: =$E$59 -> Exclude | P35: =SUMPRODUCT((OFFSET($AB$314,,,$Z$312,1)=$L35)*(OFFSET($AA$314,,,$Z$312,1)=$M35)*OFFSET($AE$314,,,$Z$312,1)) -> 0 | Q35: foreclosure | Y35: S&P | Z35: Amortising Period | AA35: =3-<5 years | AC35: 3 | AD35: 1.5 | AJ35: 25 | AP35: VIC - Non metro
C36: 27 | D36: Country of Loan Origination | E36: ='Loan Feature Input'!E52 -> Australia | J36: 27 | K36: Fixed Expense | P36: =$AE$309 -> 5000 | Q36: foreclosure | Y36: S&P | Z36: Amortising Period | AA36: =5-<10 years | AC36: 5 | AD36: 1.25 | AJ36: 26 | AP36: VIC - Metro
C37: 28 | D37: First Time Buyer | E37: ='Loan Feature Input'!E7 -> 0 | J37: 28 | K37: Variable Expense | P37: =$AE$308 -> 0.05 | Q37: foreclosure | Y37: S&P | Z37: Amortising Period | AA37: =10-<15 years | AC37: 10 | AD37: 1.1 | AJ37: 27 | AP37: VIC - Non metro
C38: 29 | D38: Lenders Mortgage Insurance | E38: ='Loan Feature Input'!E53 -> No | J38: 29 | K38: total adj: Default Prob | P38: =PRODUCT(P10:P31) ->  | Q38: FF | Y38: S&P | Z38: Amortising Period | AA38: >=15 years | AC38: 15 | AD38: 1 | AJ38: 28 | AP38: VIC - Metro
C39: 30 | D39: Loan Purpose | E39: ='Loan Feature Input'!E8 -> 0 | J39: 30 | K39: total adj: MVD | P39: =PRODUCT(P32:P34) -> 0 | Q39: MVD | AJ39: 29 | AP39: VIC - Non metro
C40: 31 | D40: Credit History | E40: ='Loan Feature Input'!E11 -> 0 | W40: =W31+1 -> 4 | X40: Loan term (P&I) | AJ40: 30 | AP40: VIC - Metro
C41: 32 | D41: Type of Residence | E41: =IF('Loan Feature Input'!E9="Yes","High Density","NA") -> NA | K41: Rating Scenario | P41: AAA | Y41: rows | Z41: =COUNTA(Y43:Y47) -> 4 | AP41: VIC - Non metro
C42: 33 | D42: Scheduled LVR | E42: ='Loan Feature Input'!E59 ->  | K42: Foreclosure Frequency | L42: =$E$44 -> 0 | M42: =$E$33 -> 0 | O42: =OFFSET($AC$327,MATCH($P41,OFFSET($AB$328,,,$Z$326,1),0),) -> 0.1 | P42: =MIN(1,IF(OR(AND($L$42<$AA$349,$M$42>AC349),AND($L$42>$AA$351,$M$42>=AC351)),1,O42*P38)) ->  | Q42: PD | Y42: Rating Agency | Z42: Data Category | AA42: Description | AB42: Description2 | AC42: Bound | AD42: DF Multiple | AE42: MVD Multiple | AP42: VIC - Metro
C43: 34 | D43: Years Business in Operation (for self-employed) | E43: =IF(E35="Self Employed",'Loan Feature Input'!E6,0) -> 0 | K43: MVD | O43: =OFFSET($AE$327,MATCH($P41,OFFSET($AB$328,,,$Z$326,1),0),) -> 0.45 | P43: =O43*P39 -> 0 | Y43: S&P | Z43: Loan term (P&I) | AA43: <=15 years | AC43: 0 | AD43: 0.4 | AP43: VIC - Non metro
C44: 35 | D44: Seasoning | E44: ='Loan Feature Input'!E61 -> 0 | K44: $ Loss | L44: =$E$28 -> 0 | M44: =$E$15 -> 1 | N44: =OFFSET($AD$327,MATCH($P41,OFFSET($AB$328,,,$Z$326,1),0),) -> 0.1 | P44: =($L44*(1-P43)-$M44)-(M44*$N44*P$35/12)-(P$36+P$37*$L44*(1-P43)) -> -5001 | Y44: S&P | Z44: Loan term (P&I) | AA44: 15years <term<30 years | AC44: 15.001 | AD44: 0.7 | AP44: VIC - Metro
C45: 36 | D45: Amortising Period Post IO in Years | E45: ='Loan Feature Input'!E62 -> 0 | K45: % Loss Severity | P45: =-P44/M44 -> 5001 | Q45: LGD | Y45: S&P | Z45: Loan term (P&I) | AA45: =30 years | AC45: 30 | AD45: 1 | AP45: VIC - Non metro
C46: 37 | D46: Interest Rate (%) | E46: ='Loan Feature Input'!E63 -> 0.056 | K46: Credit Support | P46: =IF((P45*P42)<0,0,P45*P42) ->  | Y46: S&P | Z46: Loan term (P&I) | AA46: >30 years | AC46: 30.001 | AD46: 1.2 | AP46: QLD - Inner city
C47: 38 | D47: Discount Loan | E47: ='Loan Feature Input'!E64 -> No | AP47: QLD - Metro
C48: 39 | D48: Further Advances | E48: ='Loan Feature Input'!E65 -> Yes | K48: Default Interest | L48: 0.1 | W48: =W40+1 -> 5 | X48: Savings Verified | AP48: QLD - Non metro
C49: =OFFSET(C49,-1,)+1 -> 40 | D49: Further Redraw | E49: ='Loan Feature Input'!E66 -> Yes | Y49: rows | Z49: =COUNTA(Y51:Y54) -> 2 | AP49: QLD - Metro
C50: 41 | D50: DSCR | E50: ='Loan Feature Input'!E67 -> - | Y50: Rating Agency | Z50: Data Category | AA50: Description | AB50: Description2 | AC50: Bound | AD50: DF Multiple | AE50: MVD Multiple | AP50: =CONCATENATE(Z153," - ",AA153) -> QLD - Non metro
C51: 42 | D51: Sources Documentation | E51: ='Loan Feature Input'!E35 -> 2 | Y51: S&P | Z51: Savings Verified | AA51: No | AD51: 1.05 | AP51: SA - Inner city
C52: 43 | D52: Times Arrears | E52: =VLOOKUP('Loan Feature Input'!E60,AA207:AC211,3,FALSE) -> 0 | Y52: S&P | Z52: Savings Verified | AA52: Yes | AD52: 1 | AP52: SA - Metro
C53: 44 | D53: Credit History Years Ago | E53: =(TODAY()-'Loan Feature Input'!E12)/(365) -> 125.7863014 | AP53: SA - Non metro
C54: 45 | D54: Tax Returns | E54: ='Loan Feature Input'!E37 -> No | W54: =W48+1 -> 6 | X54: Documentation Sources | AP54: =CONCATENATE(Z157," - ",AA157) -> SA - Metro
C55: 46 | D55: Savings Verified | E55: ='Loan Feature Input'!E54 -> Yes | Y55: rows | Z55: =COUNTA(Y57:Y62) -> 5 | AP55: WA - Inner city
C56: 47 | D56: Valuation Type | E56: ='Loan Feature Input'!E55 -> Yes | Y56: Rating Agency | Z56: Data Category | AA56: Description | AB56: Description2 | AC56: Bound | AD56: DF Multiple | AE56: MVD Multiple | AP56: WA - Metro
C57: 48 | D57: Pool Date | E57: ='Loan Feature Input'!E56 -> 45912 | Y57: S&P | Z57: Documentation Sources | AA57: 0 | AC57: 0 | AD57: 1.5 | AP57: WA - Non metro
C58: 49 | D58: State | E58: ='Loan Feature Input'!E57 -> Exclude | Y58: S&P | Z58: Documentation Sources | AA58: 1 | AC58: 1 | AD58: 1.4 | AP58: WA - Metro
C59: 50 | D59: Metro; Non metro; Inner city | E59: ='Loan Feature Input'!E58 -> Exclude | Y59: S&P | Z59: Documentation Sources | AA59: 2 | AC59: 2 | AD59: 1.35 | AP59: TAS - Inner city
Y60: S&P | Z60: Documentation Sources | AA60: 3 | AC60: 3 | AD60: 1.3 | AP60: TAS - Metro
Y61: S&P | Z61: Documentation Sources | AA61: 4 | AC61: 4 | AD61: 1.25 | AP61: TAS - Non metro
AP62: TAS - Metro
W63: =W54+1 -> 7 | X63: Tax Returns | AP63: TAS - Non metro
Y64: rows | Z64: =COUNTA(Y66:Y69) -> 2 | AP64: =CONCATENATE(Z167," - ",AA167) -> VIC - Inner city
Y65: Rating Agency | Z65: Data Category | AA65: Description | AB65: Description2 | AC65: Bound | AD65: DF Multiple | AE65: MVD Multiple | AP65: VIC - Metro
Y66: S&P | Z66: Tax Returns | AA66: No | AD66: 1 | AP66: VIC - Non metro
Y67: S&P | Z67: Tax Returns | AA67: Yes | AD67: 0 | AP67: QLD - Inner city
AP68: QLD - Non metro
W69: =W63+1 -> 8 | X69: Documentation Seasoning | AP69: =CONCATENATE(Z172," - ",AA172) -> QLD - Metro
Y70: rows | Z70: =COUNTA(Y72:Y79) -> 7 | AP70: QLD - Non metro
Y71: Rating Agency | Z71: Data Category | AA71: Description | AB71: Description2 | AC71: Bound | AD71: DF Multiple | AE71: MVD Multiple
Y72: S&P | Z72: Documentation Seasoning | AA72: <=12 mths | AC72: 0 | AD72: 1
Y73: S&P | Z73: Documentation Seasoning | AA73: 12-24 mths | AC73: 12.001 | AD73: 0.85
Y74: S&P | Z74: Documentation Seasoning | AA74: 24-36 mths | AC74: 24.001 | AD74: 0.8
Y75: S&P | Z75: Documentation Seasoning | AA75: 36-48 mths | AC75: 36.001 | AD75: 0.55
Y76: S&P | Z76: Documentation Seasoning | AA76: 48-60 mths | AC76: 48.001 | AD76: 0.35
Y77: S&P | Z77: Documentation Seasoning | AA77: 60-72 mths | AC77: 60.001 | AD77: 0.15
Y78: S&P | Z78: Documentation Seasoning | AA78: >72 mths | AC78: 72.001 | AD78: 0
W80: =W69+1 -> 9 | X80: First Time Buyer
Y81: rows | Z81: =COUNTA(Y83:Y86) -> 3
Y82: Rating Agency | Z82: Data Category | AA82: Description | AB82: Description2 | AC82: Bound | AD82: DF Multiple | AE82: MVD Multiple
Y83: S&P | Z83: First Time Buyer | AA83: Yes | AC83: 18 | AD83: 1.1
Y84: S&P | Z84: First Time Buyer | AA84: No | AC84: 18 | AD84: 1
Y85: S&P | Z85: First Time Buyer | AA85: N/A | AC85: 18 | AD85: 1.01
W87: =W80+1 -> 10 | X87: Occupancy
Y88: rows | Z88: =COUNTA(Y90:Y92) -> 2
Y89: Rating Agency | Z89: Data Category | AA89: Description | AB89: Description2 | AC89: Bound | AD89: DF Multiple | AE89: MVD Multiple
Y90: S&P | Z90: Occupancy | AA90: Owner Occupied | AD90: 1
Y91: S&P | Z91: Occupancy | AA91: Investment | AD91: 1.1
W93: =W87+1 -> 11 | X93: Full Valuation
Y94: rows | Z94: =COUNTA(Y96:Y99) -> 3
Y95: Rating Agency | Z95: Data Category | AA95: Description | AB95: Description2 | AC95: Bound | AD95: DF Multiple | AE95: MVD Multiple
Y96: S&P | Z96: Full Valuation | AA96: No | AD96: 1
Y97: S&P | Z97: Full Valuation | AA97: Yes | AD97: 0
Y98: S&P | Z98: Full Valuation | AA98: N/A | AD98: 1
W100: =W93+1 -> 12 | X100: Occupancy and High Density
Y101: rows | Z101: =COUNTA(Y103:Y109) -> 6
Y102: Rating Agency | Z102: Data Category | AA102: Description | AB102: Description2 | AC102: Bound | AD102: DF Multiple | AE102: MVD Multiple
Y103: S&P | Z103: Occupancy and High Density | AA103: Owner | AB103: Inner City | AD103: 1.5
Y104: S&P | Z104: Occupancy and High Density | AA104: Owner | AB104: Metro | AD104: 1.25
Y105: S&P | Z105: Occupancy and High Density | AA105: Owner | AB105: Non Metro | AD105: 1.25
Y106: S&P | Z106: Occupancy and High Density | AA106: Investment | AB106: Metro | AD106: 1.5
Y107: S&P | Z107: Occupancy and High Density | AA107: Investment | AB107: Non Metro | AD107: 1.5
Y108: S&P | Z108: Occupancy and High Density | AA108: Investment | AB108: Inner City | AD108: 1.8
W110: =W100+1 -> 13 | X110: S&P Postcodes
Y111: rows | Z111: =COUNTA(Y113:Y174) -> 61
Y112: Postcode | Z112: State | AA112: Region
Y113: 0 | Z113: Exclude | AA113: Exclude
Y114: 200 | Z114: ACT | AA114: Non metro
Y115: 800 | Z115: NT | AA115: Metro
Y116: 821 | Z116: NT | AA116: Non metro
Y117: 828 | Z117: NT | AA117: Metro
Y118: 833 | Z118: NT | AA118: Non metro
Y119: 1000 | Z119: NSW | AA119: Metro
Y120: 1921 | Z120: NSW | AA120: Non metro
Y121: 2000 | Z121: NSW | AA121: Inner city
Y122: 2006 | Z122: NSW | AA122: Metro
Y123: 2250 | Z123: NSW | AA123: Non metro
Y124: 2558 | Z124: NSW | AA124: Metro
Y125: 2575 | Z125: NSW | AA125: Non metro
Y126: 2600 | Z126: ACT | AA126: Metro
Y127: 2640 | Z127: NSW | AA127: Non metro
Y128: 2740 | Z128: NSW | AA128: Metro
Y129: 2787 | Z129: NSW | AA129: Non metro
Y130: 2900 | Z130: ACT | AA130: Metro
Y131: 2921 | Z131: NSW | AA131: Non metro
Y132: 3000 | Z132: VIC | AA132: Inner city
Y133: 3011 | Z133: VIC | AA133: Metro
Y134: 3211 | Z134: VIC | AA134: Non metro
Y135: 3335 | Z135: VIC | AA135: Metro
Y136: 3342 | Z136: VIC | AA136: Non metro
Y137: 3425 | Z137: VIC | AA137: Metro
Y138: 3444 | Z138: VIC | AA138: Non metro
Y139: 3750 | Z139: VIC | AA139: Metro
Y140: 3812 | Z140: VIC | AA140: Non metro
Y141: 3910 | Z141: VIC | AA141: Metro
Y142: 3921 | Z142: VIC | AA142: Non metro
Y143: 3926 | Z143: VIC | AA143: Metro
Y144: 3945 | Z144: VIC | AA144: Non metro
Y145: 3972 | Z145: VIC | AA145: Metro
Y146: 3979 | Z146: VIC | AA146: Non metro
Y147: 3980 | Z147: VIC | AA147: Metro
Y148: 3984 | Z148: VIC | AA148: Non metro
Y149: 4000 | Z149: QLD | AA149: Inner city
Y150: 4005 | Z150: QLD | AA150: Metro
Y151: 4210 | Z151: QLD | AA151: Non metro
Y152: 4500 | Z152: QLD | AA152: Metro
Y153: 4550 | Z153: QLD | AA153: Non metro
Y154: 5000 | Z154: SA | AA154: Inner city
Y155: 5006 | Z155: SA | AA155: Metro
Y156: 5200 | Z156: SA | AA156: Non metro
Y157: 5800 | Z157: SA | AA157: Metro
Y158: 6000 | Z158: WA | AA158: Inner city
Y159: 6005 | Z159: WA | AA159: Metro
Y160: 6215 | Z160: WA | AA160: Non metro
Y161: 6800 | Z161: WA | AA161: Metro
Y162: 7000 | Z162: TAS | AA162: Inner city
Y163: 7004 | Z163: TAS | AA163: Metro
Y164: 7200 | Z164: TAS | AA164: Non metro
Y165: 7800 | Z165: TAS | AA165: Metro
Y166: 7900 | Z166: TAS | AA166: Non metro
Y167: 8000 | Z167: VIC | AA167: Inner city
Y168: 8400 | Z168: VIC | AA168: Metro
Y169: 8900 | Z169: VIC | AA169: Non metro
Y170: 9000 | Z170: QLD | AA170: Inner city
Y171: 9300 | Z171: QLD | AA171: Non metro
Y172: 9400 | Z172: QLD | AA172: Metro
Y173: 9597 | Z173: QLD | AA173: Non metro
W175: =W110+1 -> 14 | X175: Residency
Y176: rows | Z176: =COUNTA(Y178:Y180) -> 2
Y177: Rating Agency | Z177: Data Category | AA177: Description | AB177: Description2 | AC177: Bound | AD177: DF Multiple | AE177: MVD Multiple
Y178: S&P | Z178: Residency | AA178: Australian | AD178: 1
Y179: S&P | Z179: Residency | AA179: Other | AD179: 1.5
W182: =W175+1 -> 15 | X182: Arrears <6mths
Y183: rows | Z183: =COUNTA(Y185:Y187) -> 2
Y184: Rating Agency | Z184: Data Category | AA184: Description | AB184: Description2 | AC184: Bound | AD184: DF Multiple | AE184: MVD Multiple
Y185: S&P | Z185: Arrears <6mths | AA185: Multiple | AC185: 0 | AD185: 1
Y186: S&P | Z186: Arrears <6mths | AA186: Multiple | AC186: 30.01 | AD186: 4.7
W189: =W182+1 -> 16 | X189: Arrears
Y190: rows | Z190: =COUNTA(Y192:Y196) -> 4
Y191: Rating Agency | Z191: Data Category | AA191: Description | AB191: Description2 | AC191: Bound | AD191: DF Multiple | AE191: MVD Multiple
Y192: S&P | Z192: Arrears | AA192: Multiple | AC192: 0 | AD192: 1
Y193: S&P | Z193: Arrears | AA193: Multiple | AC193: 30.01 | AD193: 2
Y194: S&P | Z194: Arrears | AA194: Multiple | AC194: 60.01 | AD194: 4.65
Y195: S&P | Z195: Arrears | AA195: Multiple | AC195: 90.01 | AD195: 4.7
W197: =W189+1 -> 17 | X197: Credit History
Y198: rows | Z198: =COUNTA(Y200:Y203) -> 3
Y199: Rating Agency | Z199: Data Category | AA199: Description | AB199: Description2 | AC199: Bound | AD199: DF Multiple | AE199: MVD Multiple
Y200: S&P | Z200: Credit History | AA200: 0 credit events | AC200: 0 | AD200: 1 | AH200: Additional Multiples On | AJ200: No
Y201: S&P | Z201: Credit History | AA201: 1 credit events | AC201: 1 | AD201: =2.5+AJ202 -> 2.5 | AG201: =IF('Loan Feature Input'!E12>0,1,0) -> 0 | AH201: Months since last credit event | AJ201: =IF(AJ200="No",0,IF(AG201=1,(TODAY()-'Loan Feature Input'!E12)/(365/12),0)) -> 0
Y202: S&P | Z202: Credit History | AA202: 2 credit events | AC202: 2 | AD202: =3+AJ202 -> 3 | AH202: Multiplier to Apply | AJ202: =IF(AJ201=0,0,IF(AJ201<=3,0.5,IF(AJ201<=6,0.25,0))) -> 0
W204: =W197+1 -> 18 | X204: Times Arrears
Y205: rows | Z205: =COUNTA(Y207:Y212) -> 5
Y206: Rating Agency | Z206: Data Category | AA206: Description | AB206: Description2 | AC206: Bound | AD206: DF Multiple | AE206: MVD Multiple
Y207: S&P | Z207: Times Arrears | AA207: Up to 1 | AC207: 0 | AD207: 1
Y208: S&P | Z208: Times Arrears | AA208: 2 | AC208: 2 | AD208: 1.1
Y209: S&P | Z209: Times Arrears | AA209: 3 | AC209: 3 | AD209: 1.2
Y210: S&P | Z210: Times Arrears | AA210: 4 | AC210: 4 | AD210: 1.5
Y211: S&P | Z211: Times Arrears | AA211: 5 or more | AC211: 5 | AD211: 2
W213: =W204+1 -> 19 | X213: Discount Loan
Y214: rows | Z214: =COUNTA(Y216:Y219) -> 3
Y215: Rating Agency | Z215: Data Category | AA215: Description | AB215: Description2 | AC215: Bound | AD215: DF Multiple | AE215: MVD Multiple
Y216: S&P | Z216: Discount Loan | AA216: Yes | AC216: 18 | AD216: 1.2
Y217: S&P | Z217: Discount Loan | AA217: No | AC217: 18 | AD217: 1
Y218: S&P | Z218: Discount Loan | AA218: N/A | AC218: 18 | AD218: 1.02
W220: =W213+1 -> 20 | X220: Self Employed Alt Doc
Y221: rows | Z221: =COUNTA(Y223:Y229) -> 6
... 115 more rows

Sheet Version Control (hidden)
A1: Version | B1: Date | C1: Editor | D1: Change Request | E1: Edits
A2: 2.4 | B2: 2020-10-14 | C2: Jake Miller | D2: Good Morning Jake, Happy Hump Day! Could you please look to adjust the BNK servicing with the new tax rates as per the budget announcement? The details will be on the ATO website. Please ensure you keep a list of any changes for version control. Let me know if you have any questions or require any assistance. Thanks, | E2: https://www.ato.gov.au/General/New-legislation/In-detail/Direct-taxes/Income-tax-for-individuals/JobMaker-Plan---bringing-forward-the-Personal-Income-Tax-Plan/ Edit made from above table, in console increasing the tax rates: increase the low income tax offset (LITO) from $445 to $700 and adjust the phase out rules increase the top threshold of the 19% personal income tax bracket from $37,000 to $45,000, and increase the top threshold of the 32.5% personal income tax bracket from $90,000 to $120,000. Taxable income Tax on this income 0 to $18,200 Nil $18,201 to $45,000 19cents for each $1 over $18,200 $45,001 to $120,000 $5,092 plus 32.5cents for each $1 over $45,000 $120,001 to $180,000 $29,467 plus 37cents for each $1 over $120,000 $180,001 and over $51,667 plus 45cents for each $1 over $180,000
A3: 2.5 | B3: 2020-10-23 | C3: Jake Miller | D3: Change request from Ben Shirvani: Hi Jake • Please add rental income for cat 3 with 60% shading • Fix the bug for overtime, commission and investment income (sees like I of investment is also missing ) | E3: Added rental income for category 3 with 60% shaded income, this unhid one of the free rental income types in the input and updated the shading in the formulas sheet. Fixed bug where overtime income was not showing, the sum formula in the input sheet in row 44 was referencing the formulas sheet and looking it rows 15 to 20, where it should of been referencing rows 13 to 20. Fixed bug in DTI/ LTI where personal loan was entered but balance and limit was not entered, then the limit was inferred incorrectly, this has been updated to set reversed limits to 0, and a flag has been put in input sheet in cells R107:R132 where if balance or limit has not been entered it will give a warning prompt.
A4: 2.6 | B4: 2020-11-17 | C4: Jake Miller | D4: Change Request from Kean Burke and Scott Smith: The major difference is that BNK calculator is deducting company tax from the NPBT and then adding this back to the borrower personal income and then it’s taxed again at personal tax rates. | E4: Added option on Input page to select between borrower entity, now drop down option for business or individual. When Business is selected in the formulas sheet in cell range C40 to C46, there is an if statement that will change the taxable income from gross to net, what this then does it treats the business income as tax exempt from personal income, the business income tax rates will apply but the personal tax income rates do not. This essentially treats both entities seperately and filing seperate tax returns. When Individual is selected, then any business profit is treated as franked dividend, in this case franking credits are applied to the individuals total taxable income. The next factor is if the business is company or SP/Partnership, as SP and Partnership are taxed under personal tax rates no corporate tax rate is applied, so in the formulas sheet in rows 51 and 52, the formulas check if the tax applied will be business or individual, then checks the company structure for SP/Partnership, where applicable will and subract income amounts
A5: 2.7 | B5: 2020-11-23 | C5: Jake Miller | D5: 3 minor points though we need to address: • Borrowing entity cell (row 13) – I’d recommend the following names: o Individual o Company (not business) • Reset button is not working • Business income page – When an amount is put in the “add back” section, lines 29-31, the whole section turns dark grey. Is this supposed to happen? | E5: Updated borrower entity names in console Reset button fixed Fixed error in excel macro that was turning the income page dark grey from selection Bug fix business income tax calc - Updated the tax calculation to move formula from applicant 1 into applicant 2-5
A6: 2.8 | B6: 2020-12-09 | C6: Jake Miller | D6: Change Request ffrom Ben Shirvani | Better Choice <Ben.s@betterchoice.com.au>: Bug in the warning code for external liabilites, asking to enter balance/ limit when Hecs/help, child maintence and rental expesne were selected. | E6: Updated Cells R107 to R132 in the Input sheet to check if liabilities type is Hecs/help, child maintence and rental expesne and if so do not display error.
A7: 2.9 | B7: 2020-12-10 | C7: Jake Miller | D7: CODE MERGE Sub Calc Dev Calc: Change Prime Calculator to the Specilist and Update Subordinate Calculator. Code merge of 3 calculators, using latest prime as base, then updating console and formulas with specialist rates, then updating subby calc UX to match new design and calcs. | E7: Update Console Sheet, rate load from 2.5% to 2% Update Console Sheet, floor rate from 5.25% to 5.6% Update NSR min to $500, added NSR on console and updated pass/ fail in input to point to NSR of 500 from harcoded 1 For external liabilities, increased the repayment by 1.25 multiplier in console in column AV for OO and INV HLs Increased the shading on Overtime, Commission and Investment income to 100% Reduced shading on rental - commerical to 65% Updated title on input sheet from Prime to Specialist Updates to Loan Feature input to match development sheet and reduce fields and inputs Updates to Subordinate Calculator to fix bugs founds in development version Updates to Results Page
A8: 3 | B8: 2021-01-27 | C8: Jake Miller | D8: 1. Updates to DTI Calculation where if loan has been consolidated it will not show in the DTI calculation. 2. Updating PLs so we only use the input MMP instead of the calculated, regardless of if it is greater than the calculated payment | E8: 1. In the formulas sheet in P101:P125, adding in the IF function so that if POC field is Yes then display limit at 0 so this flows into DTI Calc 2. In the formulas sheet in cells M101:M125 changing the formula to take into consideration when the loan is a personal loan to only use MMP unless nothing else is entered.
A9: 3.1 | B9: 2021-02-11 | C9: Jake Miller | D9: Update to existing home loan calculation to use actual payment plys 25% | E9: In the formulas sheet in cells M101:M125 changing the formula to take into consideration when the loan is a home loan to only use MMP multiplied by a vlookup to the console for the multiplier unless nothing else is entered
A10: 3.2 | B10: 2021-02-23 | C10: Jake Miller | D10: Request From Gloria, Email 23/02/2021 Good Morning Jake, As discussed, could we look to apply the following so we can run a few test cases through it?  Include any investment property expenses as a tax deduction  For negative gearing can we change the calculation to detect if the loan is P&I or IO?  Include the tax offset for low income earners as per Pepper policy All income should be at 100% with residential rent shaded at 80% and 65% for commercial properties. Let me know if you have any problems. | E10: Investment Property Expense: Updated Formulas sheet in cell C96 to add in investment property expenses, this sums up row 92 from the Input sheet and multiplies by 12 to make it an annual cost. P&I to IO Neg gearing: Updated the negative gearing formula in the Formulas sheet in cell C96 it now checks if any loan splits have intertest only status and if so, then calculates interest charges as if full interest was charged. Additionally in Cell A83 is the check for any IO loan splits. Tax Offset: New ATO tax offsets added, the tables are in the console, which auto update into the formulas sheet, where each offset is calculated in rows 64 and 65, then put as deductions back into the tax payable cell in row 56. however the tax offset can not lead to tax being payable to the customer, so the max function was put in place to ensure tax payable does not go below 0. Maco bug fix to reset for new version of excel secuity, and hiding for foregin income rows in input sheet.
A11: 3.21 | B11: 2021-03-02 | C11: Jake Miller | D11: Bug Fix to income offsets | E11: The income offsets weren't applying to the second applicant, this required dragging the formula in E57 in the formulas sheet across to the right.
A12: 3.3 | B12: 2021-03-10 | C12: Jake Miller | D12: Remove Notional Rent as per Policy and request from Gloria Mudge 10/3/21 | E12: In Console sheet cell AV10 changed from $650 to $0
A13: 3.4 | B13: 2021-03-17 | C13: Jake Miller | D13: Made the following updates on sheet “Subordinate Calculator” uploaded here https://lockbox.gs.com/lockbox/files/45cb1a91-4338-4d87-a9e1-76e5167858f6/info 1) Cell P42: = MIN(1,IF(OR(AND($L$42<$AA$349,$M$42>AC349),AND($L$42>$AA$351,$M$42>=AC351)),1,O42*P38)) 2) Cells AA348:AA351: | E13: Updated as per the right, cells in AA348:AA351 are all now 6
A14: 3.5 | B14: 2021-07-22 | C14: Jake Miller | D14: Updates to Loan Feature Input UX, mutliple changes as per Nick Allen/ Kean Burke Feedback as per email on the 21/07/2021 | E14: Multiple updates to data display and cell reference for Loan Feature Input and Results page, mainly hiding redudant fields and the addition of a DLA calculation. Additional updates to display of units in Sub Calculations.
A15: 3.6-3.7 | B15: 2021-08-04 | C15: Jake Miller | D15: Updates as per Nick Allen Requests in emails 4/8/2021, 3/8/2021 and 29/7/2021. This was to amend the Loan Feature input and suboridate calculator, and UX changes to the Results page. | E15: Subordinate Calculator sheet: Updating Issue Multipler to 1.00, default interest rate for AAA rating to 10%, for borrower employer hardcoding document type as full doc, changing months business open to months instead of years, updates to DLA calculation to include exception criteria, insertion of a toggle to stress the time since credit event when less than 6 months but toggled to off.
A16: 3.8 | B16: 2021-08-26 | C16: Jake Miller | D16: Request from Nick Allen and Allan Savins to update the weightings within the subordinate calculator for the Loan term field | E16: Updating cells from AC43:AD46 to change buckets to be 0 to 15, 15 to 29.999, 30, 30+ and corresponding weightings of 0.4,0,7,1,1.2.
A17: 4.1 | B17: 2022-03-01 | C17: BCHL | D17: See Ticket SD 1087 | E17: See ticket
A18: 4.1.2 | B18: 2022-07-21 | C18: Jake Miller | D18: Update HEM and 3% servicing buffer from Gloria | E18: Update to console to change buffer from 2% to 3% for interest rates, update to HEM expense table
A19: 4.2 | B19: 2022-10-25 | C19: Steve Kaye | D19: BNPL, HEC’s & HELP debts need to be included within the DTI calculations. HEC/HELP is already listed as a liability type, just need to ensure it is now in the DTI calculation. BNPL will need to be included within the liability section and should reflect the same as a credit card. This will need to be included in the DTI calculation. | E19: The HEC/HELP option now has the ability to input balance amount which is added to the total debt amount for the DTI calculation. BNPL option added to the Liability Type List on the Console Tab (column AT). The credit card multipler has then been applied to the BNPL row. This list is used for the data validation options in the Liability Expenses section (Input!D107:D133). Addition Fix: Balances were not clearing when a non balance liability option was selected. This in turn was continuing to be calculated in the DTI value. This has now been amended (View formula in Formulas!F101:F126)
A20: 4.2 | B20: 2022-10-26 | C20: Steve Kaye | D20: Incorrect Annual surplus when multiple households are entered. Error only occurs when the higher HEM and DLE are split on different households. | E20: Net Disposable Income before new loan was pulling the higher value between total HEM and total DLE. This cell should've been pulling the Total All Households amount (cell Input!H148)
A21: 4.2.1 | B21: 2022-10-27 | C21: Steve Kaye | D21: DSR changes in line with any adjustment but it is the assessed position output that needs reviewing on logic. Where no conflicting repayment types ie all are IO 1 year or just 1 split it does change. This is due to aggregate totals with combination repay types with minimal change and would need to check logic on opened calc to see if that was intended due to minimal change or if it needs fixing. | E21: Surplus Income after loan repayments @ assessed rate how been updated to only use the sum of R15:R19 (as T21), not max(R20, T21). This updates the surplus for all scenarios. NSR value is updated as well since it used the same logic. That being sum of R15:R19 (as T21), not max(R20, T21)
A22: 4.2.2 | B22: 2023-03-31 | C22: Michael Ma | D22: HEM income info updated per the attachment provided by Nick A,adding new HEM bucket per lastest HEM info(drop in table - Australia) | E22: HEM tab - update HEM table
A23: 4.2.3 | B23: 2023-07-18 | C23: Michael Ma | D23: 1) Low to Middle Income Offset calculation is no long applicable as it finished at the end of 2022 financial year. However please note the Low Income Offset is still applicable. a. This to be updated please to remove low-middle income offset in tax table 2) Calculators are applying 2% Medicare levy regardless of income, ie, for incomes $18,200 and below are being charged 2% when should be zero. a. This to be updated please to remove Medicare Levy calculation for gross individual incomes <$18,201 | E23: - remove low-middle income offset in tax table, set cell E65-X65 to 0 - adjust cell E58 in 'Formulas' tab to add check if the gross individual incomes <$18,201 =IF(Formulas!E51<18201,0,E56*Console!$AH$3) - adjust the 'reset' function, expand the clear content scope from input tab only to including 'Income Calculators' and 'input' tabs
A24: 4.2.4.1 | B24: 2023-09-05 | C24: Michael Ma | D24: Please default the selection to All Transactions and Hide the Selector so all loans are servicing with the 2% Buffer and no selection can be accessed. | E24: - reorder the option like this. • All Transactions (2%) • Refinance Only (1%) • Fixed Rate Only (1.5%) • Flow Buffer (3%) - default the selection to All Transactions and Hide the Selector(D14) so all loans are servicing with the 2% Buffer and no selection can be accessed.
A25: 4.2.6.0 | B25: 2023-11-22 | C25: Michael Ma | D25: Update HEM info(using V3.22 2023 Q3 version) | E25: Update HEM info(using V3.22 2023 Q3 version)
A26: 4.2.7.0 | B26: 2024-01-30 | C26: Nick Chong | D26: Fixed Loan Type data validation so FLOW cannot be picked for external calcs | E26: Fixed Loan Type data validation so FLOW cannot be picked for external calcs
A27: 4.2.8.0 | B27: 2024-06-22 | C27: Michael Ma | D27: Update HEM info(using 2024 Q1 version) | E27: Update HEM info(using 2024 Q1 version)
A28: 4.3.0 | B28: 2024-07-05 | C28: Michael Ma | D28: Update new tax rate FY25 | E28: Update new tax rate FY25 per ato website https://www.ato.gov.au/tax-rates-and-codes/tax-rates-australian-residents
A29: 4.4.0 | B29: 20/09/2024 | C29: Michael Ma | D29: Update HEM info(using 2024 Q2 version) | E29: Update HEM info(using 2024 Q2 version)
A30: 4.4.0 | B30: 2024-05-12 | C30: Michael Ma | D30: change the Inv to Inv Property | E30: change the Inv to Inv Property
